Ref No,Fund Type,Dept,Cost Centre Description    ,Description    ,Creditor Name    ,GL Code Net Amount,Payment date        
2,Revenue,CAHD,CSC - Vinney Green Secure Unit,Educational Materials, AMS Dyslexia Support,525, 16-Mar-2023
3,Revenue,CAHD,Central - Commissioned Services,Permanent Residential,1 St Georges House,18233.52, 07-Mar-2023
4,Revenue,CAHD,Central - Commissioned Services,Fees & Charges Income - General,1 St Georges House,-438.8, 07-Mar-2023
5,Revenue,CAHD,CSC - LAC Housing Support Grants,Grants to Voluntary Bodies,1625 Independent People,3343, 15-Mar-2023
6,Revenue,CAHD,Supporting People Programme,Grants to Voluntary Bodies,1625 Independent People,15622, 01-Mar-2023
7,Revenue,CAHD,Supporting People Programme,Grants to Voluntary Bodies,1625 Independent People,15629.08, 01-Mar-2023
8,Revenue,CAHD,CSC - Asylum Seekers - Unaccompanied,Independent Living,16Pluscare Support Solutions,12915.92, 14-Mar-2023
9,Revenue,CAHD,CSC - Care Leavers Independent Living,Independent Living,16Pluscare Support Solutions,9327.92, 14-Mar-2023
10,Revenue,CAHD,South - Commissioned Services,Permanent Residential,2Nd Floor Building,5630.76, 07-Mar-2023
11,Revenue,CAHD,South - Commissioned Services,Fees & Charges Income - General,2Nd Floor Building,-438.8, 07-Mar-2023
12,Revenue,CAHD,North - Community based support,Permanent Residential,2Nd Floor Building,4938.12, 07-Mar-2023
13,Revenue,CAHD,North - Community based support,Fees & Charges Income - General,2Nd Floor Building,-438.8, 07-Mar-2023
14,Revenue,CAHD,Central - Commissioned Services,Other Small Contracts,3 Trees Community Support Limited,151.2, 09-Mar-2023
15,Revenue,CAHD,Central - Commissioned Services,Supported Living,3 Trees Community Support Limited,3024, 09-Mar-2023
16,Revenue,CAHD,Central - Commissioned Services,Supported Living,3 Trees Community Support Limited,3024, 09-Mar-2023
17,Revenue,CAHD,Central - Commissioned Services,Supported Living,3 Trees Community Support Limited,3024, 09-Mar-2023
18,Revenue,CAHD,South - Commissioned Services,Supported Living,3 Trees Community Support Limited,3086.72, 09-Mar-2023
19,Revenue,CAHD,Central - Commissioned Services,Other Small Contracts,3 Trees Community Support Limited,151.2, 21-Mar-2023
20,Revenue,CAHD,Central - Commissioned Services,Supported Living,3 Trees Community Support Limited,3024, 21-Mar-2023
21,Revenue,CAHD,Central - Commissioned Services,Supported Living,3 Trees Community Support Limited,3024, 21-Mar-2023
22,Revenue,CAHD,Central - Commissioned Services,Supported Living,3 Trees Community Support Limited,3024, 21-Mar-2023
23,Revenue,CAHD,South - Commissioned Services,Supported Living,3 Trees Community Support Limited,3086.72, 21-Mar-2023
24,Revenue,CAHD,Central - Commissioned Services,Supported Living,3 Trees Community Support Limited,3024, 06-Mar-2023
25,Revenue,CAHD,Central - Commissioned Services,Supported Living,3 Trees Community Support Limited,3024, 06-Mar-2023
26,Revenue,CAHD,Central - Commissioned Services,Supported Living,3 Trees Community Support Limited,3024, 06-Mar-2023
27,Revenue,CAHD,South - Commissioned Services,Supported Living,3 Trees Community Support Limited,3086.72, 06-Mar-2023
28,Revenue,CAHD,Central - Commissioned Services,Supported Living,3 Trees Community Support Limited,3024, 21-Mar-2023
29,Revenue,CAHD,Central - Commissioned Services,Supported Living,3 Trees Community Support Limited,3024, 21-Mar-2023
30,Revenue,CAHD,Central - Commissioned Services,Supported Living,3 Trees Community Support Limited,3024, 21-Mar-2023
31,Revenue,CAHD,South - Commissioned Services,Supported Living,3 Trees Community Support Limited,3086.72, 21-Mar-2023
32,Revenue,CAHD,Central - Commissioned Services,Supported Living,3 Trees Community Support Limited,3024, 28-Mar-2023
33,Revenue,CAHD,Central - Commissioned Services,Supported Living,3 Trees Community Support Limited,3024, 28-Mar-2023
34,Revenue,CAHD,Central - Commissioned Services,Supported Living,3 Trees Community Support Limited,3024, 28-Mar-2023
35,Revenue,CAHD,South - Commissioned Services,Supported Living,3 Trees Community Support Limited,3086.72, 28-Mar-2023
36,Revenue,CAHD,South - Commissioned Services,Permanent Residential,5Th Floor Harlech Court,17913.24, 07-Mar-2023
37,Revenue,CAHD,South - Commissioned Services,Permanent Residential,5Th Floor Harlech Court,18839.56, 07-Mar-2023
38,Revenue,CAHD,South - Commissioned Services,Permanent Residential,5Th Floor Harlech Court,22116.24, 07-Mar-2023
39,Revenue,CAHD,South - Commissioned Services,Fees & Charges Income - General,5Th Floor Harlech Court,-438.8, 07-Mar-2023
40,Revenue,CAHD,South - Commissioned Services,Fees & Charges Income - General,5Th Floor Harlech Court,-418.8, 07-Mar-2023
41,Revenue,CAHD,South - Commissioned Services,Fees & Charges Income - General,5Th Floor Harlech Court,-469.32, 07-Mar-2023
42,Revenue,CAHD,S28A cases,Permanent Residential,5Th Floor Harlech Court,11719.96, 07-Mar-2023
43,Revenue,CAHD,S28A cases,Fees & Charges Income - General,5Th Floor Harlech Court,-399.8, 07-Mar-2023
44,Revenue,CAHD,North - Community based support,Permanent Residential,5Th Floor Harlech Court,12498.56, 07-Mar-2023
45,Revenue,CAHD,North - Community based support,Fees & Charges Income - General,5Th Floor Harlech Court,-450.8, 07-Mar-2023
46,Revenue,CAHD,Central - Commissioned Services,Permanent Residential,5Th Floor Harlech Court,15338.12, 07-Mar-2023
47,Revenue,CAHD,Central - Commissioned Services,Fees & Charges Income - General,5Th Floor Harlech Court,-438.8, 07-Mar-2023
48,Revenue,CAHD,North - Community based support,Permanent Residential,5Th Floor Harlech Court,9615.4, 07-Mar-2023
49,Revenue,CAHD,North - Community based support,Permanent Residential,5Th Floor Harlech Court,10853.36, 07-Mar-2023
50,Revenue,CAHD,North - Community based support,Fees & Charges Income - General,5Th Floor Harlech Court,-438.8, 07-Mar-2023
51,Revenue,CAHD,North - Community based support,Fees & Charges Income - General,5Th Floor Harlech Court,-438.8, 07-Mar-2023
52,Revenue,CAHD,CSC - Section 17 0-25,Preventative Assistance,A+bility Ltd,600, 15-Mar-2023
53,Revenue,CAHD,CSC - Section 17 0-25,Preventative Assistance,A+bility Ltd,600, 16-Mar-2023
54,Revenue,CAHD,Central - Commissioned Services,Non Residential Care Income,A4E Management Ltd,-112.74, 03-Mar-2023
55,Revenue,CAHD,Central - Commissioned Services,Non Residential Care Income,A4E Management Ltd,-112.74, 17-Mar-2023
56,Revenue,CAHD,Central - Commissioned Services,Non Residential Care Income,A4E Management Ltd,-127.34, 31-Mar-2023
57,Revenue,CAHD,Early Years Pupil Premium Grant,Preventative Assistance,Abacus Pre-School (Meadowbrook),838.8, 14-Mar-2023
58,Revenue,CAHD,EARLY YEARS DEPRIVATION PAYMENT,Preventative Assistance,Abacus Pre-School (Meadowbrook),904.23, 14-Mar-2023
59,Revenue,CAHD,Early Years Pupil Premium Grant,Preventative Assistance,Abacus Pre-School @ Stoke Gifford,864, 14-Mar-2023
60,Revenue,CAHD,EARLY YEARS DEPRIVATION PAYMENT,Preventative Assistance,Abacus Pre-School @ Stoke Gifford,931.39, 14-Mar-2023
61,Revenue,CAHD,Social Lettings Agency,Rent,Individual,850, 10-Mar-2023
62,Revenue,CAHD,Social Lettings Agency,Fees & Charges Income - General,Individual,-106.25, 10-Mar-2023
63,Revenue,CAHD,Central - Commissioned Services,Permanent Nursing,ABI Development Limited,12959.4, 07-Mar-2023
64,Revenue,CAHD,Central - Commissioned Services,Fees & Charges Income - General,ABI Development Limited,-511.8, 07-Mar-2023
65,Revenue,CAHD,CSC - Asylum Seekers - Unaccompanied,Independent Living,Ability Supported Living Limited,6052, 08-Mar-2023
66,Revenue,CAHD,Central - Commissioned Services,Other Small Contracts,About Me Care and Support Limited,275.04, 08-Mar-2023
67,Revenue,CAHD,South - Commissioned Services,Other Small Contracts,About Me Care and Support Limited,607.38, 08-Mar-2023
68,Revenue,CAHD,Central - Commissioned Services,Other Small Contracts,About Me Care and Support Limited,206.28, 29-Mar-2023
69,Revenue,CAHD,South - Commissioned Services,Other Small Contracts,About Me Care and Support Limited,870.96, 29-Mar-2023
70,Revenue,CAHD,South - Commissioned Services,Permanent Nursing,Acacia House,3085.88, 07-Mar-2023
71,Revenue,CAHD,South - Commissioned Services,Fees & Charges Income - General,Acacia House,-1074.6, 07-Mar-2023
72,Revenue,CAHD,Central - Commissioned Services,Permanent Nursing,Acacia House,3777.92, 07-Mar-2023
73,Revenue,CAHD,Home Care Monitoring (CM2000),Other Supplies & Services,Access UK Limited,15082.75, 07-Mar-2023
74,Revenue,CAHD,Home Care Monitoring (CM2000),Other Supplies & Services,Access UK Limited,15082.75, 30-Mar-2023
75,Revenue,CAHD,Central - Commissioned Services,Permanent Residential,Acer House Care Home.,4028, 07-Mar-2023
76,Revenue,CAHD,Central - Commissioned Services,Fees & Charges Income - General,Acer House Care Home.,-1093.68, 07-Mar-2023
77,Revenue,CAHD,MH Purchasing - Younger,Permanent Residential,Acorn Care Providers,6920.56, 07-Mar-2023
78,Revenue,CAHD,MH Purchasing - Younger,Permanent Residential,Acorn Care Providers,6795.68, 07-Mar-2023
79,Revenue,CAHD,North - S117,Permanent Residential,Acorn Care Providers,4311.4, 07-Mar-2023
80,Revenue,CAHD,Section 117 Placements MH Younger,Permanent Residential,Acorn Care Providers,5941.4, 07-Mar-2023
81,Revenue,CAHD,Jointly Funded H&SC Packages,Permanent Residential,Acorn Care Providers,3515.52, 07-Mar-2023
82,Revenue,CAHD,Jointly Funded H&SC Packages,Permanent Residential,Acorn Care Providers,2366.36, 07-Mar-2023
83,Revenue,CAHD,Jointly Funded H&SC Packages,Permanent Residential,Acorn Care Providers,2193.4, 07-Mar-2023
84,Revenue,CAHD,CSC - Fostering Carer Support,Training Expenses,Acorn Health & Safety Limited,570, 01-Mar-2023
85,Revenue,CAHD,Training Budget - Children`s Social Serv,Training Expenses,Acorn Health & Safety Limited,570, 28-Mar-2023
86,Revenue,CAHD,CSC - Vinney Green Secure Unit,Teaching Assistants Pay,Acorn Health & Safety Limited,645, 29-Mar-2023
87,Revenue,CAHD,Independent Special Placements - Pre 16,Other Private Contractors,Action for Children,56245, 06-Mar-2023
88,Revenue,CAHD,Independent Special Placements - Pre 16,Other Private Contractors,Action for Children,72170, 06-Mar-2023
89,Revenue,CAHD,Independent Special Placements - Post 16,Other Private Contractors,Action for Children,56245, 06-Mar-2023
90,Revenue,CAHD,Hospital Tuition,Other Private Contractors,Active Young People Ltd,2450, 06-Mar-2023
91,Revenue,CAHD,CSC - Professional Fees Foster Carers,Band 3 Foster Care,Adam & Amanda Gibbons,1700, 03-Mar-2023
92,Revenue,CAHD,CSC - Fostering Carer Support,Payments to Carers,Individual,71, 10-Mar-2023
93,Revenue,CAHD,CSC - Professional Fees Foster Carers,Band 3 Foster Care,Individual,700, 10-Mar-2023
94,Revenue,CAHD,CSC - Professional Fees Foster Carers,Band 3 Foster Care,Individual,700, 17-Mar-2023
95,Revenue,CAHD,CSC - Professional Fees Foster Carers,Band 3 Foster Care,Individual,700, 24-Mar-2023
96,Revenue,CAHD,CSC - Fostering Carer Support,Payments to Carers,Individual,125.42, 31-Mar-2023
97,Revenue,CAHD,CSC - Professional Fees Foster Carers,Band 3 Foster Care,Individual,700, 31-Mar-2023
98,Revenue,CAHD,CSC - Asylum Seekers - Unaccompanied,Independent Living,Adolescent Support Home Services Ltd,3702.26, 10-Mar-2023
99,Revenue,CAHD,CSC - Asylum Seekers - Unaccompanied,Independent Living,Adolescent Support Home Services Ltd,3702.26, 10-Mar-2023
100,Revenue,CAHD,CSC - Vinney Green Secure Unit,Medical Fees,Advance Health Care Logistics,750, 31-Mar-2023
101,Revenue,CAHD,South - Commissioned Services,Other Small Contracts,Advantedge Commercial Finance Limited,5364.86, 06-Mar-2023
102,Revenue,CAHD,South - Commissioned Services,Other Small Contracts,Advantedge Commercial Finance Limited,569.16, 06-Mar-2023
103,Revenue,CAHD,South - Commissioned Services,Other Small Contracts,Advantedge Commercial Finance Limited,1449.25, 06-Mar-2023
104,Revenue,CAHD,South - Commissioned Services,Other Small Contracts,Advantedge Commercial Finance Limited,332.01, 06-Mar-2023
105,Revenue,CAHD,South - Commissioned Services,Other Small Contracts,Advantedge Commercial Finance Limited,885.36, 06-Mar-2023
106,Revenue,CAHD,South - Commissioned Services,Other Small Contracts,Advantedge Commercial Finance Limited,5312.16, 06-Mar-2023
107,Revenue,CAHD,South - Commissioned Services,Other Small Contracts,Advantedge Commercial Finance Limited,2360.96, 06-Mar-2023
108,Revenue,CAHD,South - Commissioned Services,Other Small Contracts,Advantedge Commercial Finance Limited,7673.12, 16-Mar-2023
109,Revenue,CAHD,South - Commissioned Services,Other Small Contracts,Advantedge Commercial Finance Limited,1328.04, 16-Mar-2023
110,Revenue,CAHD,South - Commissioned Services,Other Small Contracts,Advantedge Commercial Finance Limited,959.14, 16-Mar-2023
111,Revenue,CAHD,Central - Commissioned Services,Other Small Contracts,Afya Care Ltd,1905.12, 09-Mar-2023
112,Revenue,CAHD,South - Commissioned Services,Other Small Contracts,Afya Care Ltd,1797.39, 09-Mar-2023
113,Revenue,CAHD,North - Community based support,Other Small Contracts,Afya Care Ltd,1468.53, 09-Mar-2023
114,Revenue,CAHD,Central - Commissioned Services,Day Care / Social Activities,Age Concern,681.6, 07-Mar-2023
115,Revenue,CAHD,Central - Commissioned Services,Day Care / Social Activities,Age Concern,576.16, 07-Mar-2023
116,Revenue,CAHD,Central - Commissioned Services,Day Care / Social Activities,Age Concern,-288.08, 07-Mar-2023
117,Revenue,CAHD,South - Commissioned Services,Day Care / Social Activities,Age Concern,288.08, 07-Mar-2023
118,Revenue,CAHD,North - Community based support,Day Care / Social Activities,Age Concern,2470.8, 07-Mar-2023
119,Revenue,CAHD,North - Community based support,Day Care / Social Activities,Age Concern,348.8, 07-Mar-2023
120,Revenue,CAHD,North - Community based support,Day Care / Social Activities,Age Concern,-216.06, 07-Mar-2023
121,Revenue,CAHD,North - Community based support,Day Care / Social Activities,Age Concern,288.08, 07-Mar-2023
122,Revenue,CAHD,South - Commissioned Services,Day Care / Social Activities,Age UK - Grace Court,432.12, 07-Mar-2023
123,Revenue,CAHD,South - Commissioned Services,Day Care / Social Activities,Age UK - Grace Court,226.48, 07-Mar-2023
124,Revenue,CAHD,South - Commissioned Services,Day Care / Social Activities,Age UK - Grace Court,288.08, 07-Mar-2023
125,Revenue,CAHD,South - Commissioned Services,Day Care / Social Activities,Age UK - Grace Court,288.08, 07-Mar-2023
126,Revenue,CAHD,South - Commissioned Services,Day Care / Social Activities,Age UK - Grace Court,288.08, 07-Mar-2023
127,Revenue,CAHD,South - Commissioned Services,Day Care / Social Activities,Age UK - Grace Court,226.48, 07-Mar-2023
128,Revenue,CAHD,South - Commissioned Services,Day Care / Social Activities,Age UK - Grace Court,341.04, 07-Mar-2023
129,Revenue,CAHD,South - Commissioned Services,Day Care / Social Activities,Age UK - Grace Court,288.08, 07-Mar-2023
130,Revenue,CAHD,North - Community based support,Day Care / Social Activities,Age UK - Grace Court,348.8, 07-Mar-2023
131,Revenue,CAHD,North - Community based support,Day Care / Social Activities,Age UK - Grace Court,-681.6, 07-Mar-2023
132,Revenue,CAHD,North - Community based support,Day Care / Social Activities,Age UK - Grace Court,288.08, 07-Mar-2023
133,Revenue,CAHD,Extra Care Housing,Private & Voluntary Home Care,Agincare UK Limited,32712.59, 03-Mar-2023
134,Revenue,CAHD,Extra Care Housing,Private & Voluntary Home Care,Agincare UK Limited,26182, 10-Mar-2023
135,Revenue,CAHD,Extra Care Housing,Private & Voluntary Home Care,Agincare UK Limited,1581.72, 13-Mar-2023
136,Revenue,CAHD,Extra Care Housing,Private & Voluntary Home Care,Agincare UK Limited,1365.91, 13-Mar-2023
137,Revenue,CAHD,Prison Assessments & Costs,Other Supplies & Services,Agincare UK Limited,4664, 20-Mar-2023
138,Revenue,CAHD,Schools Specific Grant Income,Other Public Bodies,Albany Academy,550, 30-Mar-2023
139,Revenue,CAHD,South - Commissioned Services,Other Small Contracts,AliMo Care Ltd,192.5, 06-Mar-2023
140,Revenue,CAHD,South - Commissioned Services,Other Small Contracts,AliMo Care Ltd,335.5, 06-Mar-2023
141,Revenue,CAHD,South - Commissioned Services,Other Small Contracts,AliMo Care Ltd,209, 06-Mar-2023
142,Revenue,CAHD,North - Community based support,Other Small Contracts,AliMo Care Ltd,181.36, 06-Mar-2023
143,Revenue,CAHD,South - Commissioned Services,Other Small Contracts,AliMo Care Ltd,401.5, 08-Mar-2023
144,Revenue,CAHD,South - Commissioned Services,Other Small Contracts,AliMo Care Ltd,638, 08-Mar-2023
145,Revenue,CAHD,South - Commissioned Services,Other Small Contracts,AliMo Care Ltd,396, 08-Mar-2023
146,Revenue,CAHD,North - Community based support,Other Small Contracts,AliMo Care Ltd,329.74, 08-Mar-2023
147,Revenue,CAHD,South - Commissioned Services,Other Small Contracts,AliMo Care Ltd,198, 21-Mar-2023
148,Revenue,CAHD,South - Commissioned Services,Other Small Contracts,AliMo Care Ltd,330, 21-Mar-2023
149,Revenue,CAHD,South - Commissioned Services,Other Small Contracts,AliMo Care Ltd,225.5, 21-Mar-2023
150,Revenue,CAHD,North - Community based support,Other Small Contracts,AliMo Care Ltd,159.37, 21-Mar-2023
151,Revenue,CAHD,South - Commissioned Services,Other Small Contracts,AliMo Care Ltd,192.5, 28-Mar-2023
152,Revenue,CAHD,South - Commissioned Services,Other Small Contracts,AliMo Care Ltd,335.5, 28-Mar-2023
153,Revenue,CAHD,South - Commissioned Services,Other Small Contracts,AliMo Care Ltd,220, 28-Mar-2023
154,Revenue,CAHD,North - Community based support,Other Small Contracts,AliMo Care Ltd,159.36, 28-Mar-2023
155,Revenue,CAHD,CSC - CLA Placements,Client Transport,Individual,396, 03-Mar-2023
156,Revenue,CAHD,CSC - Age Related Allowances,"Holidays, Outings & Visits",Individual,66.86, 03-Mar-2023
157,Revenue,CAHD,CSC - Age Related Allowances,Foster Parent Allowances,Individual,363, 03-Mar-2023
158,Revenue,CAHD,CSC - Professional Fees Foster Carers,Band 3 Foster Care,Individual,486, 03-Mar-2023
159,Revenue,CAHD,CSC - Age Related Allowances,Foster Parent Allowances,Individual,363, 10-Mar-2023
160,Revenue,CAHD,CSC - Age Related Allowances,Respite Care,Individual,66.86, 10-Mar-2023
161,Revenue,CAHD,CSC - Professional Fees Foster Carers,Respite Care,Individual,104.14, 10-Mar-2023
162,Revenue,CAHD,CSC - Professional Fees Foster Carers,Band 3 Foster Care,Individual,486, 10-Mar-2023
163,Revenue,CAHD,CSC - Age Related Allowances,"Holidays, Outings & Visits",Individual,88.71, 17-Mar-2023
164,Revenue,CAHD,CSC - Age Related Allowances,Foster Parent Allowances,Individual,363, 17-Mar-2023
165,Revenue,CAHD,CSC - Professional Fees Foster Carers,Band 3 Foster Care,Individual,486, 17-Mar-2023
166,Revenue,CAHD,CSC - Age Related Allowances,Foster Parent Allowances,Individual,363, 24-Mar-2023
167,Revenue,CAHD,CSC - Professional Fees Foster Carers,Band 3 Foster Care,Individual,486, 24-Mar-2023
168,Revenue,CAHD,CSC - Age Related Allowances,Foster Parent Allowances,Individual,369.44, 31-Mar-2023
169,Revenue,CAHD,CSC - Professional Fees Foster Carers,Respite Care,Individual,486, 31-Mar-2023
170,Revenue,CAHD,CSC - Professional Fees Foster Carers,Band 3 Foster Care,Individual,486.57, 31-Mar-2023
171,Revenue,CAHD,CSC - Residential Placements,Permanent Residential,Ambito Care and Education,19920.87, 17-Mar-2023
172,Revenue,CAHD,CSC - Residential Placements,Permanent Residential,Ambito Care and Education,19930.88, 17-Mar-2023
173,Revenue,CAHD,CSC - Residential Placements,Permanent Residential,Ambito Care and Education,19920.87, 31-Mar-2023
174,Revenue,CAHD,CSC - Residential Placements,Permanent Residential,Ambito Care and Education,19930.88, 31-Mar-2023
175,Revenue,CAHD,Early Years High Needs Support,Other Private Contractors,Ambourne House Day Nursery,850.28, 22-Mar-2023
176,Revenue,CAHD,Early Years High Needs Support,Other Private Contractors,Ambourne House Day Nursery,1097.14, 22-Mar-2023
177,Revenue,CAHD,Early Years High Needs Support,Other Private Contractors,Ambourne House Day Nursery,850.28, 22-Mar-2023
178,Revenue,CAHD,Preparing for Adulthood Team,Interpreting & Translation,Individual,504, 03-Mar-2023
179,Revenue,CAHD,EARLY YEARS DISABILITY  ACCES FUND,Preventative Assistance,Anchor Day Nursery Ltd,800, 28-Mar-2023
180,Revenue,CAHD,Early Years High Needs Support,Other Private Contractors,Anchor Day Nursery Ltd,607.16, 22-Mar-2023
181,Revenue,CAHD,Supporting People Programme,Grants to Voluntary Bodies,Anchor Hanover Group,1070.5, 01-Mar-2023
182,Revenue,CAHD,Supporting People Programme,Grants to Voluntary Bodies,Anchor Hanover Group,873.08, 01-Mar-2023
183,Revenue,CAHD,Ukranian Refugees,Other Small Contracts,Individual,644.26, 15-Mar-2023
184,Revenue,CAHD,CSC - Age Related Allowances,"Holidays, Outings & Visits",Individual,133.72, 03-Mar-2023
185,Revenue,CAHD,CSC - Age Related Allowances,Foster Parent Allowances,Individual,312, 03-Mar-2023
186,Revenue,CAHD,CSC - Professional Fees Foster Carers,Band 1 Foster Care,Individual,340, 03-Mar-2023
187,Revenue,CAHD,CSC - South LAC Placements,Client Transport,Individual,61.2, 10-Mar-2023
188,Revenue,CAHD,CSC - Age Related Allowances,Foster Parent Allowances,Individual,312, 10-Mar-2023
189,Revenue,CAHD,CSC - Professional Fees Foster Carers,Band 1 Foster Care,Individual,340, 10-Mar-2023
190,Revenue,CAHD,CSC - Age Related Allowances,Foster Parent Allowances,Individual,312, 17-Mar-2023
191,Revenue,CAHD,CSC - Professional Fees Foster Carers,Band 1 Foster Care,Individual,340, 17-Mar-2023
192,Revenue,CAHD,CSC - Age Related Allowances,Foster Parent Allowances,Individual,312, 24-Mar-2023
193,Revenue,CAHD,CSC - Professional Fees Foster Carers,Band 1 Foster Care,Individual,340, 24-Mar-2023
194,Revenue,CAHD,CSC - South LAC Placements,Client Transport,Individual,580.5, 31-Mar-2023
195,Revenue,CAHD,CSC - Age Related Allowances,Foster Parent Allowances,Individual,136.44, 31-Mar-2023
196,Revenue,CAHD,CSC - Professional Fees Foster Carers,Respite Care,Individual,339.07, 31-Mar-2023
197,Revenue,CAHD,CSC - Professional Fees Foster Carers,Band 1 Foster Care,Individual,146.01, 31-Mar-2023
198,Revenue,CAHD,Community Support - South,Preventative Assistance,Angel Care Support Limited,11851, 09-Mar-2023
199,Revenue,CAHD,Community Support - South,Preventative Assistance,Angel Care Support Limited,10528, 30-Mar-2023
200,Revenue,CAHD,Ukranian Refugees,Rent,Angel Homes Scotland Ltd,850, 24-Mar-2023
201,Revenue,CAHD,CSC - Special Guardianship Orders,Special Payments,Individual,496.63, 31-Mar-2023
202,Revenue,CAHD,Central - Commissioned Services,One-off Planned Direct Payment,Individual,305.59, 03-Mar-2023
203,Revenue,CAHD,Social Lettings Agency,Rent,Individual,830, 09-Mar-2023
204,Revenue,CAHD,Social Lettings Agency,Fees & Charges Income - General,Individual,-103.75, 09-Mar-2023
205,Revenue,CAHD,Social Lettings Agency,Rent,Individual,822.73, 20-Mar-2023
206,Revenue,CAHD,Social Lettings Agency,Fees & Charges Income - General,Individual,-65.82, 20-Mar-2023
207,Revenue,CAHD,Social Lettings Agency,Rent,Individual,822.73, 02-Mar-2023
208,Revenue,CAHD,Social Lettings Agency,Fees & Charges Income - General,Individual,-65.82, 02-Mar-2023
209,Revenue,CAHD,Social Lettings Agency,Rent,Individual,822.73, 31-Mar-2023
210,Revenue,CAHD,Social Lettings Agency,Fees & Charges Income - General,Individual,-65.82, 31-Mar-2023
211,Revenue,CAHD,Early Years Pupil Premium Grant,Preventative Assistance,Apple Tree Pre-School,626.4, 14-Mar-2023
212,Revenue,CAHD,EARLY YEARS DEPRIVATION PAYMENT,Preventative Assistance,Apple Tree Pre-School,675.26, 14-Mar-2023
213,Revenue,CAHD,CSC - Vinney Green Secure Unit,Educational Materials,AQA Education Ltd,574, 13-Mar-2023
214,Revenue,CAHD,South - Commissioned Services,Permanent Nursing,Arbour Walk,7231.14, 07-Mar-2023
215,Revenue,CAHD,North - Community based support,Permanent Nursing,Arbour Walk,3947.24, 07-Mar-2023
216,Revenue,CAHD,North - Community based support,Fees & Charges Income - General,Arbour Walk,-1276.96, 07-Mar-2023
217,Revenue,CAHD,North - S117,Permanent Nursing,Arbour Walk,5400, 07-Mar-2023
218,Revenue,CAHD,Jointly Funded H&SC Packages,Permanent Nursing,Arbour Walk,4574, 07-Mar-2023
219,Revenue,CAHD,CSC - Residential Placements,Permanent Residential,ARC HD Services Ltd,22667.33, 29-Mar-2023
220,Revenue,CAHD,Schools Specific Grant Income,Other Public Bodies,Archbishop McGrath Catholic High School,550, 22-Mar-2023
221,Revenue,CAHD,Schools Specific Grant Income,Other Public Bodies,Archbishop McGrath Catholic High School,2000, 30-Mar-2023
222,Revenue,CAHD,South - S117,Supported Living,Archcare Rehab Limited,2062.52, 07-Mar-2023
223,Revenue,CAHD,Younger MH non-res purchasing,Respite Care,Archcare Rehab Limited,0, 07-Mar-2023
224,Revenue,CAHD,South - Commissioned Services,Permanent Residential,Ash Lea House,5885.04, 07-Mar-2023
225,Revenue,CAHD,South - Commissioned Services,Fees & Charges Income - General,Ash Lea House,-438.8, 07-Mar-2023
226,Revenue,CAHD,North - Community based support,Permanent Residential,Ash View House,7525.48, 07-Mar-2023
227,Revenue,CAHD,North - Community based support,Permanent Residential,Ash View House,7547.2, 07-Mar-2023
228,Revenue,CAHD,North - Community based support,Fees & Charges Income - General,Ash View House,-438.8, 07-Mar-2023
229,Revenue,CAHD,North - Community based support,Fees & Charges Income - General,Ash View House,-438.8, 07-Mar-2023
230,Revenue,CAHD,South - Commissioned Services,Permanent Residential,Ash View House,7317.24, 07-Mar-2023
231,Revenue,CAHD,South - Commissioned Services,Permanent Residential,Ash View House,5994.8, 07-Mar-2023
232,Revenue,CAHD,South - Commissioned Services,Fees & Charges Income - General,Ash View House,-438.8, 07-Mar-2023
233,Revenue,CAHD,South - Commissioned Services,Fees & Charges Income - General,Ash View House,-387.8, 07-Mar-2023
234,Revenue,CAHD,South - S117,Permanent Residential,Ash View House,7402.64, 07-Mar-2023
235,Revenue,CAHD,Section 117 Placements MH Younger,Permanent Residential,Ash View House,5444.12, 07-Mar-2023
236,Revenue,CAHD,Jointly Funded H&SC Packages,Permanent Residential,Ash View House,1160.84, 07-Mar-2023
237,Revenue,CAHD,Jointly Funded H&SC Packages,Permanent Residential,Ash View House,2204.28, 07-Mar-2023
238,Revenue,CAHD,S117 Placements PCT,Permanent Residential,Ash View House,8357.8, 07-Mar-2023
239,Revenue,CAHD,Supporting People Programme,Grants to Voluntary Bodies,Aspects and Milestones Trust,3544.83, 01-Mar-2023
240,Revenue,CAHD,Supporting People Programme,Grants to Voluntary Bodies,Aspects and Milestones Trust,1777.17, 01-Mar-2023
241,Revenue,CAHD,18-25 Year Olds,Other Small Contracts,Aspirations,124.56, 06-Mar-2023
242,Revenue,CAHD,18-25 Year Olds,Other Small Contracts,Aspirations,124.56, 06-Mar-2023
243,Revenue,CAHD,18-25 Year Olds,Other Small Contracts,Aspirations,83.04, 06-Mar-2023
244,Revenue,CAHD,18-25 Year Olds,Other Small Contracts,Aspirations,124.56, 06-Mar-2023
245,Revenue,CAHD,18-25 Year Olds,Other Small Contracts,Aspirations,145.32, 06-Mar-2023
246,Revenue,CAHD,18-25 Year Olds,Supported Living,Aspirations,736.98, 06-Mar-2023
247,Revenue,CAHD,18-25 Year Olds,Supported Living,Aspirations,871.92, 06-Mar-2023
248,Revenue,CAHD,Central - Commissioned Services,Other Small Contracts,Aspirations,50.88, 06-Mar-2023
249,Revenue,CAHD,Central - Commissioned Services,Other Small Contracts,Aspirations,539.76, 06-Mar-2023
250,Revenue,CAHD,Central - Commissioned Services,Other Small Contracts,Aspirations,228.36, 06-Mar-2023
251,Revenue,CAHD,South - Commissioned Services,Other Small Contracts,Aspirations,1825.2, 06-Mar-2023
252,Revenue,CAHD,South - Commissioned Services,Other Small Contracts,Aspirations,166.08, 06-Mar-2023
253,Revenue,CAHD,South - Commissioned Services,Other Small Contracts,Aspirations,89.04, 06-Mar-2023
254,Revenue,CAHD,South - Commissioned Services,Other Small Contracts,Aspirations,269.88, 06-Mar-2023
255,Revenue,CAHD,South - Commissioned Services,Supported Living,Aspirations,373.68, 06-Mar-2023
256,Revenue,CAHD,South - Commissioned Services,Supported Living,Aspirations,584.64, 06-Mar-2023
257,Revenue,CAHD,South - Commissioned Services,Supported Living,Aspirations,332.16, 06-Mar-2023
258,Revenue,CAHD,South - Commissioned Services,Supported Living,Aspirations,1598.52, 06-Mar-2023
259,Revenue,CAHD,South - Commissioned Services,Supported Living,Aspirations,249.12, 06-Mar-2023
260,Revenue,CAHD,South - Commissioned Services,Supported Living,Aspirations,352.92, 06-Mar-2023
261,Revenue,CAHD,South - Commissioned Services,Supported Living,Aspirations,766.8, 06-Mar-2023
262,Revenue,CAHD,South - Commissioned Services,Supported Living,Aspirations,972, 06-Mar-2023
263,Revenue,CAHD,South - Commissioned Services,Supported Living,Aspirations,259.5, 06-Mar-2023
264,Revenue,CAHD,South - Commissioned Services,Supported Living,Aspirations,228.36, 06-Mar-2023
265,Revenue,CAHD,South - Commissioned Services,Supported Living,Aspirations,2790.39, 06-Mar-2023
266,Revenue,CAHD,South - Commissioned Services,Supported Living,Aspirations,93.42, 06-Mar-2023
267,Revenue,CAHD,South - Commissioned Services,Supported Living,Aspirations,62.28, 06-Mar-2023
268,Revenue,CAHD,South - Commissioned Services,Supported Living,Aspirations,124.56, 06-Mar-2023
269,Revenue,CAHD,South - Commissioned Services,Supported Living,Aspirations,1328.64, 06-Mar-2023
270,Revenue,CAHD,South - Commissioned Services,Supported Living,Aspirations,477.48, 06-Mar-2023
271,Revenue,CAHD,South - Commissioned Services,Supported Living,Aspirations,2909.76, 06-Mar-2023
272,Revenue,CAHD,South - Commissioned Services,Supported Living,Aspirations,3219.11, 06-Mar-2023
273,Revenue,CAHD,South - Commissioned Services,Supported Living,Aspirations,1951.44, 06-Mar-2023
274,Revenue,CAHD,South - Commissioned Services,Supported Living,Aspirations,498.24, 06-Mar-2023
275,Revenue,CAHD,South - Commissioned Services,Mentoring,Aspirations,101.76, 06-Mar-2023
276,Revenue,CAHD,South - Commissioned Services,Mentoring,Aspirations,50.88, 06-Mar-2023
277,Revenue,CAHD,North - Community based support,Other Small Contracts,Aspirations,584.64, 06-Mar-2023
278,Revenue,CAHD,North - Community based support,Supported Living,Aspirations,2325.12, 06-Mar-2023
279,Revenue,CAHD,18-25 Year Olds,Other Small Contracts,Aspirations,124.56, 08-Mar-2023
280,Revenue,CAHD,18-25 Year Olds,Other Small Contracts,Aspirations,124.56, 08-Mar-2023
281,Revenue,CAHD,18-25 Year Olds,Other Small Contracts,Aspirations,83.04, 08-Mar-2023
282,Revenue,CAHD,18-25 Year Olds,Other Small Contracts,Aspirations,124.56, 08-Mar-2023
283,Revenue,CAHD,18-25 Year Olds,Other Small Contracts,Aspirations,145.32, 08-Mar-2023
284,Revenue,CAHD,18-25 Year Olds,Supported Living,Aspirations,736.98, 08-Mar-2023
285,Revenue,CAHD,18-25 Year Olds,Supported Living,Aspirations,871.92, 08-Mar-2023
286,Revenue,CAHD,Central - Commissioned Services,Other Small Contracts,Aspirations,50.88, 08-Mar-2023
287,Revenue,CAHD,Central - Commissioned Services,Other Small Contracts,Aspirations,581.28, 08-Mar-2023
288,Revenue,CAHD,Central - Commissioned Services,Other Small Contracts,Aspirations,228.36, 08-Mar-2023
289,Revenue,CAHD,South - Commissioned Services,Other Small Contracts,Aspirations,1825.2, 08-Mar-2023
290,Revenue,CAHD,South - Commissioned Services,Other Small Contracts,Aspirations,166.08, 08-Mar-2023
291,Revenue,CAHD,South - Commissioned Services,Other Small Contracts,Aspirations,89.04, 08-Mar-2023
292,Revenue,CAHD,South - Commissioned Services,Other Small Contracts,Aspirations,269.88, 08-Mar-2023
293,Revenue,CAHD,South - Commissioned Services,Supported Living,Aspirations,373.68, 08-Mar-2023
294,Revenue,CAHD,South - Commissioned Services,Supported Living,Aspirations,584.64, 08-Mar-2023
295,Revenue,CAHD,South - Commissioned Services,Supported Living,Aspirations,332.16, 08-Mar-2023
296,Revenue,CAHD,South - Commissioned Services,Supported Living,Aspirations,1598.52, 08-Mar-2023
297,Revenue,CAHD,South - Commissioned Services,Supported Living,Aspirations,238.74, 08-Mar-2023
298,Revenue,CAHD,South - Commissioned Services,Supported Living,Aspirations,352.92, 08-Mar-2023
299,Revenue,CAHD,South - Commissioned Services,Supported Living,Aspirations,766.8, 08-Mar-2023
300,Revenue,CAHD,South - Commissioned Services,Supported Living,Aspirations,972, 08-Mar-2023
301,Revenue,CAHD,South - Commissioned Services,Supported Living,Aspirations,259.5, 08-Mar-2023
302,Revenue,CAHD,South - Commissioned Services,Supported Living,Aspirations,228.36, 08-Mar-2023
303,Revenue,CAHD,South - Commissioned Services,Supported Living,Aspirations,2816.34, 08-Mar-2023
304,Revenue,CAHD,South - Commissioned Services,Supported Living,Aspirations,134.94, 08-Mar-2023
305,Revenue,CAHD,South - Commissioned Services,Supported Living,Aspirations,166.08, 08-Mar-2023
306,Revenue,CAHD,South - Commissioned Services,Supported Living,Aspirations,124.56, 08-Mar-2023
307,Revenue,CAHD,South - Commissioned Services,Supported Living,Aspirations,1328.64, 08-Mar-2023
308,Revenue,CAHD,South - Commissioned Services,Supported Living,Aspirations,477.48, 08-Mar-2023
309,Revenue,CAHD,South - Commissioned Services,Supported Living,Aspirations,2909.76, 08-Mar-2023
310,Revenue,CAHD,South - Commissioned Services,Supported Living,Aspirations,3285.53, 08-Mar-2023
311,Revenue,CAHD,South - Commissioned Services,Supported Living,Aspirations,1816.5, 08-Mar-2023
312,Revenue,CAHD,South - Commissioned Services,Supported Living,Aspirations,498.24, 08-Mar-2023
313,Revenue,CAHD,South - Commissioned Services,Mentoring,Aspirations,101.76, 08-Mar-2023
314,Revenue,CAHD,South - Commissioned Services,Mentoring,Aspirations,50.88, 08-Mar-2023
315,Revenue,CAHD,North - Community based support,Other Small Contracts,Aspirations,584.64, 08-Mar-2023
316,Revenue,CAHD,North - Community based support,Supported Living,Aspirations,2325.12, 08-Mar-2023
317,Revenue,CAHD,18-25 Year Olds,Other Small Contracts,Aspirations,124.56, 09-Mar-2023
318,Revenue,CAHD,18-25 Year Olds,Other Small Contracts,Aspirations,124.56, 09-Mar-2023
319,Revenue,CAHD,18-25 Year Olds,Other Small Contracts,Aspirations,83.04, 09-Mar-2023
320,Revenue,CAHD,18-25 Year Olds,Other Small Contracts,Aspirations,124.56, 09-Mar-2023
321,Revenue,CAHD,18-25 Year Olds,Other Small Contracts,Aspirations,145.32, 09-Mar-2023
322,Revenue,CAHD,18-25 Year Olds,Supported Living,Aspirations,736.98, 09-Mar-2023
323,Revenue,CAHD,18-25 Year Olds,Supported Living,Aspirations,871.92, 09-Mar-2023
324,Revenue,CAHD,Central - Commissioned Services,Other Small Contracts,Aspirations,50.88, 09-Mar-2023
325,Revenue,CAHD,Central - Commissioned Services,Other Small Contracts,Aspirations,435.96, 09-Mar-2023
326,Revenue,CAHD,Central - Commissioned Services,Other Small Contracts,Aspirations,155.7, 09-Mar-2023
327,Revenue,CAHD,South - Commissioned Services,Other Small Contracts,Aspirations,1825.2, 09-Mar-2023
328,Revenue,CAHD,South - Commissioned Services,Other Small Contracts,Aspirations,166.08, 09-Mar-2023
329,Revenue,CAHD,South - Commissioned Services,Other Small Contracts,Aspirations,228.36, 09-Mar-2023
330,Revenue,CAHD,South - Commissioned Services,Supported Living,Aspirations,373.68, 09-Mar-2023
331,Revenue,CAHD,South - Commissioned Services,Supported Living,Aspirations,584.64, 09-Mar-2023
332,Revenue,CAHD,South - Commissioned Services,Supported Living,Aspirations,332.16, 09-Mar-2023
333,Revenue,CAHD,South - Commissioned Services,Supported Living,Aspirations,1598.52, 09-Mar-2023
334,Revenue,CAHD,South - Commissioned Services,Supported Living,Aspirations,249.12, 09-Mar-2023
335,Revenue,CAHD,South - Commissioned Services,Supported Living,Aspirations,352.92, 09-Mar-2023
336,Revenue,CAHD,South - Commissioned Services,Supported Living,Aspirations,766.8, 09-Mar-2023
337,Revenue,CAHD,South - Commissioned Services,Supported Living,Aspirations,842.4, 09-Mar-2023
338,Revenue,CAHD,South - Commissioned Services,Supported Living,Aspirations,259.5, 09-Mar-2023
339,Revenue,CAHD,South - Commissioned Services,Supported Living,Aspirations,228.36, 09-Mar-2023
340,Revenue,CAHD,South - Commissioned Services,Supported Living,Aspirations,2909.76, 09-Mar-2023
341,Revenue,CAHD,South - Commissioned Services,Supported Living,Aspirations,51.9, 09-Mar-2023
342,Revenue,CAHD,South - Commissioned Services,Supported Living,Aspirations,62.28, 09-Mar-2023
343,Revenue,CAHD,South - Commissioned Services,Supported Living,Aspirations,124.56, 09-Mar-2023
344,Revenue,CAHD,South - Commissioned Services,Supported Living,Aspirations,1318.26, 09-Mar-2023
345,Revenue,CAHD,South - Commissioned Services,Supported Living,Aspirations,415.2, 09-Mar-2023
346,Revenue,CAHD,South - Commissioned Services,Supported Living,Aspirations,2907.15, 09-Mar-2023
347,Revenue,CAHD,South - Commissioned Services,Supported Living,Aspirations,3342.07, 09-Mar-2023
348,Revenue,CAHD,South - Commissioned Services,Supported Living,Aspirations,1889.16, 09-Mar-2023
349,Revenue,CAHD,South - Commissioned Services,Supported Living,Aspirations,498.24, 09-Mar-2023
350,Revenue,CAHD,South - Commissioned Services,Mentoring,Aspirations,101.76, 09-Mar-2023
351,Revenue,CAHD,South - Commissioned Services,Mentoring,Aspirations,50.88, 09-Mar-2023
352,Revenue,CAHD,North - Community based support,Other Small Contracts,Aspirations,584.64, 09-Mar-2023
353,Revenue,CAHD,North - Community based support,Supported Living,Aspirations,2325.12, 09-Mar-2023
354,Revenue,CAHD,18-25 Year Olds,Other Small Contracts,Aspirations,207.6, 28-Mar-2023
355,Revenue,CAHD,18-25 Year Olds,Other Small Contracts,Aspirations,249.12, 28-Mar-2023
356,Revenue,CAHD,18-25 Year Olds,Other Small Contracts,Aspirations,166.08, 28-Mar-2023
357,Revenue,CAHD,18-25 Year Olds,Other Small Contracts,Aspirations,249.12, 28-Mar-2023
358,Revenue,CAHD,18-25 Year Olds,Other Small Contracts,Aspirations,290.64, 28-Mar-2023
359,Revenue,CAHD,18-25 Year Olds,Supported Living,Aspirations,1370.16, 28-Mar-2023
360,Revenue,CAHD,18-25 Year Olds,Supported Living,Aspirations,1743.84, 28-Mar-2023
361,Revenue,CAHD,Central - Commissioned Services,Other Small Contracts,Aspirations,101.76, 28-Mar-2023
362,Revenue,CAHD,Central - Commissioned Services,Other Small Contracts,Aspirations,1162.56, 28-Mar-2023
363,Revenue,CAHD,Central - Commissioned Services,Other Small Contracts,Aspirations,456.72, 28-Mar-2023
364,Revenue,CAHD,South - Commissioned Services,Other Small Contracts,Aspirations,3650.4, 28-Mar-2023
365,Revenue,CAHD,South - Commissioned Services,Other Small Contracts,Aspirations,332.16, 28-Mar-2023
366,Revenue,CAHD,South - Commissioned Services,Other Small Contracts,Aspirations,178.08, 28-Mar-2023
367,Revenue,CAHD,South - Commissioned Services,Other Small Contracts,Aspirations,539.76, 28-Mar-2023
368,Revenue,CAHD,South - Commissioned Services,Supported Living,Aspirations,685.08, 28-Mar-2023
369,Revenue,CAHD,South - Commissioned Services,Supported Living,Aspirations,1169.28, 28-Mar-2023
370,Revenue,CAHD,South - Commissioned Services,Supported Living,Aspirations,664.32, 28-Mar-2023
371,Revenue,CAHD,South - Commissioned Services,Supported Living,Aspirations,3197.04, 28-Mar-2023
372,Revenue,CAHD,South - Commissioned Services,Supported Living,Aspirations,477.48, 28-Mar-2023
373,Revenue,CAHD,South - Commissioned Services,Supported Living,Aspirations,705.84, 28-Mar-2023
374,Revenue,CAHD,South - Commissioned Services,Supported Living,Aspirations,1425.6, 28-Mar-2023
375,Revenue,CAHD,South - Commissioned Services,Supported Living,Aspirations,1944, 28-Mar-2023
376,Revenue,CAHD,South - Commissioned Services,Supported Living,Aspirations,519, 28-Mar-2023
377,Revenue,CAHD,South - Commissioned Services,Supported Living,Aspirations,456.72, 28-Mar-2023
378,Revenue,CAHD,South - Commissioned Services,Supported Living,Aspirations,5705.34, 28-Mar-2023
379,Revenue,CAHD,South - Commissioned Services,Supported Living,Aspirations,228.36, 28-Mar-2023
380,Revenue,CAHD,South - Commissioned Services,Supported Living,Aspirations,166.08, 28-Mar-2023
381,Revenue,CAHD,South - Commissioned Services,Supported Living,Aspirations,249.12, 28-Mar-2023
382,Revenue,CAHD,South - Commissioned Services,Supported Living,Aspirations,2522.34, 28-Mar-2023
383,Revenue,CAHD,South - Commissioned Services,Supported Living,Aspirations,954.96, 28-Mar-2023
384,Revenue,CAHD,South - Commissioned Services,Supported Living,Aspirations,5806.53, 28-Mar-2023
385,Revenue,CAHD,South - Commissioned Services,Supported Living,Aspirations,6208.59, 28-Mar-2023
386,Revenue,CAHD,South - Commissioned Services,Supported Living,Aspirations,3498.06, 28-Mar-2023
387,Revenue,CAHD,South - Commissioned Services,Supported Living,Aspirations,996.48, 28-Mar-2023
388,Revenue,CAHD,South - Commissioned Services,Mentoring,Aspirations,203.52, 28-Mar-2023
389,Revenue,CAHD,South - Commissioned Services,Mentoring,Aspirations,101.76, 28-Mar-2023
390,Revenue,CAHD,North - Community based support,Other Small Contracts,Aspirations,1158.96, 28-Mar-2023
391,Revenue,CAHD,North - Community based support,Supported Living,Aspirations,249.12, 28-Mar-2023
392,Revenue,CAHD,North - Community based support,Supported Living,Aspirations,4650.24, 28-Mar-2023
393,Revenue,CAHD,18-25 Year Olds,Other Small Contracts,Aspirations,124.56, 29-Mar-2023
394,Revenue,CAHD,18-25 Year Olds,Other Small Contracts,Aspirations,124.56, 29-Mar-2023
395,Revenue,CAHD,18-25 Year Olds,Other Small Contracts,Aspirations,83.04, 29-Mar-2023
396,Revenue,CAHD,18-25 Year Olds,Other Small Contracts,Aspirations,124.56, 29-Mar-2023
397,Revenue,CAHD,18-25 Year Olds,Other Small Contracts,Aspirations,145.32, 29-Mar-2023
398,Revenue,CAHD,18-25 Year Olds,Supported Living,Aspirations,736.98, 29-Mar-2023
399,Revenue,CAHD,18-25 Year Olds,Supported Living,Aspirations,871.92, 29-Mar-2023
400,Revenue,CAHD,Central - Commissioned Services,Other Small Contracts,Aspirations,50.88, 29-Mar-2023
401,Revenue,CAHD,Central - Commissioned Services,Other Small Contracts,Aspirations,581.28, 29-Mar-2023
402,Revenue,CAHD,Central - Commissioned Services,Other Small Contracts,Aspirations,228.36, 29-Mar-2023
403,Revenue,CAHD,South - Commissioned Services,Other Small Contracts,Aspirations,1825.2, 29-Mar-2023
404,Revenue,CAHD,South - Commissioned Services,Other Small Contracts,Aspirations,166.08, 29-Mar-2023
405,Revenue,CAHD,South - Commissioned Services,Other Small Contracts,Aspirations,89.04, 29-Mar-2023
406,Revenue,CAHD,South - Commissioned Services,Other Small Contracts,Aspirations,228.36, 29-Mar-2023
407,Revenue,CAHD,South - Commissioned Services,Supported Living,Aspirations,373.68, 29-Mar-2023
408,Revenue,CAHD,South - Commissioned Services,Supported Living,Aspirations,584.64, 29-Mar-2023
409,Revenue,CAHD,South - Commissioned Services,Supported Living,Aspirations,332.16, 29-Mar-2023
410,Revenue,CAHD,South - Commissioned Services,Supported Living,Aspirations,1557, 29-Mar-2023
411,Revenue,CAHD,South - Commissioned Services,Supported Living,Aspirations,249.12, 29-Mar-2023
412,Revenue,CAHD,South - Commissioned Services,Supported Living,Aspirations,352.92, 29-Mar-2023
413,Revenue,CAHD,South - Commissioned Services,Supported Living,Aspirations,658.8, 29-Mar-2023
414,Revenue,CAHD,South - Commissioned Services,Supported Living,Aspirations,972, 29-Mar-2023
415,Revenue,CAHD,South - Commissioned Services,Supported Living,Aspirations,259.5, 29-Mar-2023
416,Revenue,CAHD,South - Commissioned Services,Supported Living,Aspirations,114.18, 29-Mar-2023
417,Revenue,CAHD,South - Commissioned Services,Supported Living,Aspirations,2795.58, 29-Mar-2023
418,Revenue,CAHD,South - Commissioned Services,Supported Living,Aspirations,134.94, 29-Mar-2023
419,Revenue,CAHD,South - Commissioned Services,Supported Living,Aspirations,103.8, 29-Mar-2023
420,Revenue,CAHD,South - Commissioned Services,Supported Living,Aspirations,124.56, 29-Mar-2023
421,Revenue,CAHD,South - Commissioned Services,Supported Living,Aspirations,1276.74, 29-Mar-2023
422,Revenue,CAHD,South - Commissioned Services,Supported Living,Aspirations,477.48, 29-Mar-2023
423,Revenue,CAHD,South - Commissioned Services,Supported Living,Aspirations,2912.34, 29-Mar-2023
424,Revenue,CAHD,South - Commissioned Services,Supported Living,Aspirations,2992.57, 29-Mar-2023
425,Revenue,CAHD,South - Commissioned Services,Supported Living,Aspirations,1847.64, 29-Mar-2023
426,Revenue,CAHD,South - Commissioned Services,Supported Living,Aspirations,498.24, 29-Mar-2023
427,Revenue,CAHD,South - Commissioned Services,Mentoring,Aspirations,101.76, 29-Mar-2023
428,Revenue,CAHD,South - Commissioned Services,Mentoring,Aspirations,50.88, 29-Mar-2023
429,Revenue,CAHD,North - Community based support,Other Small Contracts,Aspirations,584.64, 29-Mar-2023
430,Revenue,CAHD,North - Community based support,Supported Living,Aspirations,373.68, 29-Mar-2023
431,Revenue,CAHD,North - Community based support,Supported Living,Aspirations,1659.84, 29-Mar-2023
432,Revenue,CAHD,Shared Lives,Other Supplies & Services,Ategi Limited,56760.25, 31-Mar-2023
433,Revenue,CAHD,18-25 Year Olds,Adults - Family Support,Ategi Limited,264, 07-Mar-2023
434,Revenue,CAHD,18-25 Year Olds,Adults - Family Support,Ategi Limited,88, 07-Mar-2023
435,Revenue,CAHD,18-25 Year Olds,Adults - Family Support,Ategi Limited,2806.24, 07-Mar-2023
436,Revenue,CAHD,18-25 Year Olds,Adults - Family Support,Ategi Limited,792, 07-Mar-2023
437,Revenue,CAHD,18-25 Year Olds,Adults - Family Support,Ategi Limited,1695.36, 07-Mar-2023
438,Revenue,CAHD,18-25 Year Olds,Respite Care,Ategi Limited,0, 07-Mar-2023
439,Revenue,CAHD,18-25 Year Olds,Respite Care,Ategi Limited,0, 07-Mar-2023
440,Revenue,CAHD,18-25 Year Olds,Respite Care,Ategi Limited,0, 07-Mar-2023
441,Revenue,CAHD,Central - Commissioned Services,Adults - Family Support,Ategi Limited,540.58, 07-Mar-2023
442,Revenue,CAHD,South - Commissioned Services,Adults - Family Support,Ategi Limited,1695.36, 07-Mar-2023
443,Revenue,CAHD,South - Commissioned Services,Adults - Family Support,Ategi Limited,2424.64, 07-Mar-2023
444,Revenue,CAHD,South - Commissioned Services,Adults - Family Support,Ategi Limited,264, 07-Mar-2023
445,Revenue,CAHD,South - Commissioned Services,Adults - Family Support,Ategi Limited,2424.64, 07-Mar-2023
446,Revenue,CAHD,South - Commissioned Services,Adults - Family Support,Ategi Limited,1695.36, 07-Mar-2023
447,Revenue,CAHD,South - Commissioned Services,Adults - Family Support,Ategi Limited,176, 07-Mar-2023
448,Revenue,CAHD,South - Commissioned Services,Respite Care,Ategi Limited,0, 07-Mar-2023
449,Revenue,CAHD,South - Commissioned Services,Respite Care,Ategi Limited,0, 07-Mar-2023
450,Revenue,CAHD,South - Commissioned Services,Respite Care,Ategi Limited,0, 07-Mar-2023
451,Revenue,CAHD,North - Community based support,Adults - Family Support,Ategi Limited,1695.36, 07-Mar-2023
452,Revenue,CAHD,North - Community based support,Adults - Family Support,Ategi Limited,1695.36, 07-Mar-2023
453,Revenue,CAHD,North - Community based support,Respite Care,Ategi Limited,0, 07-Mar-2023
454,Revenue,CAHD,North - Community based support,Respite Care,Ategi Limited,0, 07-Mar-2023
455,Revenue,CAHD,Schools Specific Grant Income,Other Public Bodies,Athelstan Trust,550, 15-Mar-2023
456,Revenue,CAHD,Schools Specific Grant Income,Other Public Bodies,Athelstan Trust,550, 15-Mar-2023
457,Revenue,CAHD,Homes For Ukraine School Support,Other Public Bodies,Athelstan Trust,1850, 17-Mar-2023
458,Revenue,CAHD,Homes For Ukraine School Support,Other Public Bodies,Athelstan Trust,1387.5, 17-Mar-2023
459,Revenue,CAHD,Statemented Support Academies,Other Public Bodies,Athelstan Trust,740, 23-Mar-2023
460,Revenue,CAHD,Statemented Support Academies,Other Public Bodies,Athelstan Trust,1012.67, 23-Mar-2023
461,Revenue,CAHD,Statemented Support Academies,Other Public Bodies,Athelstan Trust,740, 23-Mar-2023
462,Revenue,CAHD,Statemented Support Academies,Other Public Bodies,Athelstan Trust,740, 23-Mar-2023
463,Revenue,CAHD,Statemented Support Academies,Other Public Bodies,Athelstan Trust,740, 23-Mar-2023
464,Revenue,CAHD,Statemented Support Academies,Other Public Bodies,Athelstan Trust,740, 23-Mar-2023
465,Revenue,CAHD,Statemented Support Academies,Other Public Bodies,Athelstan Trust,740, 23-Mar-2023
466,Revenue,CAHD,Statemented Support Academies,Other Public Bodies,Athelstan Trust,740, 23-Mar-2023
467,Revenue,CAHD,CSC - CLA Placements,Supported Living,Athelstan Trust,4670.65, 27-Mar-2023
468,Revenue,CAHD,Statemented Support Academies,Other Public Bodies,Athelstan Trust,17570.6, 27-Mar-2023
469,Revenue,CAHD,Statemented Support Academies,Other Public Bodies,Athelstan Trust,633.37, 23-Mar-2023
470,Revenue,CAHD,Academy Resource Base Funding,Other Public Bodies,Athelstan Trust,1698.64, 22-Mar-2023
471,Revenue,CAHD,Statemented Support Academies,Other Public Bodies,Athelstan Trust,508.29, 23-Mar-2023
472,Revenue,CAHD,Statemented Support Academies,Other Public Bodies,Athelstan Trust,1271.91, 23-Mar-2023
473,Revenue,CAHD,Statemented Support Academies,Other Public Bodies,Athelstan Trust,694.27, 23-Mar-2023
474,Revenue,CAHD,Statemented Support Academies,Other Public Bodies,Athelstan Trust,838.92, 23-Mar-2023
475,Revenue,CAHD,Academy Resource Base Funding,Other Public Bodies,Athelstan Trust,1423.6, 22-Mar-2023
476,Revenue,CAHD,Academy Resource Base Funding,Other Public Bodies,Athelstan Trust,1186.24, 22-Mar-2023
477,Revenue,CAHD,Academy Resource Base Funding,Other Public Bodies,Athelstan Trust,1186.24, 22-Mar-2023
478,Revenue,CAHD,Academy Resource Base Funding,Other Public Bodies,Athelstan Trust,1186.24, 22-Mar-2023
479,Revenue,CAHD,Academy Resource Base Funding,Other Public Bodies,Athelstan Trust,1423.6, 22-Mar-2023
480,Revenue,CAHD,Academy Resource Base Funding,Other Public Bodies,Athelstan Trust,1423.6, 22-Mar-2023
481,Revenue,CAHD,Academy Resource Base Funding,Other Public Bodies,Athelstan Trust,1423.6, 22-Mar-2023
482,Revenue,CAHD,Academy Resource Base Funding,Other Public Bodies,Athelstan Trust,1423.6, 22-Mar-2023
483,Revenue,CAHD,Academy Resource Base Funding,Other Public Bodies,Athelstan Trust,1186.24, 22-Mar-2023
484,Revenue,CAHD,Academy Resource Base Funding,Other Public Bodies,Athelstan Trust,1423.6, 22-Mar-2023
485,Revenue,CAHD,Academy Resource Base Funding,Other Public Bodies,Athelstan Trust,1423.6, 22-Mar-2023
486,Revenue,CAHD,Academy Resource Base Funding,Other Public Bodies,Athelstan Trust,1186.24, 22-Mar-2023
487,Revenue,CAHD,Academy Resource Base Funding,Other Public Bodies,Athelstan Trust,12158.17, 22-Mar-2023
488,Revenue,CAHD,Statemented Support Academies,Other Public Bodies,Athelstan Trust,553.83, 23-Mar-2023
489,Revenue,CAHD,Independent Special Placements - Pre 16,Other Private Contractors,Aurora Severnside School,12592, 09-Mar-2023
490,Revenue,CAHD,South - Commissioned Services,Permanent Residential,Autism Specialised Care Homes,6506.88, 07-Mar-2023
491,Revenue,CAHD,South - Commissioned Services,Fees & Charges Income - General,Autism Specialised Care Homes,-438.8, 07-Mar-2023
492,Revenue,CAHD,CSC - Adoption Support Fund,Post Adoption,Individual,676, 07-Mar-2023
493,Revenue,CAHD,Younger Adult Mental Health,Health Services (Third Party Payments),Avon & Wiltshire Mental Health,14583, 01-Mar-2023
494,Revenue,CAHD,Younger Adult Mental Health,Health Services (Third Party Payments),Avon & Wiltshire Mental Health,3279, 14-Mar-2023
495,Revenue,CAHD,Younger Adult Mental Health,Agency Staff (Operational)/PCT Pay,Avon & Wiltshire Mental Health,5738, 28-Mar-2023
496,Revenue,CAHD,Younger Adult Mental Health,Other Supplies & Services,Avon & Wiltshire Mental Health,528.02, 30-Mar-2023
497,Revenue,CAHD,South Glos Users in South Glos Homes,Permanent Nursing,Avon Lodge Care Centre,836.76, 07-Mar-2023
498,Revenue,CAHD,South Glos Users in South Glos Homes,Permanent Nursing,Avon Lodge Care Centre,836.76, 07-Mar-2023
499,Revenue,CAHD,South Glos Users in South Glos Homes,Permanent Nursing,Avon Lodge Care Centre,836.76, 07-Mar-2023
500,Revenue,CAHD,South Glos Users in South Glos Homes,Permanent Nursing,Avon Lodge Care Centre,836.76, 07-Mar-2023
501,Revenue,CAHD,South Glos Users in South Glos Homes,Permanent Nursing,Avon Lodge Care Centre,-1733.29, 07-Mar-2023
502,Revenue,CAHD,South Glos Users in South Glos Homes,Permanent Nursing,Avon Lodge Care Centre,836.76, 07-Mar-2023
503,Revenue,CAHD,South Glos Users in South Glos Homes,Permanent Nursing,Avon Lodge Care Centre,836.76, 07-Mar-2023
504,Revenue,CAHD,South Glos Users in South Glos Homes,Permanent Nursing,Avon Lodge Care Centre,836.76, 07-Mar-2023
505,Revenue,CAHD,South Glos Users in South Glos Homes,Permanent Nursing,Avon Lodge Care Centre,4482.64, 07-Mar-2023
506,Revenue,CAHD,South Glos Users in South Glos Homes,Permanent Nursing,Avon Lodge Care Centre,836.76, 07-Mar-2023
507,Revenue,CAHD,South Glos Users in South Glos Homes,Permanent Nursing,Avon Lodge Care Centre,836.76, 07-Mar-2023
508,Revenue,CAHD,South Glos Users in South Glos Homes,Permanent Nursing,Avon Lodge Care Centre,836.76, 07-Mar-2023
509,Revenue,CAHD,South Glos Users in South Glos Homes,Permanent Nursing,Avon Lodge Care Centre,836.76, 07-Mar-2023
510,Revenue,CAHD,South Glos Users in South Glos Homes,Permanent Nursing,Avon Lodge Care Centre,836.76, 07-Mar-2023
511,Revenue,CAHD,South Glos Users in South Glos Homes,Permanent Nursing,Avon Lodge Care Centre,836.76, 07-Mar-2023
512,Revenue,CAHD,South Glos Users in South Glos Homes,Permanent Nursing,Avon Lodge Care Centre,836.76, 07-Mar-2023
513,Revenue,CAHD,South Glos Users in South Glos Homes,Permanent Nursing,Avon Lodge Care Centre,836.76, 07-Mar-2023
514,Revenue,CAHD,South Glos Users in South Glos Homes,Permanent Nursing,Avon Lodge Care Centre,836.76, 07-Mar-2023
515,Revenue,CAHD,South Glos Users in South Glos Homes,Permanent Nursing,Avon Lodge Care Centre,-574.57, 07-Mar-2023
516,Revenue,CAHD,South Glos Users in South Glos Homes,Permanent Nursing,Avon Lodge Care Centre,836.76, 07-Mar-2023
517,Revenue,CAHD,South Glos Users in South Glos Homes,Permanent Nursing,Avon Lodge Care Centre,836.76, 07-Mar-2023
518,Revenue,CAHD,South Glos Users in South Glos Homes,Permanent Nursing,Avon Lodge Care Centre,836.76, 07-Mar-2023
519,Revenue,CAHD,South Glos Users in South Glos Homes,Permanent Nursing,Avon Lodge Care Centre,836.76, 07-Mar-2023
520,Revenue,CAHD,South Glos Users in South Glos Homes,Permanent Nursing,Avon Lodge Care Centre,478.15, 07-Mar-2023
521,Revenue,CAHD,South Glos Users in South Glos Homes,Permanent Nursing,Avon Lodge Care Centre,836.76, 07-Mar-2023
522,Revenue,CAHD,South Glos Users in South Glos Homes,Permanent Nursing,Avon Lodge Care Centre,836.76, 07-Mar-2023
523,Revenue,CAHD,South Glos Users in South Glos Homes,Permanent Nursing,Avon Lodge Care Centre,836.76, 07-Mar-2023
524,Revenue,CAHD,South Glos Users in South Glos Homes,Permanent Nursing,Avon Lodge Care Centre,836.76, 07-Mar-2023
525,Revenue,CAHD,South Glos Users in South Glos Homes,Permanent Nursing,Avon Lodge Care Centre,836.76, 07-Mar-2023
526,Revenue,CAHD,South Glos Users in South Glos Homes,Permanent Nursing,Avon Lodge Care Centre,4691.83, 07-Mar-2023
527,Revenue,CAHD,Central - Commissioned Services,Permanent Nursing,Avon Lodge Care Centre,-5445.13, 07-Mar-2023
528,Revenue,CAHD,Central - Commissioned Services,Permanent Nursing,Avon Lodge Care Centre,10127.42, 07-Mar-2023
529,Revenue,CAHD,Central - Commissioned Services,Permanent Nursing,Avon Lodge Care Centre,4296.48, 07-Mar-2023
530,Revenue,CAHD,Central - Commissioned Services,Fees & Charges Income - General,Avon Lodge Care Centre,1264.55, 07-Mar-2023
531,Revenue,CAHD,South - Commissioned Services,Respite Care,Avon Lodge Care Centre,0, 07-Mar-2023
532,Revenue,CAHD,South - Commissioned Services,Respite Care,Avon Lodge Care Centre,0, 07-Mar-2023
533,Revenue,CAHD,South - Commissioned Services,Respite Care,Avon Lodge Care Centre,0, 07-Mar-2023
534,Revenue,CAHD,South - Commissioned Services,Permanent Residential,Avon Lodge Care Centre,4296.48, 07-Mar-2023
535,Revenue,CAHD,South - Commissioned Services,Permanent Residential,Avon Lodge Care Centre,3318.24, 07-Mar-2023
536,Revenue,CAHD,South - Commissioned Services,Permanent Residential,Avon Lodge Care Centre,3800, 07-Mar-2023
537,Revenue,CAHD,South - Commissioned Services,Permanent Residential,Avon Lodge Care Centre,3816, 07-Mar-2023
538,Revenue,CAHD,South - Commissioned Services,Permanent Residential,Avon Lodge Care Centre,4296, 07-Mar-2023
539,Revenue,CAHD,South - Commissioned Services,Permanent Residential,Avon Lodge Care Centre,4296.48, 07-Mar-2023
540,Revenue,CAHD,South - Commissioned Services,Permanent Residential,Avon Lodge Care Centre,3667.6, 07-Mar-2023
541,Revenue,CAHD,South - Commissioned Services,Respite Planned - Residential,Avon Lodge Care Centre,-2301.42, 07-Mar-2023
542,Revenue,CAHD,South - Commissioned Services,Respite Planned - Residential,Avon Lodge Care Centre,-12948, 07-Mar-2023
543,Revenue,CAHD,South - Commissioned Services,Permanent Nursing,Avon Lodge Care Centre,4296.48, 07-Mar-2023
544,Revenue,CAHD,South - Commissioned Services,Permanent Nursing,Avon Lodge Care Centre,4028, 07-Mar-2023
545,Revenue,CAHD,South - Commissioned Services,Permanent Nursing,Avon Lodge Care Centre,460.34, 07-Mar-2023
546,Revenue,CAHD,South - Commissioned Services,Permanent Nursing,Avon Lodge Care Centre,4296.48, 07-Mar-2023
547,Revenue,CAHD,South - Commissioned Services,Permanent Nursing,Avon Lodge Care Centre,4296.48, 07-Mar-2023
548,Revenue,CAHD,South - Commissioned Services,Permanent Nursing,Avon Lodge Care Centre,5349.68, 07-Mar-2023
549,Revenue,CAHD,South - Commissioned Services,Permanent Nursing,Avon Lodge Care Centre,3539.44, 07-Mar-2023
550,Revenue,CAHD,South - Commissioned Services,Permanent Nursing,Avon Lodge Care Centre,3751.96, 07-Mar-2023
551,Revenue,CAHD,South - Commissioned Services,Permanent Nursing,Avon Lodge Care Centre,4210.12, 07-Mar-2023
552,Revenue,CAHD,South - Commissioned Services,Permanent Nursing,Avon Lodge Care Centre,4714.76, 07-Mar-2023
553,Revenue,CAHD,South - Commissioned Services,Permanent Nursing,Avon Lodge Care Centre,4775.44, 07-Mar-2023
554,Revenue,CAHD,South - Commissioned Services,Permanent Nursing,Avon Lodge Care Centre,4674.92, 07-Mar-2023
555,Revenue,CAHD,South - Commissioned Services,Permanent Nursing,Avon Lodge Care Centre,4143.03, 07-Mar-2023
556,Revenue,CAHD,South - Commissioned Services,Permanent Nursing,Avon Lodge Care Centre,4664, 07-Mar-2023
557,Revenue,CAHD,South - Commissioned Services,Permanent Nursing,Avon Lodge Care Centre,4296.48, 07-Mar-2023
558,Revenue,CAHD,South - Commissioned Services,Permanent Nursing,Avon Lodge Care Centre,4554.28, 07-Mar-2023
559,Revenue,CAHD,South - Commissioned Services,Permanent Nursing,Avon Lodge Care Centre,4296.48, 07-Mar-2023
560,Revenue,CAHD,South - Commissioned Services,Permanent Nursing,Avon Lodge Care Centre,4296.48, 07-Mar-2023
561,Revenue,CAHD,South - Commissioned Services,Permanent Nursing,Avon Lodge Care Centre,4449.93, 07-Mar-2023
562,Revenue,CAHD,South - Commissioned Services,Respite Planned - Nursing,Avon Lodge Care Centre,153.45, 07-Mar-2023
563,Revenue,CAHD,South - Commissioned Services,Respite Planned - Nursing,Avon Lodge Care Centre,2301.42, 07-Mar-2023
564,Revenue,CAHD,South - Commissioned Services,Respite Planned - Nursing,Avon Lodge Care Centre,612.64, 07-Mar-2023
565,Revenue,CAHD,South - Commissioned Services,Respite Planned - Nursing,Avon Lodge Care Centre,12889.44, 07-Mar-2023
566,Revenue,CAHD,South - Commissioned Services,Fees & Charges Income - General,Avon Lodge Care Centre,-1468.52, 07-Mar-2023
567,Revenue,CAHD,South - Commissioned Services,Fees & Charges Income - General,Avon Lodge Care Centre,-679.8, 07-Mar-2023
568,Revenue,CAHD,South - Commissioned Services,Fees & Charges Income - General,Avon Lodge Care Centre,-1332.24, 07-Mar-2023
569,Revenue,CAHD,South - Commissioned Services,Fees & Charges Income - General,Avon Lodge Care Centre,-725.24, 07-Mar-2023
570,Revenue,CAHD,South - Commissioned Services,Fees & Charges Income - General,Avon Lodge Care Centre,-956.96, 07-Mar-2023
571,Revenue,CAHD,South - Commissioned Services,Fees & Charges Income - General,Avon Lodge Care Centre,-1066.12, 07-Mar-2023
572,Revenue,CAHD,South - Commissioned Services,Fees & Charges Income - General,Avon Lodge Care Centre,-1393.76, 07-Mar-2023
573,Revenue,CAHD,South - Commissioned Services,Fees & Charges Income - General,Avon Lodge Care Centre,-1525, 07-Mar-2023
574,Revenue,CAHD,South - Commissioned Services,Fees & Charges Income - General,Avon Lodge Care Centre,-438.8, 07-Mar-2023
575,Revenue,CAHD,South - Commissioned Services,Fees & Charges Income - General,Avon Lodge Care Centre,-1280.2, 07-Mar-2023
576,Revenue,CAHD,South - Commissioned Services,Fees & Charges Income - General,Avon Lodge Care Centre,-811.68, 07-Mar-2023
577,Revenue,CAHD,South - Commissioned Services,Fees & Charges Income - General,Avon Lodge Care Centre,-1017.44, 07-Mar-2023
578,Revenue,CAHD,South - Commissioned Services,Fees & Charges Income - General,Avon Lodge Care Centre,-852.32, 07-Mar-2023
579,Revenue,CAHD,South - Commissioned Services,Fees & Charges Income - General,Avon Lodge Care Centre,-1056.84, 07-Mar-2023
580,Revenue,CAHD,South - Commissioned Services,Fees & Charges Income - General,Avon Lodge Care Centre,-861.61, 07-Mar-2023
581,Revenue,CAHD,South - Commissioned Services,Fees & Charges Income - General,Avon Lodge Care Centre,-1889.12, 07-Mar-2023
582,Revenue,CAHD,South - Commissioned Services,Fees & Charges Income - General,Avon Lodge Care Centre,-1270, 07-Mar-2023
583,Revenue,CAHD,South - Commissioned Services,Fees & Charges Income - General,Avon Lodge Care Centre,-627.8, 07-Mar-2023
584,Revenue,CAHD,South - Commissioned Services,Fees & Charges Income - General,Avon Lodge Care Centre,-2411.48, 07-Mar-2023
585,Revenue,CAHD,South - Commissioned Services,Fees & Charges Income - General,Avon Lodge Care Centre,-1734.02, 07-Mar-2023
586,Revenue,CAHD,South - Commissioned Services,Fees & Charges Income - General,Avon Lodge Care Centre,-627.8, 07-Mar-2023
587,Revenue,CAHD,North - Community based support,Respite Care,Avon Lodge Care Centre,0, 07-Mar-2023
588,Revenue,CAHD,North - Community based support,Permanent Residential,Avon Lodge Care Centre,3751.96, 07-Mar-2023
589,Revenue,CAHD,North - Community based support,Permanent Nursing,Avon Lodge Care Centre,4553.76, 07-Mar-2023
590,Revenue,CAHD,North - Community based support,Permanent Nursing,Avon Lodge Care Centre,4296.48, 07-Mar-2023
591,Revenue,CAHD,North - Community based support,Permanent Nursing,Avon Lodge Care Centre,4120.64, 07-Mar-2023
592,Revenue,CAHD,North - Community based support,Respite Planned - Nursing,Avon Lodge Care Centre,-1737.07, 07-Mar-2023
593,Revenue,CAHD,North - Community based support,Fees & Charges Income - General,Avon Lodge Care Centre,-627.8, 07-Mar-2023
594,Revenue,CAHD,North - Community based support,Fees & Charges Income - General,Avon Lodge Care Centre,-1493.16, 07-Mar-2023
595,Revenue,CAHD,North - Community based support,Fees & Charges Income - General,Avon Lodge Care Centre,-794.36, 07-Mar-2023
596,Revenue,CAHD,South - Commissioned Services,Permanent Residential,Avon Valley Care Home,4294.16, 07-Mar-2023
597,Revenue,CAHD,South - Commissioned Services,Permanent Residential,Avon Valley Care Home,4483.8, 07-Mar-2023
598,Revenue,CAHD,South - Commissioned Services,Permanent Residential,Avon Valley Care Home,4294.16, 07-Mar-2023
599,Revenue,CAHD,South - Commissioned Services,Permanent Residential,Avon Valley Care Home,4526.2, 07-Mar-2023
600,Revenue,CAHD,South - Commissioned Services,Permanent Residential,Avon Valley Care Home,3214.08, 07-Mar-2023
601,Revenue,CAHD,South - Commissioned Services,Permanent Residential,Avon Valley Care Home,4483.8, 07-Mar-2023
602,Revenue,CAHD,South - Commissioned Services,Permanent Residential,Avon Valley Care Home,5190, 07-Mar-2023
603,Revenue,CAHD,South - Commissioned Services,Permanent Residential,Avon Valley Care Home,4728.28, 07-Mar-2023
604,Revenue,CAHD,South - Commissioned Services,Permanent Residential,Avon Valley Care Home,-1516.59, 07-Mar-2023
605,Revenue,CAHD,South - Commissioned Services,Permanent Residential,Avon Valley Care Home,3980, 07-Mar-2023
606,Revenue,CAHD,South - Commissioned Services,Permanent Residential,Avon Valley Care Home,4483.8, 07-Mar-2023
607,Revenue,CAHD,South - Commissioned Services,Permanent Residential,Avon Valley Care Home,3980, 07-Mar-2023
608,Revenue,CAHD,South - Commissioned Services,Permanent Residential,Avon Valley Care Home,4400, 07-Mar-2023
609,Revenue,CAHD,South - Commissioned Services,Permanent Residential,Avon Valley Care Home,4712, 07-Mar-2023
610,Revenue,CAHD,South - Commissioned Services,Fees & Charges Income - General,Avon Valley Care Home,-1009.24, 07-Mar-2023
611,Revenue,CAHD,South - Commissioned Services,Fees & Charges Income - General,Avon Valley Care Home,-1285.52, 07-Mar-2023
612,Revenue,CAHD,South - Commissioned Services,Fees & Charges Income - General,Avon Valley Care Home,-1040.32, 07-Mar-2023
613,Revenue,CAHD,South - Commissioned Services,Fees & Charges Income - General,Avon Valley Care Home,0, 07-Mar-2023
614,Revenue,CAHD,South - Commissioned Services,Fees & Charges Income - General,Avon Valley Care Home,-1666.84, 07-Mar-2023
615,Revenue,CAHD,South - Commissioned Services,Fees & Charges Income - General,Avon Valley Care Home,-663.8, 07-Mar-2023
616,Revenue,CAHD,South - Commissioned Services,Fees & Charges Income - General,Avon Valley Care Home,472.43, 07-Mar-2023
617,Revenue,CAHD,South - Commissioned Services,Fees & Charges Income - General,Avon Valley Care Home,-627.8, 07-Mar-2023
618,Revenue,CAHD,South - Commissioned Services,Fees & Charges Income - General,Avon Valley Care Home,-1175.92, 07-Mar-2023
619,Revenue,CAHD,South - Commissioned Services,Fees & Charges Income - General,Avon Valley Care Home,-793.84, 07-Mar-2023
620,Revenue,CAHD,South - Commissioned Services,Fees & Charges Income - General,Avon Valley Care Home,-1504.6, 07-Mar-2023
621,Revenue,CAHD,South - Commissioned Services,Fees & Charges Income - General,Avon Valley Care Home,-1557.16, 07-Mar-2023
622,Revenue,CAHD,North - Community based support,Permanent Residential,Avon Valley Care Home,4400, 07-Mar-2023
623,Revenue,CAHD,North - Community based support,Fees & Charges Income - General,Avon Valley Care Home,-895.2, 07-Mar-2023
624,Revenue,CAHD,South - S117,Permanent Residential,Avon Valley Care Home,4337.52, 07-Mar-2023
625,Revenue,CAHD,Cardio Vascular Disease - Risks,Other Supplies & Services,Avon Wildlife Trust,4500, 01-Mar-2023
626,Revenue,CAHD,South - Commissioned Services,Permanent Residential,Avonmere Care Home,3980, 07-Mar-2023
627,Revenue,CAHD,South - Commissioned Services,Fees & Charges Income - General,Avonmere Care Home,-992.44, 07-Mar-2023
628,Revenue,CAHD,North - Community based support,Permanent Residential,Avonmere Care Home,4140, 07-Mar-2023
629,Revenue,CAHD,North - Community based support,Permanent Residential,Avonmere Care Home,4140, 07-Mar-2023
630,Revenue,CAHD,North - Community based support,Permanent Residential,Avonmere Care Home,4960.8, 07-Mar-2023
631,Revenue,CAHD,North - Community based support,Permanent Residential,Avonmere Care Home,4876, 07-Mar-2023
632,Revenue,CAHD,North - Community based support,Permanent Residential,Avonmere Care Home,5784, 07-Mar-2023
633,Revenue,CAHD,North - Community based support,Permanent Residential,Avonmere Care Home,4140, 07-Mar-2023
634,Revenue,CAHD,North - Community based support,Permanent Residential,Avonmere Care Home,-1035, 07-Mar-2023
635,Revenue,CAHD,North - Community based support,Permanent Residential,Avonmere Care Home,13922.14, 07-Mar-2023
636,Revenue,CAHD,North - Community based support,Fees & Charges Income - General,Avonmere Care Home,-1045.44, 07-Mar-2023
637,Revenue,CAHD,North - Community based support,Fees & Charges Income - General,Avonmere Care Home,-12418.76, 07-Mar-2023
638,Revenue,CAHD,North - Community based support,Fees & Charges Income - General,Avonmere Care Home,-1090.32, 07-Mar-2023
639,Revenue,CAHD,North - Community based support,Fees & Charges Income - General,Avonmere Care Home,-1111.72, 07-Mar-2023
640,Revenue,CAHD,North - Community based support,Fees & Charges Income - General,Avonmere Care Home,-1258.2, 07-Mar-2023
641,Revenue,CAHD,North - Community based support,Fees & Charges Income - General,Avonmere Care Home,-1070.64, 07-Mar-2023
642,Revenue,CAHD,North - Community based support,Fees & Charges Income - General,Avonmere Care Home,249.35, 07-Mar-2023
643,Revenue,CAHD,North - Community based support,Fees & Charges Income - General,Avonmere Care Home,-4417.2, 07-Mar-2023
644,Revenue,CAHD,South - Commissioned Services,One-off Planned Direct Payment,Individual,543.52, 31-Mar-2023
645,Revenue,CAHD,North - Community based support,Permanent Nursing,Bamfield Lodge,5200, 07-Mar-2023
646,Revenue,CAHD,North - Community based support,Fees & Charges Income - General,Bamfield Lodge,-1168.04, 07-Mar-2023
647,Revenue,CAHD,Childrens - Safeguarding Board,Training Expenses,Barnardo Services Limited,900, 07-Mar-2023
648,Revenue,CAHD,Pensions - Non DSG,Unfunded Annual Pension,Bath & North East Somerset Council,95295.12, 10-Mar-2023
649,Revenue,CAHD,Early Years High Needs Support,Other Private Contractors,Bath Opportunity Pre School,3626.74, 22-Mar-2023
650,Revenue,CAHD,D2A spend on behalf of NHS,Publicity & Promotions,Bauer Radio Limited,600, 16-Mar-2023
651,Revenue,CAHD,Inclusion Support and Virtual School,Premises Hire,Bawa Healthcare & Leisure,610, 10-Mar-2023
652,Revenue,CAHD,Statemented Support Payments to OLAs,Other L.A.s - General,BCCS - Two Mile Hill Primary,897.42, 22-Mar-2023
653,Revenue,CAHD,KS2 Moderation,Other Public Bodies,BCCS Ashley Down Primary School,900, 14-Mar-2023
654,Revenue,CAHD,South Glos Users in South Glos Homes,Permanent Nursing,Beaufort Grange Care Home,836.76, 07-Mar-2023
655,Revenue,CAHD,South Glos Users in South Glos Homes,Permanent Nursing,Beaufort Grange Care Home,836.76, 07-Mar-2023
656,Revenue,CAHD,South Glos Users in South Glos Homes,Permanent Nursing,Beaufort Grange Care Home,836.76, 07-Mar-2023
657,Revenue,CAHD,South Glos Users in South Glos Homes,Permanent Nursing,Beaufort Grange Care Home,836.76, 07-Mar-2023
658,Revenue,CAHD,South Glos Users in South Glos Homes,Permanent Nursing,Beaufort Grange Care Home,836.76, 07-Mar-2023
659,Revenue,CAHD,South Glos Users in South Glos Homes,Permanent Nursing,Beaufort Grange Care Home,836.76, 07-Mar-2023
660,Revenue,CAHD,South Glos Users in South Glos Homes,Permanent Nursing,Beaufort Grange Care Home,836.76, 07-Mar-2023
661,Revenue,CAHD,South Glos Users in South Glos Homes,Permanent Nursing,Beaufort Grange Care Home,836.76, 07-Mar-2023
662,Revenue,CAHD,South Glos Users in South Glos Homes,Permanent Nursing,Beaufort Grange Care Home,836.76, 07-Mar-2023
663,Revenue,CAHD,South Glos Users in South Glos Homes,Permanent Nursing,Beaufort Grange Care Home,836.76, 07-Mar-2023
664,Revenue,CAHD,South Glos Users in South Glos Homes,Permanent Nursing,Beaufort Grange Care Home,836.76, 07-Mar-2023
665,Revenue,CAHD,South Glos Users in South Glos Homes,Permanent Nursing,Beaufort Grange Care Home,836.76, 07-Mar-2023
666,Revenue,CAHD,South Glos Users in South Glos Homes,Permanent Nursing,Beaufort Grange Care Home,836.76, 07-Mar-2023
667,Revenue,CAHD,South Glos Users in South Glos Homes,Permanent Nursing,Beaufort Grange Care Home,836.76, 07-Mar-2023
668,Revenue,CAHD,South Glos Users in South Glos Homes,Permanent Nursing,Beaufort Grange Care Home,-866.64, 07-Mar-2023
669,Revenue,CAHD,South Glos Users in South Glos Homes,Permanent Nursing,Beaufort Grange Care Home,-239.07, 07-Mar-2023
670,Revenue,CAHD,South Glos Users in South Glos Homes,Permanent Nursing,Beaufort Grange Care Home,836.76, 07-Mar-2023
671,Revenue,CAHD,South Glos Users in South Glos Homes,Permanent Nursing,Beaufort Grange Care Home,836.76, 07-Mar-2023
672,Revenue,CAHD,South Glos Users in South Glos Homes,Permanent Nursing,Beaufort Grange Care Home,836.76, 07-Mar-2023
673,Revenue,CAHD,South Glos Users in South Glos Homes,Permanent Nursing,Beaufort Grange Care Home,836.76, 07-Mar-2023
674,Revenue,CAHD,South Glos Users in South Glos Homes,Permanent Nursing,Beaufort Grange Care Home,836.76, 07-Mar-2023
675,Revenue,CAHD,South Glos Users in South Glos Homes,Permanent Nursing,Beaufort Grange Care Home,836.76, 07-Mar-2023
676,Revenue,CAHD,South Glos Users in South Glos Homes,Permanent Nursing,Beaufort Grange Care Home,836.76, 07-Mar-2023
677,Revenue,CAHD,South Glos Users in South Glos Homes,Permanent Nursing,Beaufort Grange Care Home,836.76, 07-Mar-2023
678,Revenue,CAHD,South Glos Users in South Glos Homes,Permanent Nursing,Beaufort Grange Care Home,836.76, 07-Mar-2023
679,Revenue,CAHD,South Glos Users in South Glos Homes,Permanent Nursing,Beaufort Grange Care Home,836.76, 07-Mar-2023
680,Revenue,CAHD,South Glos Users in South Glos Homes,Permanent Nursing,Beaufort Grange Care Home,836.76, 07-Mar-2023
681,Revenue,CAHD,South Glos Users in South Glos Homes,Permanent Nursing,Beaufort Grange Care Home,836.76, 07-Mar-2023
682,Revenue,CAHD,South Glos Users in South Glos Homes,Permanent Nursing,Beaufort Grange Care Home,3496.46, 07-Mar-2023
683,Revenue,CAHD,South Glos Users in South Glos Homes,Permanent Nursing,Beaufort Grange Care Home,836.76, 07-Mar-2023
684,Revenue,CAHD,South Glos Users in South Glos Homes,Permanent Nursing,Beaufort Grange Care Home,836.76, 07-Mar-2023
685,Revenue,CAHD,South Glos Users in South Glos Homes,Permanent Nursing,Beaufort Grange Care Home,836.76, 07-Mar-2023
686,Revenue,CAHD,South Glos Users in South Glos Homes,Permanent Nursing,Beaufort Grange Care Home,836.76, 07-Mar-2023
687,Revenue,CAHD,South Glos Users in South Glos Homes,Permanent Nursing,Beaufort Grange Care Home,836.76, 07-Mar-2023
688,Revenue,CAHD,South Glos Users in South Glos Homes,Permanent Nursing,Beaufort Grange Care Home,836.76, 07-Mar-2023
689,Revenue,CAHD,South Glos Users in South Glos Homes,Permanent Nursing,Beaufort Grange Care Home,836.76, 07-Mar-2023
690,Revenue,CAHD,South Glos Users in South Glos Homes,Permanent Nursing,Beaufort Grange Care Home,836.76, 07-Mar-2023
691,Revenue,CAHD,South Glos Users in South Glos Homes,Permanent Nursing,Beaufort Grange Care Home,836.76, 07-Mar-2023
692,Revenue,CAHD,South Glos Users in South Glos Homes,Permanent Nursing,Beaufort Grange Care Home,6365.35, 07-Mar-2023
693,Revenue,CAHD,South Glos Users in South Glos Homes,Permanent Nursing,Beaufort Grange Care Home,4422.87, 07-Mar-2023
694,Revenue,CAHD,Central - Commissioned Services,Permanent Residential,Beaufort Grange Care Home,7200, 07-Mar-2023
695,Revenue,CAHD,Central - Commissioned Services,Permanent Nursing,Beaufort Grange Care Home,5500, 07-Mar-2023
696,Revenue,CAHD,Central - Commissioned Services,Permanent Nursing,Beaufort Grange Care Home,6600, 07-Mar-2023
697,Revenue,CAHD,Central - Commissioned Services,Permanent Nursing,Beaufort Grange Care Home,5400, 07-Mar-2023
698,Revenue,CAHD,Central - Commissioned Services,Permanent Nursing,Beaufort Grange Care Home,5500, 07-Mar-2023
699,Revenue,CAHD,Central - Commissioned Services,Permanent Nursing,Beaufort Grange Care Home,6100, 07-Mar-2023
700,Revenue,CAHD,Central - Commissioned Services,Fees & Charges Income - General,Beaufort Grange Care Home,-607.8, 07-Mar-2023
701,Revenue,CAHD,Central - Commissioned Services,Fees & Charges Income - General,Beaufort Grange Care Home,-1002, 07-Mar-2023
702,Revenue,CAHD,South - Commissioned Services,Permanent Nursing,Beaufort Grange Care Home,6600, 07-Mar-2023
703,Revenue,CAHD,North - Community based support,Permanent Residential,Beaufort Grange Care Home,-12000, 07-Mar-2023
704,Revenue,CAHD,North - Community based support,Permanent Nursing,Beaufort Grange Care Home,4369.6, 07-Mar-2023
705,Revenue,CAHD,North - Community based support,Permanent Nursing,Beaufort Grange Care Home,10620, 07-Mar-2023
706,Revenue,CAHD,North - Community based support,Fees & Charges Income - General,Beaufort Grange Care Home,-627.8, 07-Mar-2023
707,Revenue,CAHD,North - Community based support,Fees & Charges Income - General,Beaufort Grange Care Home,-438.8, 07-Mar-2023
708,Revenue,CAHD,Central Team - S117,Permanent Nursing,Beaufort Grange Care Home,5849.6, 07-Mar-2023
709,Revenue,CAHD,Jointly Funded H&SC Packages,Permanent Residential,Beaufort Grange Care Home,20400, 07-Mar-2023
710,Revenue,CAHD,Central - Commissioned Services,Respite Care,Beaufort House,0, 07-Mar-2023
711,Revenue,CAHD,Central - Commissioned Services,Permanent Residential,Beaufort House,3171.36, 07-Mar-2023
712,Revenue,CAHD,Central - Commissioned Services,Permanent Residential,Beaufort House,4028, 07-Mar-2023
713,Revenue,CAHD,Central - Commissioned Services,Permanent Residential,Beaufort House,3582.8, 07-Mar-2023
714,Revenue,CAHD,Central - Commissioned Services,Permanent Residential,Beaufort House,4000, 07-Mar-2023
715,Revenue,CAHD,Central - Commissioned Services,Permanent Residential,Beaufort House,3392, 07-Mar-2023
716,Revenue,CAHD,Central - Commissioned Services,Permanent Residential,Beaufort House,4000, 07-Mar-2023
717,Revenue,CAHD,Central - Commissioned Services,Permanent Residential,Beaufort House,4240, 07-Mar-2023
718,Revenue,CAHD,Central - Commissioned Services,Permanent Residential,Beaufort House,272.57, 07-Mar-2023
719,Revenue,CAHD,Central - Commissioned Services,Permanent Residential,Beaufort House,3816, 07-Mar-2023
720,Revenue,CAHD,Central - Commissioned Services,Permanent Residential,Beaufort House,4000, 07-Mar-2023
721,Revenue,CAHD,Central - Commissioned Services,Permanent Residential,Beaufort House,4000, 07-Mar-2023
722,Revenue,CAHD,Central - Commissioned Services,Respite Planned - Residential,Beaufort House,2200, 07-Mar-2023
723,Revenue,CAHD,Central - Commissioned Services,Fees & Charges Income - General,Beaufort House,-821.12, 07-Mar-2023
724,Revenue,CAHD,Central - Commissioned Services,Fees & Charges Income - General,Beaufort House,-731.44, 07-Mar-2023
725,Revenue,CAHD,Central - Commissioned Services,Fees & Charges Income - General,Beaufort House,-1448.48, 07-Mar-2023
726,Revenue,CAHD,Central - Commissioned Services,Fees & Charges Income - General,Beaufort House,-1540.88, 07-Mar-2023
727,Revenue,CAHD,Central - Commissioned Services,Fees & Charges Income - General,Beaufort House,-751.32, 07-Mar-2023
728,Revenue,CAHD,Central - Commissioned Services,Fees & Charges Income - General,Beaufort House,-627.8, 07-Mar-2023
729,Revenue,CAHD,Central - Commissioned Services,Fees & Charges Income - General,Beaufort House,-627.8, 07-Mar-2023
730,Revenue,CAHD,Central - Commissioned Services,Fees & Charges Income - General,Beaufort House,-1125.36, 07-Mar-2023
731,Revenue,CAHD,Central - Commissioned Services,Fees & Charges Income - General,Beaufort House,-865.85, 07-Mar-2023
732,Revenue,CAHD,North - Community based support,Permanent Residential,Beaufort House,4240, 07-Mar-2023
733,Revenue,CAHD,North - Community based support,Permanent Residential,Beaufort House,2986.32, 07-Mar-2023
734,Revenue,CAHD,North - Community based support,Permanent Residential,Beaufort House,4240, 07-Mar-2023
735,Revenue,CAHD,North - Community based support,Fees & Charges Income - General,Beaufort House,-1166.52, 07-Mar-2023
736,Revenue,CAHD,North - Community based support,Fees & Charges Income - General,Beaufort House,-627.8, 07-Mar-2023
737,Revenue,CAHD,North - Community based support,Fees & Charges Income - General,Beaufort House,-663.8, 07-Mar-2023
738,Revenue,CAHD,South Glos Users in South Glos Homes,Permanent Nursing,Beech House,836.76, 07-Mar-2023
739,Revenue,CAHD,South Glos Users in South Glos Homes,Permanent Nursing,Beech House,836.76, 07-Mar-2023
740,Revenue,CAHD,South Glos Users in South Glos Homes,Permanent Nursing,Beech House,1165.49, 07-Mar-2023
741,Revenue,CAHD,South Glos Users in South Glos Homes,Permanent Nursing,Beech House,836.76, 07-Mar-2023
742,Revenue,CAHD,South Glos Users in South Glos Homes,Permanent Nursing,Beech House,836.76, 07-Mar-2023
743,Revenue,CAHD,South Glos Users in South Glos Homes,Permanent Nursing,Beech House,836.76, 07-Mar-2023
744,Revenue,CAHD,South Glos Users in South Glos Homes,Permanent Nursing,Beech House,836.76, 07-Mar-2023
745,Revenue,CAHD,South Glos Users in South Glos Homes,Permanent Nursing,Beech House,-239.08, 07-Mar-2023
746,Revenue,CAHD,South Glos Users in South Glos Homes,Permanent Nursing,Beech House,836.76, 07-Mar-2023
747,Revenue,CAHD,South Glos Users in South Glos Homes,Permanent Nursing,Beech House,836.76, 07-Mar-2023
748,Revenue,CAHD,South Glos Users in South Glos Homes,Permanent Nursing,Beech House,836.76, 07-Mar-2023
749,Revenue,CAHD,South Glos Users in South Glos Homes,Permanent Nursing,Beech House,836.76, 07-Mar-2023
750,Revenue,CAHD,South Glos Users in South Glos Homes,Permanent Nursing,Beech House,836.76, 07-Mar-2023
751,Revenue,CAHD,South Glos Users in South Glos Homes,Permanent Nursing,Beech House,836.76, 07-Mar-2023
752,Revenue,CAHD,South Glos Users in South Glos Homes,Permanent Nursing,Beech House,836.76, 07-Mar-2023
753,Revenue,CAHD,South Glos Users in South Glos Homes,Permanent Nursing,Beech House,836.76, 07-Mar-2023
754,Revenue,CAHD,South Glos Users in South Glos Homes,Permanent Nursing,Beech House,836.76, 07-Mar-2023
755,Revenue,CAHD,South Glos Users in South Glos Homes,Permanent Nursing,Beech House,2211.44, 07-Mar-2023
756,Revenue,CAHD,South Glos Users in South Glos Homes,Permanent Nursing,Beech House,836.76, 07-Mar-2023
757,Revenue,CAHD,South Glos Users in South Glos Homes,Permanent Nursing,Beech House,836.76, 07-Mar-2023
758,Revenue,CAHD,South Glos Users in South Glos Homes,Permanent Nursing,Beech House,836.76, 07-Mar-2023
759,Revenue,CAHD,South Glos Users in South Glos Homes,Permanent Nursing,Beech House,836.76, 07-Mar-2023
760,Revenue,CAHD,South Glos Users in South Glos Homes,Permanent Nursing,Beech House,836.76, 07-Mar-2023
761,Revenue,CAHD,South Glos Users in South Glos Homes,Permanent Nursing,Beech House,2390.75, 07-Mar-2023
762,Revenue,CAHD,South Glos Users in South Glos Homes,Permanent Nursing,Beech House,836.76, 07-Mar-2023
763,Revenue,CAHD,South Glos Users in South Glos Homes,Permanent Nursing,Beech House,836.76, 07-Mar-2023
764,Revenue,CAHD,Central - Commissioned Services,Permanent Nursing,Beech House,836.76, 07-Mar-2023
765,Revenue,CAHD,North - Community based support,Permanent Residential,Beech House,4727.88, 07-Mar-2023
766,Revenue,CAHD,North - Community based support,Permanent Residential,Beech House,4748.8, 07-Mar-2023
767,Revenue,CAHD,North - Community based support,Permanent Residential,Beech House,4772.8, 07-Mar-2023
768,Revenue,CAHD,North - Community based support,Permanent Residential,Beech House,4748.8, 07-Mar-2023
769,Revenue,CAHD,North - Community based support,Permanent Nursing,Beech House,4660, 07-Mar-2023
770,Revenue,CAHD,North - Community based support,Permanent Nursing,Beech House,4660, 07-Mar-2023
771,Revenue,CAHD,North - Community based support,Permanent Nursing,Beech House,836.76, 07-Mar-2023
772,Revenue,CAHD,North - Community based support,Permanent Nursing,Beech House,4760, 07-Mar-2023
773,Revenue,CAHD,North - Community based support,Permanent Nursing,Beech House,5353.08, 07-Mar-2023
774,Revenue,CAHD,North - Community based support,Permanent Nursing,Beech House,4671.56, 07-Mar-2023
775,Revenue,CAHD,North - Community based support,Permanent Nursing,Beech House,10698.93, 07-Mar-2023
776,Revenue,CAHD,North - Community based support,Permanent Nursing,Beech House,4772.8, 07-Mar-2023
777,Revenue,CAHD,North - Community based support,Permanent Nursing,Beech House,5496, 07-Mar-2023
778,Revenue,CAHD,North - Community based support,Permanent Nursing,Beech House,5631.43, 07-Mar-2023
779,Revenue,CAHD,North - Community based support,Fees & Charges Income - General,Beech House,-627.8, 07-Mar-2023
780,Revenue,CAHD,North - Community based support,Fees & Charges Income - General,Beech House,-1904.6, 07-Mar-2023
781,Revenue,CAHD,North - Community based support,Fees & Charges Income - General,Beech House,-1649.8, 07-Mar-2023
782,Revenue,CAHD,North - Community based support,Fees & Charges Income - General,Beech House,-1356.72, 07-Mar-2023
783,Revenue,CAHD,North - Community based support,Fees & Charges Income - General,Beech House,-1822.16, 07-Mar-2023
784,Revenue,CAHD,North - Community based support,Fees & Charges Income - General,Beech House,-10698.93, 07-Mar-2023
785,Revenue,CAHD,North - Community based support,Fees & Charges Income - General,Beech House,-629, 07-Mar-2023
786,Revenue,CAHD,North - Community based support,Fees & Charges Income - General,Beech House,-1428.72, 07-Mar-2023
787,Revenue,CAHD,North - Community based support,Fees & Charges Income - General,Beech House,-1206.2, 07-Mar-2023
788,Revenue,CAHD,North - Community based support,Fees & Charges Income - General,Beech House,-840.16, 07-Mar-2023
789,Revenue,CAHD,North - Community based support,Fees & Charges Income - General,Beech House,-2575.72, 07-Mar-2023
790,Revenue,CAHD,18-25 Year Olds,Permanent Residential,Beechwood Court Ltd,15505.7, 17-Mar-2023
791,Revenue,CAHD,18-25 Year Olds,Permanent Residential,Beechwood Court Ltd,22328.35, 17-Mar-2023
792,Revenue,CAHD,18-25 Year Olds,Permanent Residential,Beechwood Court Ltd,15505.7, 17-Mar-2023
793,Revenue,CAHD,18-25 Year Olds,Permanent Residential,Beechwood Court Ltd,22328.35, 17-Mar-2023
794,Revenue,CAHD,Schools Specific Grant Income,Other Public Bodies,Begbrook Primary Academy,550, 15-Mar-2023
795,Revenue,CAHD,Bed and Breakfast,Bed & Breakfast,Bell Hill Housing,550, 20-Mar-2023
796,Revenue,CAHD,CSC - Age Related Allowances,Foster Parent Allowances,Individual,158.72, 31-Mar-2023
797,Revenue,CAHD,CSC - Fostering Carer Support,Respite Care,Individual,295.41, 31-Mar-2023
798,Revenue,CAHD,CSC - Professional Fees Foster Carers,Band 1 Foster Care,Individual,170.29, 31-Mar-2023
799,Revenue,CAHD,Social Lettings Agency,Rent,Individual,832.13, 01-Mar-2023
800,Revenue,CAHD,Social Lettings Agency,Fees & Charges Income - General,Individual,-104.01, 01-Mar-2023
801,Revenue,CAHD,Social Lettings Agency,Rent,Individual,832.13, 31-Mar-2023
802,Revenue,CAHD,Social Lettings Agency,Fees & Charges Income - General,Individual,-104.01, 31-Mar-2023
803,Revenue,CAHD,Homeless - Private Sector Leasing,Legal Fees,Bevan Brittan LLP,1473.5, 13-Mar-2023
804,Revenue,CAHD,South - S117,Permanent Residential,Bidna House,3774.24, 07-Mar-2023
805,Revenue,CAHD,Schools Specific Grant Income,Other Public Bodies,Birkenhead Park School,1000, 30-Mar-2023
806,Revenue,CAHD,Schools Specific Grant Income,Other Public Bodies,Birkenhead Park School,550, 22-Mar-2023
807,Revenue,CAHD,Placements OLA Special Schools and RB,Other L.A.s - General,Blaise High School,792.41, 22-Mar-2023
808,Revenue,CAHD,Statemented Support Payments to OLAs,Other L.A.s - General,Blaise High School,907.83, 22-Mar-2023
809,Revenue,CAHD,Placements OLA Special Schools and RB,Other L.A.s - General,Blaise High School,792.41, 22-Mar-2023
810,Revenue,CAHD,18-25 Year Olds,Other Small Contracts,Blakehill Healthcare Ltd,311.14, 06-Mar-2023
811,Revenue,CAHD,Central - Commissioned Services,Other Small Contracts,Blakehill Healthcare Ltd,211.84, 06-Mar-2023
812,Revenue,CAHD,Central - Commissioned Services,Other Small Contracts,Blakehill Healthcare Ltd,205.22, 06-Mar-2023
813,Revenue,CAHD,Central - Commissioned Services,Other Small Contracts,Blakehill Healthcare Ltd,1026.1, 06-Mar-2023
814,Revenue,CAHD,Central - Commissioned Services,Other Small Contracts,Blakehill Healthcare Ltd,569.32, 06-Mar-2023
815,Revenue,CAHD,Central - Commissioned Services,Other Small Contracts,Blakehill Healthcare Ltd,225.08, 06-Mar-2023
816,Revenue,CAHD,Central - Commissioned Services,Other Small Contracts,Blakehill Healthcare Ltd,66.2, 06-Mar-2023
817,Revenue,CAHD,Central - Commissioned Services,Other Small Contracts,Blakehill Healthcare Ltd,714.96, 06-Mar-2023
818,Revenue,CAHD,Central - Commissioned Services,Other Small Contracts,Blakehill Healthcare Ltd,191.98, 06-Mar-2023
819,Revenue,CAHD,Central - Commissioned Services,Other Small Contracts,Blakehill Healthcare Ltd,26.48, 06-Mar-2023
820,Revenue,CAHD,Central - Commissioned Services,Other Small Contracts,Blakehill Healthcare Ltd,185.36, 06-Mar-2023
821,Revenue,CAHD,Central - Commissioned Services,Other Small Contracts,Blakehill Healthcare Ltd,304.52, 06-Mar-2023
822,Revenue,CAHD,Central - Commissioned Services,Other Small Contracts,Blakehill Healthcare Ltd,417.06, 06-Mar-2023
823,Revenue,CAHD,Central - Commissioned Services,Other Small Contracts,Blakehill Healthcare Ltd,714.96, 06-Mar-2023
824,Revenue,CAHD,Central - Commissioned Services,Other Small Contracts,Blakehill Healthcare Ltd,185.36, 06-Mar-2023
825,Revenue,CAHD,South - Commissioned Services,Other Small Contracts,Blakehill Healthcare Ltd,324.38, 06-Mar-2023
826,Revenue,CAHD,South - Commissioned Services,Other Small Contracts,Blakehill Healthcare Ltd,198.6, 06-Mar-2023
827,Revenue,CAHD,South - Commissioned Services,Other Small Contracts,Blakehill Healthcare Ltd,648.76, 06-Mar-2023
828,Revenue,CAHD,South - Commissioned Services,Other Small Contracts,Blakehill Healthcare Ltd,1466.64, 06-Mar-2023
829,Revenue,CAHD,South - Commissioned Services,Other Small Contracts,Blakehill Healthcare Ltd,754.68, 06-Mar-2023
830,Revenue,CAHD,South - Commissioned Services,Other Small Contracts,Blakehill Healthcare Ltd,463.4, 06-Mar-2023
831,Revenue,CAHD,South - Commissioned Services,Other Small Contracts,Blakehill Healthcare Ltd,317.76, 06-Mar-2023
832,Revenue,CAHD,South - Commissioned Services,Mentoring,Blakehill Healthcare Ltd,79.44, 06-Mar-2023
833,Revenue,CAHD,North - Community based support,Other Small Contracts,Blakehill Healthcare Ltd,278.04, 06-Mar-2023
834,Revenue,CAHD,North - Community based support,Other Small Contracts,Blakehill Healthcare Ltd,1824.2, 06-Mar-2023
835,Revenue,CAHD,North - Community based support,Other Small Contracts,Blakehill Healthcare Ltd,225.08, 06-Mar-2023
836,Revenue,CAHD,North - Community based support,Other Small Contracts,Blakehill Healthcare Ltd,403.82, 06-Mar-2023
837,Revenue,CAHD,18-25 Year Olds,Other Small Contracts,Blakehill Healthcare Ltd,278.04, 08-Mar-2023
838,Revenue,CAHD,Central - Commissioned Services,Other Small Contracts,Blakehill Healthcare Ltd,211.84, 08-Mar-2023
839,Revenue,CAHD,Central - Commissioned Services,Other Small Contracts,Blakehill Healthcare Ltd,211.84, 08-Mar-2023
840,Revenue,CAHD,Central - Commissioned Services,Other Small Contracts,Blakehill Healthcare Ltd,973.14, 08-Mar-2023
841,Revenue,CAHD,Central - Commissioned Services,Other Small Contracts,Blakehill Healthcare Ltd,582.56, 08-Mar-2023
842,Revenue,CAHD,Central - Commissioned Services,Other Small Contracts,Blakehill Healthcare Ltd,225.08, 08-Mar-2023
843,Revenue,CAHD,Central - Commissioned Services,Other Small Contracts,Blakehill Healthcare Ltd,801.02, 08-Mar-2023
844,Revenue,CAHD,Central - Commissioned Services,Other Small Contracts,Blakehill Healthcare Ltd,185.36, 08-Mar-2023
845,Revenue,CAHD,Central - Commissioned Services,Other Small Contracts,Blakehill Healthcare Ltd,191.98, 08-Mar-2023
846,Revenue,CAHD,Central - Commissioned Services,Other Small Contracts,Blakehill Healthcare Ltd,317.76, 08-Mar-2023
847,Revenue,CAHD,Central - Commissioned Services,Other Small Contracts,Blakehill Healthcare Ltd,410.44, 08-Mar-2023
848,Revenue,CAHD,Central - Commissioned Services,Other Small Contracts,Blakehill Healthcare Ltd,734.82, 08-Mar-2023
849,Revenue,CAHD,Central - Commissioned Services,Other Small Contracts,Blakehill Healthcare Ltd,178.74, 08-Mar-2023
850,Revenue,CAHD,South - Commissioned Services,Other Small Contracts,Blakehill Healthcare Ltd,331, 08-Mar-2023
851,Revenue,CAHD,South - Commissioned Services,Other Small Contracts,Blakehill Healthcare Ltd,178.74, 08-Mar-2023
852,Revenue,CAHD,South - Commissioned Services,Other Small Contracts,Blakehill Healthcare Ltd,648.76, 08-Mar-2023
853,Revenue,CAHD,South - Commissioned Services,Other Small Contracts,Blakehill Healthcare Ltd,1466.64, 08-Mar-2023
854,Revenue,CAHD,South - Commissioned Services,Other Small Contracts,Blakehill Healthcare Ltd,754.68, 08-Mar-2023
855,Revenue,CAHD,South - Commissioned Services,Other Small Contracts,Blakehill Healthcare Ltd,456.78, 08-Mar-2023
856,Revenue,CAHD,South - Commissioned Services,Other Small Contracts,Blakehill Healthcare Ltd,317.76, 08-Mar-2023
857,Revenue,CAHD,South - Commissioned Services,Mentoring,Blakehill Healthcare Ltd,72.82, 08-Mar-2023
858,Revenue,CAHD,North - Community based support,Other Small Contracts,Blakehill Healthcare Ltd,278.04, 08-Mar-2023
859,Revenue,CAHD,North - Community based support,Other Small Contracts,Blakehill Healthcare Ltd,1912.76, 08-Mar-2023
860,Revenue,CAHD,North - Community based support,Other Small Contracts,Blakehill Healthcare Ltd,337.62, 08-Mar-2023
861,Revenue,CAHD,North - Community based support,Other Small Contracts,Blakehill Healthcare Ltd,377.34, 08-Mar-2023
862,Revenue,CAHD,South Glos Users in South Glos Homes,Permanent Nursing,Blossom Fields Nursing Home,836.76, 07-Mar-2023
863,Revenue,CAHD,South Glos Users in South Glos Homes,Permanent Nursing,Blossom Fields Nursing Home,836.76, 07-Mar-2023
864,Revenue,CAHD,South Glos Users in South Glos Homes,Permanent Nursing,Blossom Fields Nursing Home,4064.26, 07-Mar-2023
865,Revenue,CAHD,South Glos Users in South Glos Homes,Permanent Nursing,Blossom Fields Nursing Home,836.76, 07-Mar-2023
866,Revenue,CAHD,South Glos Users in South Glos Homes,Permanent Nursing,Blossom Fields Nursing Home,5409.06, 07-Mar-2023
867,Revenue,CAHD,South Glos Users in South Glos Homes,Permanent Nursing,Blossom Fields Nursing Home,836.76, 07-Mar-2023
868,Revenue,CAHD,South Glos Users in South Glos Homes,Permanent Nursing,Blossom Fields Nursing Home,836.76, 07-Mar-2023
869,Revenue,CAHD,South Glos Users in South Glos Homes,Permanent Nursing,Blossom Fields Nursing Home,836.76, 07-Mar-2023
870,Revenue,CAHD,South Glos Users in South Glos Homes,Permanent Nursing,Blossom Fields Nursing Home,179.3, 07-Mar-2023
871,Revenue,CAHD,South Glos Users in South Glos Homes,Permanent Nursing,Blossom Fields Nursing Home,836.76, 07-Mar-2023
872,Revenue,CAHD,South Glos Users in South Glos Homes,Permanent Nursing,Blossom Fields Nursing Home,836.76, 07-Mar-2023
873,Revenue,CAHD,South Glos Users in South Glos Homes,Permanent Nursing,Blossom Fields Nursing Home,836.76, 07-Mar-2023
874,Revenue,CAHD,South Glos Users in South Glos Homes,Permanent Nursing,Blossom Fields Nursing Home,836.76, 07-Mar-2023
875,Revenue,CAHD,South Glos Users in South Glos Homes,Permanent Nursing,Blossom Fields Nursing Home,836.76, 07-Mar-2023
876,Revenue,CAHD,South Glos Users in South Glos Homes,Permanent Nursing,Blossom Fields Nursing Home,836.76, 07-Mar-2023
877,Revenue,CAHD,South Glos Users in South Glos Homes,Permanent Nursing,Blossom Fields Nursing Home,836.76, 07-Mar-2023
878,Revenue,CAHD,South Glos Users in South Glos Homes,Permanent Nursing,Blossom Fields Nursing Home,-179.3, 07-Mar-2023
879,Revenue,CAHD,South Glos Users in South Glos Homes,Permanent Nursing,Blossom Fields Nursing Home,836.76, 07-Mar-2023
880,Revenue,CAHD,South Glos Users in South Glos Homes,Permanent Nursing,Blossom Fields Nursing Home,836.76, 07-Mar-2023
881,Revenue,CAHD,South Glos Users in South Glos Homes,Permanent Nursing,Blossom Fields Nursing Home,836.76, 07-Mar-2023
882,Revenue,CAHD,South Glos Users in South Glos Homes,Permanent Nursing,Blossom Fields Nursing Home,836.76, 07-Mar-2023
883,Revenue,CAHD,South Glos Users in South Glos Homes,Permanent Nursing,Blossom Fields Nursing Home,836.76, 07-Mar-2023
884,Revenue,CAHD,South Glos Users in South Glos Homes,Permanent Nursing,Blossom Fields Nursing Home,836.76, 07-Mar-2023
885,Revenue,CAHD,South Glos Users in South Glos Homes,Permanent Nursing,Blossom Fields Nursing Home,508.03, 07-Mar-2023
886,Revenue,CAHD,South Glos Users in South Glos Homes,Permanent Nursing,Blossom Fields Nursing Home,836.76, 07-Mar-2023
887,Revenue,CAHD,South Glos Users in South Glos Homes,Permanent Nursing,Blossom Fields Nursing Home,836.76, 07-Mar-2023
888,Revenue,CAHD,South Glos Users in South Glos Homes,Permanent Nursing,Blossom Fields Nursing Home,119.53, 07-Mar-2023
889,Revenue,CAHD,South Glos Users in South Glos Homes,Permanent Nursing,Blossom Fields Nursing Home,836.76, 07-Mar-2023
890,Revenue,CAHD,South Glos Users in South Glos Homes,Permanent Nursing,Blossom Fields Nursing Home,836.76, 07-Mar-2023
891,Revenue,CAHD,South Glos Users in South Glos Homes,Permanent Nursing,Blossom Fields Nursing Home,836.76, 07-Mar-2023
892,Revenue,CAHD,Central - Commissioned Services,Permanent Nursing,Blossom Fields Nursing Home,9600, 07-Mar-2023
893,Revenue,CAHD,South - Commissioned Services,Permanent Nursing,Blossom Fields Nursing Home,9085.71, 07-Mar-2023
894,Revenue,CAHD,South - Commissioned Services,Permanent Nursing,Blossom Fields Nursing Home,5088, 07-Mar-2023
895,Revenue,CAHD,South - Commissioned Services,Permanent Nursing,Blossom Fields Nursing Home,4664, 07-Mar-2023
896,Revenue,CAHD,South - Commissioned Services,Permanent Nursing,Blossom Fields Nursing Home,4337.08, 07-Mar-2023
897,Revenue,CAHD,South - Commissioned Services,Fees & Charges Income - General,Blossom Fields Nursing Home,-1747.11, 07-Mar-2023
898,Revenue,CAHD,South - Commissioned Services,Fees & Charges Income - General,Blossom Fields Nursing Home,-1482.92, 07-Mar-2023
899,Revenue,CAHD,South - Commissioned Services,Fees & Charges Income - General,Blossom Fields Nursing Home,-997.4, 07-Mar-2023
900,Revenue,CAHD,South - Commissioned Services,Fees & Charges Income - General,Blossom Fields Nursing Home,-750.52, 07-Mar-2023
901,Revenue,CAHD,North - Community based support,Respite Care,Blossom Fields Nursing Home,0, 07-Mar-2023
902,Revenue,CAHD,North - Community based support,Permanent Nursing,Blossom Fields Nursing Home,5250, 07-Mar-2023
903,Revenue,CAHD,North - Community based support,Permanent Nursing,Blossom Fields Nursing Home,5204.88, 07-Mar-2023
904,Revenue,CAHD,North - Community based support,Permanent Nursing,Blossom Fields Nursing Home,6548.76, 07-Mar-2023
905,Revenue,CAHD,North - Community based support,Permanent Nursing,Blossom Fields Nursing Home,4664, 07-Mar-2023
906,Revenue,CAHD,North - Community based support,Permanent Nursing,Blossom Fields Nursing Home,4380.04, 07-Mar-2023
907,Revenue,CAHD,North - Community based support,Permanent Nursing,Blossom Fields Nursing Home,4379.92, 07-Mar-2023
908,Revenue,CAHD,North - Community based support,Permanent Nursing,Blossom Fields Nursing Home,4380.04, 07-Mar-2023
909,Revenue,CAHD,North - Community based support,Permanent Nursing,Blossom Fields Nursing Home,4800, 07-Mar-2023
910,Revenue,CAHD,North - Community based support,Permanent Nursing,Blossom Fields Nursing Home,8914.29, 07-Mar-2023
911,Revenue,CAHD,North - Community based support,Respite Planned - Nursing,Blossom Fields Nursing Home,-806, 07-Mar-2023
912,Revenue,CAHD,North - Community based support,Fees & Charges Income - General,Blossom Fields Nursing Home,646.65, 07-Mar-2023
913,Revenue,CAHD,North - Community based support,Fees & Charges Income - General,Blossom Fields Nursing Home,-627.8, 07-Mar-2023
914,Revenue,CAHD,North - Community based support,Fees & Charges Income - General,Blossom Fields Nursing Home,-533.56, 07-Mar-2023
915,Revenue,CAHD,North - Community based support,Fees & Charges Income - General,Blossom Fields Nursing Home,-478.65, 07-Mar-2023
916,Revenue,CAHD,North - Community based support,Fees & Charges Income - General,Blossom Fields Nursing Home,-784.24, 07-Mar-2023
917,Revenue,CAHD,North - Community based support,Fees & Charges Income - General,Blossom Fields Nursing Home,-1742.72, 07-Mar-2023
918,Revenue,CAHD,North - Community based support,Fees & Charges Income - General,Blossom Fields Nursing Home,-3564.23, 07-Mar-2023
919,Revenue,CAHD,South Glos Users in South Glos Homes,Permanent Nursing,Blossom Fields Nursing Home,836.76, 07-Mar-2023
920,Revenue,CAHD,South Glos Users in South Glos Homes,Permanent Nursing,Blossom Fields Nursing Home,239.07, 07-Mar-2023
921,Revenue,CAHD,South Glos Users in South Glos Homes,Permanent Nursing,Blossom Fields Nursing Home,836.76, 07-Mar-2023
922,Revenue,CAHD,South Glos Users in South Glos Homes,Permanent Nursing,Blossom Fields Nursing Home,836.76, 07-Mar-2023
923,Revenue,CAHD,South Glos Users in South Glos Homes,Permanent Nursing,Blossom Fields Nursing Home,836.76, 07-Mar-2023
924,Revenue,CAHD,South Glos Users in South Glos Homes,Permanent Nursing,Blossom Fields Nursing Home,-2301.09, 07-Mar-2023
925,Revenue,CAHD,South Glos Users in South Glos Homes,Permanent Nursing,Blossom Fields Nursing Home,836.76, 07-Mar-2023
926,Revenue,CAHD,South Glos Users in South Glos Homes,Permanent Nursing,Blossom Fields Nursing Home,836.76, 07-Mar-2023
927,Revenue,CAHD,South Glos Users in South Glos Homes,Permanent Nursing,Blossom Fields Nursing Home,836.76, 07-Mar-2023
928,Revenue,CAHD,South Glos Users in South Glos Homes,Permanent Nursing,Blossom Fields Nursing Home,836.76, 07-Mar-2023
929,Revenue,CAHD,South Glos Users in South Glos Homes,Permanent Nursing,Blossom Fields Nursing Home,836.76, 07-Mar-2023
930,Revenue,CAHD,South Glos Users in South Glos Homes,Permanent Nursing,Blossom Fields Nursing Home,836.76, 07-Mar-2023
931,Revenue,CAHD,South Glos Users in South Glos Homes,Permanent Nursing,Blossom Fields Nursing Home,836.76, 07-Mar-2023
932,Revenue,CAHD,South Glos Users in South Glos Homes,Permanent Nursing,Blossom Fields Nursing Home,-1583.87, 07-Mar-2023
933,Revenue,CAHD,South Glos Users in South Glos Homes,Permanent Nursing,Blossom Fields Nursing Home,836.76, 07-Mar-2023
934,Revenue,CAHD,South Glos Users in South Glos Homes,Permanent Nursing,Blossom Fields Nursing Home,836.76, 07-Mar-2023
935,Revenue,CAHD,South Glos Users in South Glos Homes,Permanent Nursing,Blossom Fields Nursing Home,836.76, 07-Mar-2023
936,Revenue,CAHD,South Glos Users in South Glos Homes,Permanent Nursing,Blossom Fields Nursing Home,-1553.99, 07-Mar-2023
937,Revenue,CAHD,South Glos Users in South Glos Homes,Permanent Nursing,Blossom Fields Nursing Home,836.76, 07-Mar-2023
938,Revenue,CAHD,South Glos Users in South Glos Homes,Permanent Nursing,Blossom Fields Nursing Home,836.76, 07-Mar-2023
939,Revenue,CAHD,South Glos Users in South Glos Homes,Permanent Nursing,Blossom Fields Nursing Home,836.76, 07-Mar-2023
940,Revenue,CAHD,South Glos Users in South Glos Homes,Permanent Nursing,Blossom Fields Nursing Home,836.76, 07-Mar-2023
941,Revenue,CAHD,South Glos Users in South Glos Homes,Permanent Nursing,Blossom Fields Nursing Home,836.76, 07-Mar-2023
942,Revenue,CAHD,South Glos Users in South Glos Homes,Permanent Nursing,Blossom Fields Nursing Home,4721.72, 07-Mar-2023
943,Revenue,CAHD,South Glos Users in South Glos Homes,Permanent Nursing,Blossom Fields Nursing Home,836.76, 07-Mar-2023
944,Revenue,CAHD,South Glos Users in South Glos Homes,Permanent Nursing,Blossom Fields Nursing Home,836.76, 07-Mar-2023
945,Revenue,CAHD,South Glos Users in South Glos Homes,Permanent Nursing,Blossom Fields Nursing Home,-2450.51, 07-Mar-2023
946,Revenue,CAHD,South Glos Users in South Glos Homes,Permanent Nursing,Blossom Fields Nursing Home,836.76, 07-Mar-2023
947,Revenue,CAHD,South Glos Users in South Glos Homes,Permanent Nursing,Blossom Fields Nursing Home,836.76, 07-Mar-2023
948,Revenue,CAHD,South Glos Users in South Glos Homes,Permanent Nursing,Blossom Fields Nursing Home,836.76, 07-Mar-2023
949,Revenue,CAHD,South Glos Users in South Glos Homes,Permanent Nursing,Blossom Fields Nursing Home,836.76, 07-Mar-2023
950,Revenue,CAHD,South Glos Users in South Glos Homes,Permanent Nursing,Blossom Fields Nursing Home,836.76, 07-Mar-2023
951,Revenue,CAHD,South Glos Users in South Glos Homes,Permanent Nursing,Blossom Fields Nursing Home,836.76, 07-Mar-2023
952,Revenue,CAHD,South Glos Users in South Glos Homes,Permanent Nursing,Blossom Fields Nursing Home,836.76, 07-Mar-2023
953,Revenue,CAHD,South Glos Users in South Glos Homes,Permanent Nursing,Blossom Fields Nursing Home,836.76, 07-Mar-2023
954,Revenue,CAHD,South Glos Users in South Glos Homes,Permanent Nursing,Blossom Fields Nursing Home,836.76, 07-Mar-2023
955,Revenue,CAHD,South Glos Users in South Glos Homes,Permanent Nursing,Blossom Fields Nursing Home,836.76, 07-Mar-2023
956,Revenue,CAHD,South Glos Users in South Glos Homes,Permanent Nursing,Blossom Fields Nursing Home,836.76, 07-Mar-2023
957,Revenue,CAHD,South Glos Users in South Glos Homes,Permanent Nursing,Blossom Fields Nursing Home,836.76, 07-Mar-2023
958,Revenue,CAHD,South Glos Users in South Glos Homes,Permanent Nursing,Blossom Fields Nursing Home,836.76, 07-Mar-2023
959,Revenue,CAHD,South Glos Users in South Glos Homes,Permanent Nursing,Blossom Fields Nursing Home,836.76, 07-Mar-2023
960,Revenue,CAHD,South Glos Users in South Glos Homes,Permanent Nursing,Blossom Fields Nursing Home,836.76, 07-Mar-2023
961,Revenue,CAHD,South Glos Users in South Glos Homes,Permanent Nursing,Blossom Fields Nursing Home,836.76, 07-Mar-2023
962,Revenue,CAHD,South Glos Users in South Glos Homes,Permanent Nursing,Blossom Fields Nursing Home,836.76, 07-Mar-2023
963,Revenue,CAHD,South Glos Users in South Glos Homes,Permanent Nursing,Blossom Fields Nursing Home,836.76, 07-Mar-2023
964,Revenue,CAHD,South Glos Users in South Glos Homes,Permanent Nursing,Blossom Fields Nursing Home,836.76, 07-Mar-2023
965,Revenue,CAHD,South Glos Users in South Glos Homes,Permanent Nursing,Blossom Fields Nursing Home,836.76, 07-Mar-2023
966,Revenue,CAHD,South Glos Users in South Glos Homes,Permanent Nursing,Blossom Fields Nursing Home,836.76, 07-Mar-2023
967,Revenue,CAHD,Central - Commissioned Services,Respite Care,Blossom Fields Nursing Home,0, 07-Mar-2023
968,Revenue,CAHD,Central - Commissioned Services,Permanent Residential,Blossom Fields Nursing Home,-11077, 07-Mar-2023
969,Revenue,CAHD,Central - Commissioned Services,Permanent Residential,Blossom Fields Nursing Home,3816, 07-Mar-2023
970,Revenue,CAHD,Central - Commissioned Services,Permanent Residential,Blossom Fields Nursing Home,4600, 07-Mar-2023
971,Revenue,CAHD,Central - Commissioned Services,Permanent Nursing,Blossom Fields Nursing Home,5431.24, 07-Mar-2023
972,Revenue,CAHD,Central - Commissioned Services,Permanent Nursing,Blossom Fields Nursing Home,4380.04, 07-Mar-2023
973,Revenue,CAHD,Central - Commissioned Services,Permanent Nursing,Blossom Fields Nursing Home,4380.04, 07-Mar-2023
974,Revenue,CAHD,Central - Commissioned Services,Permanent Nursing,Blossom Fields Nursing Home,-9612.31, 07-Mar-2023
975,Revenue,CAHD,Central - Commissioned Services,Permanent Nursing,Blossom Fields Nursing Home,4380.04, 07-Mar-2023
976,Revenue,CAHD,Central - Commissioned Services,Permanent Nursing,Blossom Fields Nursing Home,4600, 07-Mar-2023
977,Revenue,CAHD,Central - Commissioned Services,Permanent Nursing,Blossom Fields Nursing Home,4600, 07-Mar-2023
978,Revenue,CAHD,Central - Commissioned Services,Permanent Nursing,Blossom Fields Nursing Home,5421.92, 07-Mar-2023
979,Revenue,CAHD,Central - Commissioned Services,Permanent Nursing,Blossom Fields Nursing Home,4876, 07-Mar-2023
980,Revenue,CAHD,Central - Commissioned Services,Permanent Nursing,Blossom Fields Nursing Home,1150, 07-Mar-2023
981,Revenue,CAHD,Central - Commissioned Services,Respite Planned - Nursing,Blossom Fields Nursing Home,2300, 07-Mar-2023
982,Revenue,CAHD,Central - Commissioned Services,Fees & Charges Income - General,Blossom Fields Nursing Home,2795.89, 07-Mar-2023
983,Revenue,CAHD,Central - Commissioned Services,Fees & Charges Income - General,Blossom Fields Nursing Home,-627.8, 07-Mar-2023
984,Revenue,CAHD,Central - Commissioned Services,Fees & Charges Income - General,Blossom Fields Nursing Home,-1241.76, 07-Mar-2023
985,Revenue,CAHD,Central - Commissioned Services,Fees & Charges Income - General,Blossom Fields Nursing Home,-2103.8, 07-Mar-2023
986,Revenue,CAHD,Central - Commissioned Services,Fees & Charges Income - General,Blossom Fields Nursing Home,973.76, 07-Mar-2023
987,Revenue,CAHD,Central - Commissioned Services,Fees & Charges Income - General,Blossom Fields Nursing Home,-1186.12, 07-Mar-2023
988,Revenue,CAHD,Central - Commissioned Services,Fees & Charges Income - General,Blossom Fields Nursing Home,-866.68, 07-Mar-2023
989,Revenue,CAHD,Central - Commissioned Services,Fees & Charges Income - General,Blossom Fields Nursing Home,-628.84, 07-Mar-2023
990,Revenue,CAHD,South - Commissioned Services,Permanent Nursing,Blossom Fields Nursing Home,4179.64, 07-Mar-2023
991,Revenue,CAHD,South - Commissioned Services,Permanent Nursing,Blossom Fields Nursing Home,4381.2, 07-Mar-2023
992,Revenue,CAHD,South - Commissioned Services,Permanent Nursing,Blossom Fields Nursing Home,4600, 07-Mar-2023
993,Revenue,CAHD,South - Commissioned Services,Permanent Nursing,Blossom Fields Nursing Home,4600, 07-Mar-2023
994,Revenue,CAHD,South - Commissioned Services,Permanent Nursing,Blossom Fields Nursing Home,5300, 07-Mar-2023
995,Revenue,CAHD,South - Commissioned Services,Permanent Nursing,Blossom Fields Nursing Home,3816, 07-Mar-2023
996,Revenue,CAHD,South - Commissioned Services,Fees & Charges Income - General,Blossom Fields Nursing Home,-1146.6, 07-Mar-2023
997,Revenue,CAHD,South - Commissioned Services,Fees & Charges Income - General,Blossom Fields Nursing Home,-928.6, 07-Mar-2023
998,Revenue,CAHD,South - Commissioned Services,Fees & Charges Income - General,Blossom Fields Nursing Home,-627.8, 07-Mar-2023
999,Revenue,CAHD,South - Commissioned Services,Fees & Charges Income - General,Blossom Fields Nursing Home,-635.48, 07-Mar-2023
1000,Revenue,CAHD,North - Community based support,Respite Care,Blossom Fields Nursing Home,0, 07-Mar-2023
1001,Revenue,CAHD,North - Community based support,Permanent Nursing,Blossom Fields Nursing Home,4381.2, 07-Mar-2023
1002,Revenue,CAHD,North - Community based support,Respite Planned - Nursing,Blossom Fields Nursing Home,15935.72, 07-Mar-2023
1003,Revenue,CAHD,North - Community based support,Fees & Charges Income - General,Blossom Fields Nursing Home,-627.8, 07-Mar-2023
1004,Revenue,CAHD,North - S117,Permanent Residential,Blossom Fields Nursing Home,5205.04, 07-Mar-2023
1005,Revenue,CAHD,Statemented Support Payments to OLAs,Other L.A.s - General,Blue Coat CE VA Primary School,1292.5, 22-Mar-2023
1006,Revenue,CAHD,Central - Commissioned Services,Other Small Contracts,Bluebird Care (South Gloucestershire),132.09, 21-Mar-2023
1007,Revenue,CAHD,Central - Commissioned Services,Other Small Contracts,Bluebird Care (South Gloucestershire),116.55, 21-Mar-2023
1008,Revenue,CAHD,Central - Commissioned Services,Other Small Contracts,Bluebird Care (South Gloucestershire),730.38, 21-Mar-2023
1009,Revenue,CAHD,Central - Commissioned Services,Other Small Contracts,Bluebird Care (South Gloucestershire),139.86, 21-Mar-2023
1010,Revenue,CAHD,Central - Commissioned Services,Other Small Contracts,Bluebird Care (South Gloucestershire),23.31, 21-Mar-2023
1011,Revenue,CAHD,Central - Commissioned Services,Other Small Contracts,Bluebird Care (South Gloucestershire),1864.8, 21-Mar-2023
1012,Revenue,CAHD,Central - Commissioned Services,Other Small Contracts,Bluebird Care (South Gloucestershire),155.4, 21-Mar-2023
1013,Revenue,CAHD,Central - Commissioned Services,Other Small Contracts,Bluebird Care (South Gloucestershire),279.72, 21-Mar-2023
1014,Revenue,CAHD,Central - Commissioned Services,Other Small Contracts,Bluebird Care (South Gloucestershire),31.08, 21-Mar-2023
1015,Revenue,CAHD,Central - Commissioned Services,Other Small Contracts,Bluebird Care (South Gloucestershire),202.02, 21-Mar-2023
1016,Revenue,CAHD,Central - Commissioned Services,Other Small Contracts,Bluebird Care (South Gloucestershire),668.22, 21-Mar-2023
1017,Revenue,CAHD,Central - Commissioned Services,Other Small Contracts,Bluebird Care (South Gloucestershire),163.17, 21-Mar-2023
1018,Revenue,CAHD,Central - Commissioned Services,Other Small Contracts,Bluebird Care (South Gloucestershire),124.32, 21-Mar-2023
1019,Revenue,CAHD,Central - Commissioned Services,Other Small Contracts,Bluebird Care (South Gloucestershire),940.17, 21-Mar-2023
1020,Revenue,CAHD,Central - Commissioned Services,Other Small Contracts,Bluebird Care (South Gloucestershire),46.62, 21-Mar-2023
1021,Revenue,CAHD,Central - Commissioned Services,Other Small Contracts,Bluebird Care (South Gloucestershire),38.85, 21-Mar-2023
1022,Revenue,CAHD,Central - Commissioned Services,Other Small Contracts,Bluebird Care (South Gloucestershire),186.48, 21-Mar-2023
1023,Revenue,CAHD,Central - Commissioned Services,Other Small Contracts,Bluebird Care (South Gloucestershire),1399.44, 21-Mar-2023
1024,Revenue,CAHD,Central - Commissioned Services,Other Small Contracts,Bluebird Care (South Gloucestershire),124.32, 21-Mar-2023
1025,Revenue,CAHD,Central - Commissioned Services,Other Small Contracts,Bluebird Care (South Gloucestershire),318.57, 21-Mar-2023
1026,Revenue,CAHD,Central - Commissioned Services,Other Small Contracts,Bluebird Care (South Gloucestershire),466.2, 21-Mar-2023
1027,Revenue,CAHD,Central - Commissioned Services,Other Small Contracts,Bluebird Care (South Gloucestershire),178.71, 21-Mar-2023
1028,Revenue,CAHD,Central - Commissioned Services,Other Small Contracts,Bluebird Care (South Gloucestershire),629.37, 21-Mar-2023
1029,Revenue,CAHD,Central - Commissioned Services,Other Small Contracts,Bluebird Care (South Gloucestershire),124.32, 21-Mar-2023
1030,Revenue,CAHD,Central - Commissioned Services,Other Small Contracts,Bluebird Care (South Gloucestershire),632.33, 21-Mar-2023
1031,Revenue,CAHD,Central - Commissioned Services,Other Small Contracts,Bluebird Care (South Gloucestershire),77.7, 21-Mar-2023
1032,Revenue,CAHD,Central - Commissioned Services,Other Small Contracts,Bluebird Care (South Gloucestershire),116.55, 21-Mar-2023
1033,Revenue,CAHD,Central - Commissioned Services,Other Small Contracts,Bluebird Care (South Gloucestershire),528.36, 21-Mar-2023
1034,Revenue,CAHD,Central - Commissioned Services,Other Small Contracts,Bluebird Care (South Gloucestershire),380.73, 21-Mar-2023
1035,Revenue,CAHD,South - Commissioned Services,Other Small Contracts,Bluebird Care (South Gloucestershire),481.74, 21-Mar-2023
1036,Revenue,CAHD,South - Commissioned Services,Other Small Contracts,Bluebird Care (South Gloucestershire),132.09, 21-Mar-2023
1037,Revenue,CAHD,South - Commissioned Services,Other Small Contracts,Bluebird Care (South Gloucestershire),427.35, 21-Mar-2023
1038,Revenue,CAHD,South - Commissioned Services,Other Small Contracts,Bluebird Care (South Gloucestershire),248.64, 21-Mar-2023
1039,Revenue,CAHD,South - Commissioned Services,Other Small Contracts,Bluebird Care (South Gloucestershire),287.49, 21-Mar-2023
1040,Revenue,CAHD,South - Commissioned Services,Other Small Contracts,Bluebird Care (South Gloucestershire),225.33, 21-Mar-2023
1041,Revenue,CAHD,South - Commissioned Services,Other Small Contracts,Bluebird Care (South Gloucestershire),1399.44, 21-Mar-2023
1042,Revenue,CAHD,South - Commissioned Services,Other Small Contracts,Bluebird Care (South Gloucestershire),62.16, 21-Mar-2023
1043,Revenue,CAHD,South - Commissioned Services,Other Small Contracts,Bluebird Care (South Gloucestershire),69.93, 21-Mar-2023
1044,Revenue,CAHD,South - Commissioned Services,Other Small Contracts,Bluebird Care (South Gloucestershire),116.55, 21-Mar-2023
1045,Revenue,CAHD,South - Commissioned Services,Other Small Contracts,Bluebird Care (South Gloucestershire),147.63, 21-Mar-2023
1046,Revenue,CAHD,South - Commissioned Services,Other Small Contracts,Bluebird Care (South Gloucestershire),62.16, 21-Mar-2023
1047,Revenue,CAHD,South - Commissioned Services,Other Small Contracts,Bluebird Care (South Gloucestershire),372.96, 21-Mar-2023
1048,Revenue,CAHD,North - Community based support,Other Small Contracts,Bluebird Care (South Gloucestershire),341.88, 21-Mar-2023
1049,Revenue,CAHD,North - Community based support,Other Small Contracts,Bluebird Care (South Gloucestershire),139.86, 21-Mar-2023
1050,Revenue,CAHD,North - Community based support,Other Small Contracts,Bluebird Care (South Gloucestershire),62.16, 21-Mar-2023
1051,Revenue,CAHD,North - Community based support,Other Small Contracts,Bluebird Care (South Gloucestershire),1623.72, 21-Mar-2023
1052,Revenue,CAHD,North - Community based support,Other Small Contracts,Bluebird Care (South Gloucestershire),139.86, 21-Mar-2023
1053,Revenue,CAHD,North - Community based support,Other Small Contracts,Bluebird Care (South Gloucestershire),318.57, 21-Mar-2023
1054,Revenue,CAHD,North - Community based support,Other Small Contracts,Bluebird Care (South Gloucestershire),62.16, 21-Mar-2023
1055,Revenue,CAHD,North - Community based support,Other Small Contracts,Bluebird Care (South Gloucestershire),101.01, 21-Mar-2023
1056,Revenue,CAHD,North - Community based support,Other Small Contracts,Bluebird Care (South Gloucestershire),750.36, 21-Mar-2023
1057,Revenue,CAHD,Central - Commissioned Services,Other Small Contracts,Bluebird Care (South Gloucestershire),116.55, 21-Mar-2023
1058,Revenue,CAHD,Central - Commissioned Services,Other Small Contracts,Bluebird Care (South Gloucestershire),101.01, 21-Mar-2023
1059,Revenue,CAHD,Central - Commissioned Services,Other Small Contracts,Bluebird Care (South Gloucestershire),714.84, 21-Mar-2023
1060,Revenue,CAHD,Central - Commissioned Services,Other Small Contracts,Bluebird Care (South Gloucestershire),139.86, 21-Mar-2023
1061,Revenue,CAHD,Central - Commissioned Services,Other Small Contracts,Bluebird Care (South Gloucestershire),15.54, 21-Mar-2023
1062,Revenue,CAHD,Central - Commissioned Services,Other Small Contracts,Bluebird Care (South Gloucestershire),1833.72, 21-Mar-2023
1063,Revenue,CAHD,Central - Commissioned Services,Other Small Contracts,Bluebird Care (South Gloucestershire),155.4, 21-Mar-2023
1064,Revenue,CAHD,Central - Commissioned Services,Other Small Contracts,Bluebird Care (South Gloucestershire),279.72, 21-Mar-2023
1065,Revenue,CAHD,Central - Commissioned Services,Other Small Contracts,Bluebird Care (South Gloucestershire),15.54, 21-Mar-2023
1066,Revenue,CAHD,Central - Commissioned Services,Other Small Contracts,Bluebird Care (South Gloucestershire),178.71, 21-Mar-2023
1067,Revenue,CAHD,Central - Commissioned Services,Other Small Contracts,Bluebird Care (South Gloucestershire),644.91, 21-Mar-2023
1068,Revenue,CAHD,Central - Commissioned Services,Other Small Contracts,Bluebird Care (South Gloucestershire),163.17, 21-Mar-2023
1069,Revenue,CAHD,Central - Commissioned Services,Other Small Contracts,Bluebird Care (South Gloucestershire),124.32, 21-Mar-2023
1070,Revenue,CAHD,Central - Commissioned Services,Other Small Contracts,Bluebird Care (South Gloucestershire),955.71, 21-Mar-2023
1071,Revenue,CAHD,Central - Commissioned Services,Other Small Contracts,Bluebird Care (South Gloucestershire),38.85, 21-Mar-2023
1072,Revenue,CAHD,Central - Commissioned Services,Other Small Contracts,Bluebird Care (South Gloucestershire),38.85, 21-Mar-2023
1073,Revenue,CAHD,Central - Commissioned Services,Other Small Contracts,Bluebird Care (South Gloucestershire),186.48, 21-Mar-2023
1074,Revenue,CAHD,Central - Commissioned Services,Other Small Contracts,Bluebird Care (South Gloucestershire),1399.44, 21-Mar-2023
1075,Revenue,CAHD,Central - Commissioned Services,Other Small Contracts,Bluebird Care (South Gloucestershire),108.78, 21-Mar-2023
1076,Revenue,CAHD,Central - Commissioned Services,Other Small Contracts,Bluebird Care (South Gloucestershire),303.03, 21-Mar-2023
1077,Revenue,CAHD,Central - Commissioned Services,Other Small Contracts,Bluebird Care (South Gloucestershire),481.74, 21-Mar-2023
1078,Revenue,CAHD,Central - Commissioned Services,Other Small Contracts,Bluebird Care (South Gloucestershire),116.55, 21-Mar-2023
1079,Revenue,CAHD,Central - Commissioned Services,Other Small Contracts,Bluebird Care (South Gloucestershire),637.14, 21-Mar-2023
1080,Revenue,CAHD,Central - Commissioned Services,Other Small Contracts,Bluebird Care (South Gloucestershire),124.32, 21-Mar-2023
1081,Revenue,CAHD,Central - Commissioned Services,Other Small Contracts,Bluebird Care (South Gloucestershire),647.87, 21-Mar-2023
1082,Revenue,CAHD,Central - Commissioned Services,Other Small Contracts,Bluebird Care (South Gloucestershire),62.16, 21-Mar-2023
1083,Revenue,CAHD,Central - Commissioned Services,Other Small Contracts,Bluebird Care (South Gloucestershire),124.32, 21-Mar-2023
1084,Revenue,CAHD,Central - Commissioned Services,Other Small Contracts,Bluebird Care (South Gloucestershire),606.06, 21-Mar-2023
1085,Revenue,CAHD,Central - Commissioned Services,Other Small Contracts,Bluebird Care (South Gloucestershire),372.96, 21-Mar-2023
1086,Revenue,CAHD,South - Commissioned Services,Other Small Contracts,Bluebird Care (South Gloucestershire),411.81, 21-Mar-2023
1087,Revenue,CAHD,South - Commissioned Services,Other Small Contracts,Bluebird Care (South Gloucestershire),132.09, 21-Mar-2023
1088,Revenue,CAHD,South - Commissioned Services,Other Small Contracts,Bluebird Care (South Gloucestershire),427.35, 21-Mar-2023
1089,Revenue,CAHD,South - Commissioned Services,Other Small Contracts,Bluebird Care (South Gloucestershire),271.95, 21-Mar-2023
1090,Revenue,CAHD,South - Commissioned Services,Other Small Contracts,Bluebird Care (South Gloucestershire),318.57, 21-Mar-2023
1091,Revenue,CAHD,South - Commissioned Services,Other Small Contracts,Bluebird Care (South Gloucestershire),248.64, 21-Mar-2023
1092,Revenue,CAHD,South - Commissioned Services,Other Small Contracts,Bluebird Care (South Gloucestershire),1399.44, 21-Mar-2023
1093,Revenue,CAHD,South - Commissioned Services,Other Small Contracts,Bluebird Care (South Gloucestershire),62.16, 21-Mar-2023
1094,Revenue,CAHD,South - Commissioned Services,Other Small Contracts,Bluebird Care (South Gloucestershire),93.24, 21-Mar-2023
1095,Revenue,CAHD,South - Commissioned Services,Other Small Contracts,Bluebird Care (South Gloucestershire),124.32, 21-Mar-2023
1096,Revenue,CAHD,South - Commissioned Services,Other Small Contracts,Bluebird Care (South Gloucestershire),85.47, 21-Mar-2023
1097,Revenue,CAHD,South - Commissioned Services,Other Small Contracts,Bluebird Care (South Gloucestershire),62.16, 21-Mar-2023
1098,Revenue,CAHD,South - Commissioned Services,Other Small Contracts,Bluebird Care (South Gloucestershire),349.65, 21-Mar-2023
1099,Revenue,CAHD,North - Community based support,Other Small Contracts,Bluebird Care (South Gloucestershire),341.88, 21-Mar-2023
1100,Revenue,CAHD,North - Community based support,Other Small Contracts,Bluebird Care (South Gloucestershire),186.48, 21-Mar-2023
1101,Revenue,CAHD,North - Community based support,Other Small Contracts,Bluebird Care (South Gloucestershire),62.16, 21-Mar-2023
1102,Revenue,CAHD,North - Community based support,Other Small Contracts,Bluebird Care (South Gloucestershire),1623.72, 21-Mar-2023
1103,Revenue,CAHD,North - Community based support,Other Small Contracts,Bluebird Care (South Gloucestershire),132.09, 21-Mar-2023
1104,Revenue,CAHD,North - Community based support,Other Small Contracts,Bluebird Care (South Gloucestershire),310.8, 21-Mar-2023
1105,Revenue,CAHD,North - Community based support,Other Small Contracts,Bluebird Care (South Gloucestershire),62.16, 21-Mar-2023
1106,Revenue,CAHD,North - Community based support,Other Small Contracts,Bluebird Care (South Gloucestershire),124.32, 21-Mar-2023
1107,Revenue,CAHD,North - Community based support,Other Small Contracts,Bluebird Care (South Gloucestershire),250.12, 21-Mar-2023
1108,Revenue,CAHD,Central - Commissioned Services,Other Small Contracts,Bluebird Care (South Gloucestershire),139.86, 21-Mar-2023
1109,Revenue,CAHD,Central - Commissioned Services,Other Small Contracts,Bluebird Care (South Gloucestershire),699.3, 21-Mar-2023
1110,Revenue,CAHD,Central - Commissioned Services,Other Small Contracts,Bluebird Care (South Gloucestershire),147.63, 21-Mar-2023
1111,Revenue,CAHD,Central - Commissioned Services,Other Small Contracts,Bluebird Care (South Gloucestershire),23.31, 21-Mar-2023
1112,Revenue,CAHD,Central - Commissioned Services,Other Small Contracts,Bluebird Care (South Gloucestershire),1849.26, 21-Mar-2023
1113,Revenue,CAHD,Central - Commissioned Services,Other Small Contracts,Bluebird Care (South Gloucestershire),147.63, 21-Mar-2023
1114,Revenue,CAHD,Central - Commissioned Services,Other Small Contracts,Bluebird Care (South Gloucestershire),279.72, 21-Mar-2023
1115,Revenue,CAHD,Central - Commissioned Services,Other Small Contracts,Bluebird Care (South Gloucestershire),31.08, 21-Mar-2023
1116,Revenue,CAHD,Central - Commissioned Services,Other Small Contracts,Bluebird Care (South Gloucestershire),225.33, 21-Mar-2023
1117,Revenue,CAHD,Central - Commissioned Services,Other Small Contracts,Bluebird Care (South Gloucestershire),660.45, 21-Mar-2023
1118,Revenue,CAHD,Central - Commissioned Services,Other Small Contracts,Bluebird Care (South Gloucestershire),163.17, 21-Mar-2023
1119,Revenue,CAHD,Central - Commissioned Services,Other Small Contracts,Bluebird Care (South Gloucestershire),85.47, 21-Mar-2023
1120,Revenue,CAHD,Central - Commissioned Services,Other Small Contracts,Bluebird Care (South Gloucestershire),971.25, 21-Mar-2023
1121,Revenue,CAHD,Central - Commissioned Services,Other Small Contracts,Bluebird Care (South Gloucestershire),46.62, 21-Mar-2023
1122,Revenue,CAHD,Central - Commissioned Services,Other Small Contracts,Bluebird Care (South Gloucestershire),194.25, 21-Mar-2023
1123,Revenue,CAHD,Central - Commissioned Services,Other Small Contracts,Bluebird Care (South Gloucestershire),1399.44, 21-Mar-2023
1124,Revenue,CAHD,Central - Commissioned Services,Other Small Contracts,Bluebird Care (South Gloucestershire),93.24, 21-Mar-2023
1125,Revenue,CAHD,Central - Commissioned Services,Other Small Contracts,Bluebird Care (South Gloucestershire),295.26, 21-Mar-2023
1126,Revenue,CAHD,Central - Commissioned Services,Other Small Contracts,Bluebird Care (South Gloucestershire),442.89, 21-Mar-2023
1127,Revenue,CAHD,Central - Commissioned Services,Other Small Contracts,Bluebird Care (South Gloucestershire),621.6, 21-Mar-2023
1128,Revenue,CAHD,Central - Commissioned Services,Other Small Contracts,Bluebird Care (South Gloucestershire),132.09, 21-Mar-2023
1129,Revenue,CAHD,Central - Commissioned Services,Other Small Contracts,Bluebird Care (South Gloucestershire),632.33, 21-Mar-2023
1130,Revenue,CAHD,Central - Commissioned Services,Other Small Contracts,Bluebird Care (South Gloucestershire),62.16, 21-Mar-2023
1131,Revenue,CAHD,Central - Commissioned Services,Other Small Contracts,Bluebird Care (South Gloucestershire),31.08, 21-Mar-2023
1132,Revenue,CAHD,Central - Commissioned Services,Other Small Contracts,Bluebird Care (South Gloucestershire),606.06, 21-Mar-2023
1133,Revenue,CAHD,Central - Commissioned Services,Other Small Contracts,Bluebird Care (South Gloucestershire),365.19, 21-Mar-2023
1134,Revenue,CAHD,South - Commissioned Services,Other Small Contracts,Bluebird Care (South Gloucestershire),450.66, 21-Mar-2023
1135,Revenue,CAHD,South - Commissioned Services,Other Small Contracts,Bluebird Care (South Gloucestershire),139.86, 21-Mar-2023
1136,Revenue,CAHD,South - Commissioned Services,Other Small Contracts,Bluebird Care (South Gloucestershire),427.35, 21-Mar-2023
1137,Revenue,CAHD,South - Commissioned Services,Other Small Contracts,Bluebird Care (South Gloucestershire),279.72, 21-Mar-2023
1138,Revenue,CAHD,South - Commissioned Services,Other Small Contracts,Bluebird Care (South Gloucestershire),334.11, 21-Mar-2023
1139,Revenue,CAHD,South - Commissioned Services,Other Small Contracts,Bluebird Care (South Gloucestershire),256.41, 21-Mar-2023
1140,Revenue,CAHD,South - Commissioned Services,Other Small Contracts,Bluebird Care (South Gloucestershire),1399.44, 21-Mar-2023
1141,Revenue,CAHD,South - Commissioned Services,Other Small Contracts,Bluebird Care (South Gloucestershire),62.16, 21-Mar-2023
1142,Revenue,CAHD,South - Commissioned Services,Other Small Contracts,Bluebird Care (South Gloucestershire),85.47, 21-Mar-2023
1143,Revenue,CAHD,South - Commissioned Services,Other Small Contracts,Bluebird Care (South Gloucestershire),93.24, 21-Mar-2023
1144,Revenue,CAHD,South - Commissioned Services,Other Small Contracts,Bluebird Care (South Gloucestershire),155.4, 21-Mar-2023
1145,Revenue,CAHD,South - Commissioned Services,Other Small Contracts,Bluebird Care (South Gloucestershire),54.39, 21-Mar-2023
1146,Revenue,CAHD,South - Commissioned Services,Other Small Contracts,Bluebird Care (South Gloucestershire),357.42, 21-Mar-2023
1147,Revenue,CAHD,North - Community based support,Other Small Contracts,Bluebird Care (South Gloucestershire),341.88, 21-Mar-2023
1148,Revenue,CAHD,North - Community based support,Other Small Contracts,Bluebird Care (South Gloucestershire),209.79, 21-Mar-2023
1149,Revenue,CAHD,North - Community based support,Other Small Contracts,Bluebird Care (South Gloucestershire),54.39, 21-Mar-2023
1150,Revenue,CAHD,North - Community based support,Other Small Contracts,Bluebird Care (South Gloucestershire),1631.49, 21-Mar-2023
1151,Revenue,CAHD,North - Community based support,Other Small Contracts,Bluebird Care (South Gloucestershire),132.09, 21-Mar-2023
1152,Revenue,CAHD,North - Community based support,Other Small Contracts,Bluebird Care (South Gloucestershire),271.95, 21-Mar-2023
1153,Revenue,CAHD,North - Community based support,Other Small Contracts,Bluebird Care (South Gloucestershire),54.39, 21-Mar-2023
1154,Revenue,CAHD,North - Community based support,Other Small Contracts,Bluebird Care (South Gloucestershire),124.32, 21-Mar-2023
1155,Revenue,CAHD,North - Community based support,Other Small Contracts,Bluebird Care (South Gloucestershire),1750.84, 21-Mar-2023
1156,Revenue,CAHD,Central - Commissioned Services,Other Small Contracts,Bluebird Care (South Gloucestershire),132.09, 21-Mar-2023
1157,Revenue,CAHD,Central - Commissioned Services,Other Small Contracts,Bluebird Care (South Gloucestershire),124.32, 21-Mar-2023
1158,Revenue,CAHD,Central - Commissioned Services,Other Small Contracts,Bluebird Care (South Gloucestershire),699.3, 21-Mar-2023
1159,Revenue,CAHD,Central - Commissioned Services,Other Small Contracts,Bluebird Care (South Gloucestershire),124.32, 21-Mar-2023
1160,Revenue,CAHD,Central - Commissioned Services,Other Small Contracts,Bluebird Care (South Gloucestershire),31.08, 21-Mar-2023
1161,Revenue,CAHD,Central - Commissioned Services,Other Small Contracts,Bluebird Care (South Gloucestershire),1787.1, 21-Mar-2023
1162,Revenue,CAHD,Central - Commissioned Services,Other Small Contracts,Bluebird Care (South Gloucestershire),155.4, 21-Mar-2023
1163,Revenue,CAHD,Central - Commissioned Services,Other Small Contracts,Bluebird Care (South Gloucestershire),279.72, 21-Mar-2023
1164,Revenue,CAHD,Central - Commissioned Services,Other Small Contracts,Bluebird Care (South Gloucestershire),31.08, 21-Mar-2023
1165,Revenue,CAHD,Central - Commissioned Services,Other Small Contracts,Bluebird Care (South Gloucestershire),209.79, 21-Mar-2023
1166,Revenue,CAHD,Central - Commissioned Services,Other Small Contracts,Bluebird Care (South Gloucestershire),644.91, 21-Mar-2023
1167,Revenue,CAHD,Central - Commissioned Services,Other Small Contracts,Bluebird Care (South Gloucestershire),116.55, 21-Mar-2023
1168,Revenue,CAHD,Central - Commissioned Services,Other Small Contracts,Bluebird Care (South Gloucestershire),116.55, 21-Mar-2023
1169,Revenue,CAHD,Central - Commissioned Services,Other Small Contracts,Bluebird Care (South Gloucestershire),947.94, 21-Mar-2023
1170,Revenue,CAHD,Central - Commissioned Services,Other Small Contracts,Bluebird Care (South Gloucestershire),31.08, 21-Mar-2023
1171,Revenue,CAHD,Central - Commissioned Services,Other Small Contracts,Bluebird Care (South Gloucestershire),38.85, 21-Mar-2023
1172,Revenue,CAHD,Central - Commissioned Services,Other Small Contracts,Bluebird Care (South Gloucestershire),209.79, 21-Mar-2023
1173,Revenue,CAHD,Central - Commissioned Services,Other Small Contracts,Bluebird Care (South Gloucestershire),1399.44, 21-Mar-2023
1174,Revenue,CAHD,Central - Commissioned Services,Other Small Contracts,Bluebird Care (South Gloucestershire),116.55, 21-Mar-2023
1175,Revenue,CAHD,Central - Commissioned Services,Other Small Contracts,Bluebird Care (South Gloucestershire),233.1, 21-Mar-2023
1176,Revenue,CAHD,Central - Commissioned Services,Other Small Contracts,Bluebird Care (South Gloucestershire),442.89, 21-Mar-2023
1177,Revenue,CAHD,Central - Commissioned Services,Other Small Contracts,Bluebird Care (South Gloucestershire),598.29, 21-Mar-2023
1178,Revenue,CAHD,Central - Commissioned Services,Other Small Contracts,Bluebird Care (South Gloucestershire),124.32, 21-Mar-2023
1179,Revenue,CAHD,Central - Commissioned Services,Other Small Contracts,Bluebird Care (South Gloucestershire),624.56, 21-Mar-2023
1180,Revenue,CAHD,Central - Commissioned Services,Other Small Contracts,Bluebird Care (South Gloucestershire),77.7, 21-Mar-2023
1181,Revenue,CAHD,Central - Commissioned Services,Other Small Contracts,Bluebird Care (South Gloucestershire),132.09, 21-Mar-2023
1182,Revenue,CAHD,Central - Commissioned Services,Other Small Contracts,Bluebird Care (South Gloucestershire),582.75, 21-Mar-2023
1183,Revenue,CAHD,Central - Commissioned Services,Other Small Contracts,Bluebird Care (South Gloucestershire),380.73, 21-Mar-2023
1184,Revenue,CAHD,South - Commissioned Services,Other Small Contracts,Bluebird Care (South Gloucestershire),458.43, 21-Mar-2023
1185,Revenue,CAHD,South - Commissioned Services,Other Small Contracts,Bluebird Care (South Gloucestershire),147.63, 21-Mar-2023
1186,Revenue,CAHD,South - Commissioned Services,Other Small Contracts,Bluebird Care (South Gloucestershire),536.13, 21-Mar-2023
1187,Revenue,CAHD,South - Commissioned Services,Other Small Contracts,Bluebird Care (South Gloucestershire),248.64, 21-Mar-2023
1188,Revenue,CAHD,South - Commissioned Services,Other Small Contracts,Bluebird Care (South Gloucestershire),365.19, 21-Mar-2023
1189,Revenue,CAHD,South - Commissioned Services,Other Small Contracts,Bluebird Care (South Gloucestershire),264.18, 21-Mar-2023
1190,Revenue,CAHD,South - Commissioned Services,Other Small Contracts,Bluebird Care (South Gloucestershire),1399.44, 21-Mar-2023
1191,Revenue,CAHD,South - Commissioned Services,Other Small Contracts,Bluebird Care (South Gloucestershire),62.16, 21-Mar-2023
1192,Revenue,CAHD,South - Commissioned Services,Other Small Contracts,Bluebird Care (South Gloucestershire),77.7, 21-Mar-2023
1193,Revenue,CAHD,South - Commissioned Services,Other Small Contracts,Bluebird Care (South Gloucestershire),124.32, 21-Mar-2023
1194,Revenue,CAHD,South - Commissioned Services,Other Small Contracts,Bluebird Care (South Gloucestershire),62.16, 21-Mar-2023
1195,Revenue,CAHD,South - Commissioned Services,Other Small Contracts,Bluebird Care (South Gloucestershire),341.88, 21-Mar-2023
1196,Revenue,CAHD,North - Community based support,Other Small Contracts,Bluebird Care (South Gloucestershire),341.88, 21-Mar-2023
1197,Revenue,CAHD,North - Community based support,Other Small Contracts,Bluebird Care (South Gloucestershire),155.4, 21-Mar-2023
1198,Revenue,CAHD,North - Community based support,Other Small Contracts,Bluebird Care (South Gloucestershire),62.16, 21-Mar-2023
1199,Revenue,CAHD,North - Community based support,Other Small Contracts,Bluebird Care (South Gloucestershire),1639.26, 21-Mar-2023
1200,Revenue,CAHD,North - Community based support,Other Small Contracts,Bluebird Care (South Gloucestershire),132.09, 21-Mar-2023
1201,Revenue,CAHD,North - Community based support,Other Small Contracts,Bluebird Care (South Gloucestershire),326.34, 21-Mar-2023
1202,Revenue,CAHD,North - Community based support,Other Small Contracts,Bluebird Care (South Gloucestershire),38.85, 21-Mar-2023
1203,Revenue,CAHD,North - Community based support,Other Small Contracts,Bluebird Care (South Gloucestershire),85.47, 21-Mar-2023
1204,Revenue,CAHD,North - Community based support,Other Small Contracts,Bluebird Care (South Gloucestershire),1750.84, 21-Mar-2023
1205,Revenue,CAHD,Central - Commissioned Services,Other Small Contracts,Bluebird Care (South Gloucestershire),139.86, 06-Mar-2023
1206,Revenue,CAHD,Central - Commissioned Services,Other Small Contracts,Bluebird Care (South Gloucestershire),116.55, 06-Mar-2023
1207,Revenue,CAHD,Central - Commissioned Services,Other Small Contracts,Bluebird Care (South Gloucestershire),745.92, 06-Mar-2023
1208,Revenue,CAHD,Central - Commissioned Services,Other Small Contracts,Bluebird Care (South Gloucestershire),31.08, 06-Mar-2023
1209,Revenue,CAHD,Central - Commissioned Services,Other Small Contracts,Bluebird Care (South Gloucestershire),1833.72, 06-Mar-2023
1210,Revenue,CAHD,Central - Commissioned Services,Other Small Contracts,Bluebird Care (South Gloucestershire),155.4, 06-Mar-2023
1211,Revenue,CAHD,Central - Commissioned Services,Other Small Contracts,Bluebird Care (South Gloucestershire),209.79, 06-Mar-2023
1212,Revenue,CAHD,Central - Commissioned Services,Other Small Contracts,Bluebird Care (South Gloucestershire),163.17, 06-Mar-2023
1213,Revenue,CAHD,Central - Commissioned Services,Other Small Contracts,Bluebird Care (South Gloucestershire),124.32, 06-Mar-2023
1214,Revenue,CAHD,Central - Commissioned Services,Other Small Contracts,Bluebird Care (South Gloucestershire),940.17, 06-Mar-2023
1215,Revenue,CAHD,Central - Commissioned Services,Other Small Contracts,Bluebird Care (South Gloucestershire),46.62, 06-Mar-2023
1216,Revenue,CAHD,Central - Commissioned Services,Other Small Contracts,Bluebird Care (South Gloucestershire),528.36, 06-Mar-2023
1217,Revenue,CAHD,Central - Commissioned Services,Other Small Contracts,Bluebird Care (South Gloucestershire),46.62, 06-Mar-2023
1218,Revenue,CAHD,Central - Commissioned Services,Other Small Contracts,Bluebird Care (South Gloucestershire),202.02, 06-Mar-2023
1219,Revenue,CAHD,Central - Commissioned Services,Other Small Contracts,Bluebird Care (South Gloucestershire),1399.44, 06-Mar-2023
1220,Revenue,CAHD,Central - Commissioned Services,Other Small Contracts,Bluebird Care (South Gloucestershire),139.86, 06-Mar-2023
1221,Revenue,CAHD,Central - Commissioned Services,Other Small Contracts,Bluebird Care (South Gloucestershire),450.66, 06-Mar-2023
1222,Revenue,CAHD,Central - Commissioned Services,Other Small Contracts,Bluebird Care (South Gloucestershire),621.6, 06-Mar-2023
1223,Revenue,CAHD,Central - Commissioned Services,Other Small Contracts,Bluebird Care (South Gloucestershire),655.64, 06-Mar-2023
1224,Revenue,CAHD,Central - Commissioned Services,Other Small Contracts,Bluebird Care (South Gloucestershire),77.7, 06-Mar-2023
1225,Revenue,CAHD,Central - Commissioned Services,Other Small Contracts,Bluebird Care (South Gloucestershire),396.27, 06-Mar-2023
1226,Revenue,CAHD,Central - Commissioned Services,Other Small Contracts,Bluebird Care (South Gloucestershire),155.4, 06-Mar-2023
1227,Revenue,CAHD,South - Commissioned Services,Other Small Contracts,Bluebird Care (South Gloucestershire),481.74, 06-Mar-2023
1228,Revenue,CAHD,South - Commissioned Services,Other Small Contracts,Bluebird Care (South Gloucestershire),310.8, 06-Mar-2023
1229,Revenue,CAHD,South - Commissioned Services,Other Small Contracts,Bluebird Care (South Gloucestershire),613.83, 06-Mar-2023
1230,Revenue,CAHD,South - Commissioned Services,Other Small Contracts,Bluebird Care (South Gloucestershire),248.64, 06-Mar-2023
1231,Revenue,CAHD,South - Commissioned Services,Other Small Contracts,Bluebird Care (South Gloucestershire),240.87, 06-Mar-2023
1232,Revenue,CAHD,South - Commissioned Services,Other Small Contracts,Bluebird Care (South Gloucestershire),1399.44, 06-Mar-2023
1233,Revenue,CAHD,South - Commissioned Services,Other Small Contracts,Bluebird Care (South Gloucestershire),62.16, 06-Mar-2023
1234,Revenue,CAHD,South - Commissioned Services,Other Small Contracts,Bluebird Care (South Gloucestershire),124.32, 06-Mar-2023
1235,Revenue,CAHD,South - Commissioned Services,Other Small Contracts,Bluebird Care (South Gloucestershire),62.16, 06-Mar-2023
1236,Revenue,CAHD,South - Commissioned Services,Other Small Contracts,Bluebird Care (South Gloucestershire),388.5, 06-Mar-2023
1237,Revenue,CAHD,North - Community based support,Other Small Contracts,Bluebird Care (South Gloucestershire),341.88, 06-Mar-2023
1238,Revenue,CAHD,North - Community based support,Other Small Contracts,Bluebird Care (South Gloucestershire),194.25, 06-Mar-2023
1239,Revenue,CAHD,North - Community based support,Other Small Contracts,Bluebird Care (South Gloucestershire),147.63, 06-Mar-2023
1240,Revenue,CAHD,North - Community based support,Other Small Contracts,Bluebird Care (South Gloucestershire),1654.8, 06-Mar-2023
1241,Revenue,CAHD,North - Community based support,Other Small Contracts,Bluebird Care (South Gloucestershire),23.31, 06-Mar-2023
1242,Revenue,CAHD,North - Community based support,Other Small Contracts,Bluebird Care (South Gloucestershire),132.09, 06-Mar-2023
1243,Revenue,CAHD,North - Community based support,Other Small Contracts,Bluebird Care (South Gloucestershire),365.19, 06-Mar-2023
1244,Revenue,CAHD,North - Community based support,Other Small Contracts,Bluebird Care (South Gloucestershire),1750.84, 06-Mar-2023
1245,Revenue,CAHD,North - Community based support,Other Small Contracts,Bluebird Care (South Gloucestershire),947.94, 06-Mar-2023
1246,Revenue,CAHD,North - Community based support,Other Small Contracts,Bluebird Care (South Gloucestershire),93.24, 06-Mar-2023
1247,Revenue,CAHD,Central - Commissioned Services,Other Small Contracts,Bluebird Care (South Gloucestershire),155.4, 06-Mar-2023
1248,Revenue,CAHD,Central - Commissioned Services,Other Small Contracts,Bluebird Care (South Gloucestershire),46.62, 06-Mar-2023
1249,Revenue,CAHD,Central - Commissioned Services,Other Small Contracts,Bluebird Care (South Gloucestershire),745.92, 06-Mar-2023
1250,Revenue,CAHD,Central - Commissioned Services,Other Small Contracts,Bluebird Care (South Gloucestershire),23.31, 06-Mar-2023
1251,Revenue,CAHD,Central - Commissioned Services,Other Small Contracts,Bluebird Care (South Gloucestershire),1849.26, 06-Mar-2023
1252,Revenue,CAHD,Central - Commissioned Services,Other Small Contracts,Bluebird Care (South Gloucestershire),147.63, 06-Mar-2023
1253,Revenue,CAHD,Central - Commissioned Services,Other Small Contracts,Bluebird Care (South Gloucestershire),225.33, 06-Mar-2023
1254,Revenue,CAHD,Central - Commissioned Services,Other Small Contracts,Bluebird Care (South Gloucestershire),163.17, 06-Mar-2023
1255,Revenue,CAHD,Central - Commissioned Services,Other Small Contracts,Bluebird Care (South Gloucestershire),124.32, 06-Mar-2023
1256,Revenue,CAHD,Central - Commissioned Services,Other Small Contracts,Bluebird Care (South Gloucestershire),947.94, 06-Mar-2023
1257,Revenue,CAHD,Central - Commissioned Services,Other Small Contracts,Bluebird Care (South Gloucestershire),46.62, 06-Mar-2023
1258,Revenue,CAHD,Central - Commissioned Services,Other Small Contracts,Bluebird Care (South Gloucestershire),559.44, 06-Mar-2023
1259,Revenue,CAHD,Central - Commissioned Services,Other Small Contracts,Bluebird Care (South Gloucestershire),46.62, 06-Mar-2023
1260,Revenue,CAHD,Central - Commissioned Services,Other Small Contracts,Bluebird Care (South Gloucestershire),202.02, 06-Mar-2023
1261,Revenue,CAHD,Central - Commissioned Services,Other Small Contracts,Bluebird Care (South Gloucestershire),1399.44, 06-Mar-2023
1262,Revenue,CAHD,Central - Commissioned Services,Other Small Contracts,Bluebird Care (South Gloucestershire),132.09, 06-Mar-2023
1263,Revenue,CAHD,Central - Commissioned Services,Other Small Contracts,Bluebird Care (South Gloucestershire),442.89, 06-Mar-2023
1264,Revenue,CAHD,Central - Commissioned Services,Other Small Contracts,Bluebird Care (South Gloucestershire),644.91, 06-Mar-2023
1265,Revenue,CAHD,Central - Commissioned Services,Other Small Contracts,Bluebird Care (South Gloucestershire),647.87, 06-Mar-2023
1266,Revenue,CAHD,Central - Commissioned Services,Other Small Contracts,Bluebird Care (South Gloucestershire),93.24, 06-Mar-2023
1267,Revenue,CAHD,Central - Commissioned Services,Other Small Contracts,Bluebird Care (South Gloucestershire),404.04, 06-Mar-2023
1268,Revenue,CAHD,South - Commissioned Services,Other Small Contracts,Bluebird Care (South Gloucestershire),466.2, 06-Mar-2023
1269,Revenue,CAHD,South - Commissioned Services,Other Small Contracts,Bluebird Care (South Gloucestershire),303.03, 06-Mar-2023
1270,Revenue,CAHD,South - Commissioned Services,Other Small Contracts,Bluebird Care (South Gloucestershire),512.82, 06-Mar-2023
1271,Revenue,CAHD,South - Commissioned Services,Other Small Contracts,Bluebird Care (South Gloucestershire),248.64, 06-Mar-2023
1272,Revenue,CAHD,South - Commissioned Services,Other Small Contracts,Bluebird Care (South Gloucestershire),271.95, 06-Mar-2023
1273,Revenue,CAHD,South - Commissioned Services,Other Small Contracts,Bluebird Care (South Gloucestershire),1399.44, 06-Mar-2023
1274,Revenue,CAHD,South - Commissioned Services,Other Small Contracts,Bluebird Care (South Gloucestershire),62.16, 06-Mar-2023
1275,Revenue,CAHD,South - Commissioned Services,Other Small Contracts,Bluebird Care (South Gloucestershire),124.32, 06-Mar-2023
1276,Revenue,CAHD,South - Commissioned Services,Other Small Contracts,Bluebird Care (South Gloucestershire),54.39, 06-Mar-2023
1277,Revenue,CAHD,South - Commissioned Services,Other Small Contracts,Bluebird Care (South Gloucestershire),372.96, 06-Mar-2023
1278,Revenue,CAHD,North - Community based support,Other Small Contracts,Bluebird Care (South Gloucestershire),341.88, 06-Mar-2023
1279,Revenue,CAHD,North - Community based support,Other Small Contracts,Bluebird Care (South Gloucestershire),155.4, 06-Mar-2023
1280,Revenue,CAHD,North - Community based support,Other Small Contracts,Bluebird Care (South Gloucestershire),155.4, 06-Mar-2023
1281,Revenue,CAHD,North - Community based support,Other Small Contracts,Bluebird Care (South Gloucestershire),1709.19, 06-Mar-2023
1282,Revenue,CAHD,North - Community based support,Other Small Contracts,Bluebird Care (South Gloucestershire),46.62, 06-Mar-2023
1283,Revenue,CAHD,North - Community based support,Other Small Contracts,Bluebird Care (South Gloucestershire),139.86, 06-Mar-2023
1284,Revenue,CAHD,North - Community based support,Other Small Contracts,Bluebird Care (South Gloucestershire),341.88, 06-Mar-2023
1285,Revenue,CAHD,North - Community based support,Other Small Contracts,Bluebird Care (South Gloucestershire),1776.74, 06-Mar-2023
1286,Revenue,CAHD,North - Community based support,Other Small Contracts,Bluebird Care (South Gloucestershire),893.55, 06-Mar-2023
1287,Revenue,CAHD,North - Community based support,Other Small Contracts,Bluebird Care (South Gloucestershire),93.24, 06-Mar-2023
1288,Revenue,CAHD,Central - Commissioned Services,Other Small Contracts,Bluebird Care (South Gloucestershire),124.32, 21-Mar-2023
1289,Revenue,CAHD,Central - Commissioned Services,Other Small Contracts,Bluebird Care (South Gloucestershire),116.55, 21-Mar-2023
1290,Revenue,CAHD,Central - Commissioned Services,Other Small Contracts,Bluebird Care (South Gloucestershire),722.61, 21-Mar-2023
1291,Revenue,CAHD,Central - Commissioned Services,Other Small Contracts,Bluebird Care (South Gloucestershire),31.08, 21-Mar-2023
1292,Revenue,CAHD,Central - Commissioned Services,Other Small Contracts,Bluebird Care (South Gloucestershire),1841.49, 21-Mar-2023
1293,Revenue,CAHD,Central - Commissioned Services,Other Small Contracts,Bluebird Care (South Gloucestershire),147.63, 21-Mar-2023
1294,Revenue,CAHD,Central - Commissioned Services,Other Small Contracts,Bluebird Care (South Gloucestershire),225.33, 21-Mar-2023
1295,Revenue,CAHD,Central - Commissioned Services,Other Small Contracts,Bluebird Care (South Gloucestershire),163.17, 21-Mar-2023
1296,Revenue,CAHD,Central - Commissioned Services,Other Small Contracts,Bluebird Care (South Gloucestershire),124.32, 21-Mar-2023
1297,Revenue,CAHD,Central - Commissioned Services,Other Small Contracts,Bluebird Care (South Gloucestershire),932.4, 21-Mar-2023
1298,Revenue,CAHD,Central - Commissioned Services,Other Small Contracts,Bluebird Care (South Gloucestershire),46.62, 21-Mar-2023
1299,Revenue,CAHD,Central - Commissioned Services,Other Small Contracts,Bluebird Care (South Gloucestershire),543.9, 21-Mar-2023
1300,Revenue,CAHD,Central - Commissioned Services,Other Small Contracts,Bluebird Care (South Gloucestershire),38.85, 21-Mar-2023
1301,Revenue,CAHD,Central - Commissioned Services,Other Small Contracts,Bluebird Care (South Gloucestershire),163.17, 21-Mar-2023
1302,Revenue,CAHD,Central - Commissioned Services,Other Small Contracts,Bluebird Care (South Gloucestershire),1399.44, 21-Mar-2023
1303,Revenue,CAHD,Central - Commissioned Services,Other Small Contracts,Bluebird Care (South Gloucestershire),170.94, 21-Mar-2023
1304,Revenue,CAHD,Central - Commissioned Services,Other Small Contracts,Bluebird Care (South Gloucestershire),466.2, 21-Mar-2023
1305,Revenue,CAHD,Central - Commissioned Services,Other Small Contracts,Bluebird Care (South Gloucestershire),629.37, 21-Mar-2023
1306,Revenue,CAHD,Central - Commissioned Services,Other Small Contracts,Bluebird Care (South Gloucestershire),616.79, 21-Mar-2023
1307,Revenue,CAHD,Central - Commissioned Services,Other Small Contracts,Bluebird Care (South Gloucestershire),62.16, 21-Mar-2023
1308,Revenue,CAHD,Central - Commissioned Services,Other Small Contracts,Bluebird Care (South Gloucestershire),357.42, 21-Mar-2023
1309,Revenue,CAHD,South - Commissioned Services,Other Small Contracts,Bluebird Care (South Gloucestershire),466.2, 21-Mar-2023
1310,Revenue,CAHD,South - Commissioned Services,Other Small Contracts,Bluebird Care (South Gloucestershire),295.26, 21-Mar-2023
1311,Revenue,CAHD,South - Commissioned Services,Other Small Contracts,Bluebird Care (South Gloucestershire),512.82, 21-Mar-2023
1312,Revenue,CAHD,South - Commissioned Services,Other Small Contracts,Bluebird Care (South Gloucestershire),233.1, 21-Mar-2023
1313,Revenue,CAHD,South - Commissioned Services,Other Small Contracts,Bluebird Care (South Gloucestershire),248.64, 21-Mar-2023
1314,Revenue,CAHD,South - Commissioned Services,Other Small Contracts,Bluebird Care (South Gloucestershire),1399.44, 21-Mar-2023
1315,Revenue,CAHD,South - Commissioned Services,Other Small Contracts,Bluebird Care (South Gloucestershire),62.16, 21-Mar-2023
1316,Revenue,CAHD,South - Commissioned Services,Other Small Contracts,Bluebird Care (South Gloucestershire),101.01, 21-Mar-2023
1317,Revenue,CAHD,South - Commissioned Services,Other Small Contracts,Bluebird Care (South Gloucestershire),62.16, 21-Mar-2023
1318,Revenue,CAHD,South - Commissioned Services,Other Small Contracts,Bluebird Care (South Gloucestershire),380.73, 21-Mar-2023
1319,Revenue,CAHD,North - Community based support,Other Small Contracts,Bluebird Care (South Gloucestershire),341.88, 21-Mar-2023
1320,Revenue,CAHD,North - Community based support,Other Small Contracts,Bluebird Care (South Gloucestershire),186.48, 21-Mar-2023
1321,Revenue,CAHD,North - Community based support,Other Small Contracts,Bluebird Care (South Gloucestershire),163.17, 21-Mar-2023
1322,Revenue,CAHD,North - Community based support,Other Small Contracts,Bluebird Care (South Gloucestershire),1685.88, 21-Mar-2023
1323,Revenue,CAHD,North - Community based support,Other Small Contracts,Bluebird Care (South Gloucestershire),15.54, 21-Mar-2023
1324,Revenue,CAHD,North - Community based support,Other Small Contracts,Bluebird Care (South Gloucestershire),139.86, 21-Mar-2023
1325,Revenue,CAHD,North - Community based support,Other Small Contracts,Bluebird Care (South Gloucestershire),318.57, 21-Mar-2023
1326,Revenue,CAHD,North - Community based support,Other Small Contracts,Bluebird Care (South Gloucestershire),1750.84, 21-Mar-2023
1327,Revenue,CAHD,North - Community based support,Other Small Contracts,Bluebird Care (South Gloucestershire),862.47, 21-Mar-2023
1328,Revenue,CAHD,North - Community based support,Other Small Contracts,Bluebird Care (South Gloucestershire),93.24, 21-Mar-2023
1329,Revenue,CAHD,Central - Commissioned Services,Other Small Contracts,Bluebird Care (South Gloucestershire),139.86, 21-Mar-2023
1330,Revenue,CAHD,Central - Commissioned Services,Other Small Contracts,Bluebird Care (South Gloucestershire),124.32, 21-Mar-2023
1331,Revenue,CAHD,Central - Commissioned Services,Other Small Contracts,Bluebird Care (South Gloucestershire),722.61, 21-Mar-2023
1332,Revenue,CAHD,Central - Commissioned Services,Other Small Contracts,Bluebird Care (South Gloucestershire),31.08, 21-Mar-2023
1333,Revenue,CAHD,Central - Commissioned Services,Other Small Contracts,Bluebird Care (South Gloucestershire),1841.49, 21-Mar-2023
1334,Revenue,CAHD,Central - Commissioned Services,Other Small Contracts,Bluebird Care (South Gloucestershire),124.32, 21-Mar-2023
1335,Revenue,CAHD,Central - Commissioned Services,Other Small Contracts,Bluebird Care (South Gloucestershire),225.33, 21-Mar-2023
1336,Revenue,CAHD,Central - Commissioned Services,Other Small Contracts,Bluebird Care (South Gloucestershire),163.17, 21-Mar-2023
1337,Revenue,CAHD,Central - Commissioned Services,Other Small Contracts,Bluebird Care (South Gloucestershire),124.32, 21-Mar-2023
1338,Revenue,CAHD,Central - Commissioned Services,Other Small Contracts,Bluebird Care (South Gloucestershire),932.4, 21-Mar-2023
1339,Revenue,CAHD,Central - Commissioned Services,Other Small Contracts,Bluebird Care (South Gloucestershire),38.85, 21-Mar-2023
1340,Revenue,CAHD,Central - Commissioned Services,Other Small Contracts,Bluebird Care (South Gloucestershire),551.67, 21-Mar-2023
1341,Revenue,CAHD,Central - Commissioned Services,Other Small Contracts,Bluebird Care (South Gloucestershire),46.62, 21-Mar-2023
1342,Revenue,CAHD,Central - Commissioned Services,Other Small Contracts,Bluebird Care (South Gloucestershire),194.25, 21-Mar-2023
1343,Revenue,CAHD,Central - Commissioned Services,Other Small Contracts,Bluebird Care (South Gloucestershire),1399.44, 21-Mar-2023
1344,Revenue,CAHD,Central - Commissioned Services,Other Small Contracts,Bluebird Care (South Gloucestershire),186.48, 21-Mar-2023
1345,Revenue,CAHD,Central - Commissioned Services,Other Small Contracts,Bluebird Care (South Gloucestershire),435.12, 21-Mar-2023
1346,Revenue,CAHD,Central - Commissioned Services,Other Small Contracts,Bluebird Care (South Gloucestershire),621.6, 21-Mar-2023
1347,Revenue,CAHD,Central - Commissioned Services,Other Small Contracts,Bluebird Care (South Gloucestershire),642.69, 21-Mar-2023
1348,Revenue,CAHD,Central - Commissioned Services,Other Small Contracts,Bluebird Care (South Gloucestershire),54.39, 21-Mar-2023
1349,Revenue,CAHD,Central - Commissioned Services,Other Small Contracts,Bluebird Care (South Gloucestershire),411.81, 21-Mar-2023
1350,Revenue,CAHD,South - Commissioned Services,Other Small Contracts,Bluebird Care (South Gloucestershire),458.43, 21-Mar-2023
1351,Revenue,CAHD,South - Commissioned Services,Other Small Contracts,Bluebird Care (South Gloucestershire),310.8, 21-Mar-2023
1352,Revenue,CAHD,South - Commissioned Services,Other Small Contracts,Bluebird Care (South Gloucestershire),512.82, 21-Mar-2023
1353,Revenue,CAHD,South - Commissioned Services,Other Small Contracts,Bluebird Care (South Gloucestershire),217.56, 21-Mar-2023
1354,Revenue,CAHD,South - Commissioned Services,Other Small Contracts,Bluebird Care (South Gloucestershire),271.95, 21-Mar-2023
1355,Revenue,CAHD,South - Commissioned Services,Other Small Contracts,Bluebird Care (South Gloucestershire),1399.44, 21-Mar-2023
1356,Revenue,CAHD,South - Commissioned Services,Other Small Contracts,Bluebird Care (South Gloucestershire),62.16, 21-Mar-2023
1357,Revenue,CAHD,South - Commissioned Services,Other Small Contracts,Bluebird Care (South Gloucestershire),124.32, 21-Mar-2023
1358,Revenue,CAHD,South - Commissioned Services,Other Small Contracts,Bluebird Care (South Gloucestershire),54.39, 21-Mar-2023
1359,Revenue,CAHD,South - Commissioned Services,Other Small Contracts,Bluebird Care (South Gloucestershire),380.73, 21-Mar-2023
1360,Revenue,CAHD,North - Community based support,Other Small Contracts,Bluebird Care (South Gloucestershire),334.11, 21-Mar-2023
1361,Revenue,CAHD,North - Community based support,Other Small Contracts,Bluebird Care (South Gloucestershire),202.02, 21-Mar-2023
1362,Revenue,CAHD,North - Community based support,Other Small Contracts,Bluebird Care (South Gloucestershire),163.17, 21-Mar-2023
1363,Revenue,CAHD,North - Community based support,Other Small Contracts,Bluebird Care (South Gloucestershire),1639.26, 21-Mar-2023
1364,Revenue,CAHD,North - Community based support,Other Small Contracts,Bluebird Care (South Gloucestershire),15.54, 21-Mar-2023
1365,Revenue,CAHD,North - Community based support,Other Small Contracts,Bluebird Care (South Gloucestershire),139.86, 21-Mar-2023
1366,Revenue,CAHD,North - Community based support,Other Small Contracts,Bluebird Care (South Gloucestershire),326.34, 21-Mar-2023
1367,Revenue,CAHD,North - Community based support,Other Small Contracts,Bluebird Care (South Gloucestershire),1750.84, 21-Mar-2023
1368,Revenue,CAHD,North - Community based support,Other Small Contracts,Bluebird Care (South Gloucestershire),885.78, 21-Mar-2023
1369,Revenue,CAHD,North - Community based support,Other Small Contracts,Bluebird Care (South Gloucestershire),93.24, 21-Mar-2023
1370,Revenue,CAHD,Central - Commissioned Services,Other Small Contracts,Bluebird Care (South Gloucestershire),132.09, 28-Mar-2023
1371,Revenue,CAHD,Central - Commissioned Services,Other Small Contracts,Bluebird Care (South Gloucestershire),124.32, 28-Mar-2023
1372,Revenue,CAHD,Central - Commissioned Services,Other Small Contracts,Bluebird Care (South Gloucestershire),761.46, 28-Mar-2023
1373,Revenue,CAHD,Central - Commissioned Services,Other Small Contracts,Bluebird Care (South Gloucestershire),31.08, 28-Mar-2023
1374,Revenue,CAHD,Central - Commissioned Services,Other Small Contracts,Bluebird Care (South Gloucestershire),1818.18, 28-Mar-2023
1375,Revenue,CAHD,Central - Commissioned Services,Other Small Contracts,Bluebird Care (South Gloucestershire),155.4, 28-Mar-2023
1376,Revenue,CAHD,Central - Commissioned Services,Other Small Contracts,Bluebird Care (South Gloucestershire),202.02, 28-Mar-2023
1377,Revenue,CAHD,Central - Commissioned Services,Other Small Contracts,Bluebird Care (South Gloucestershire),163.17, 28-Mar-2023
1378,Revenue,CAHD,Central - Commissioned Services,Other Small Contracts,Bluebird Care (South Gloucestershire),124.32, 28-Mar-2023
1379,Revenue,CAHD,Central - Commissioned Services,Other Small Contracts,Bluebird Care (South Gloucestershire),947.94, 28-Mar-2023
1380,Revenue,CAHD,Central - Commissioned Services,Other Small Contracts,Bluebird Care (South Gloucestershire),15.54, 28-Mar-2023
1381,Revenue,CAHD,Central - Commissioned Services,Other Small Contracts,Bluebird Care (South Gloucestershire),551.67, 28-Mar-2023
1382,Revenue,CAHD,Central - Commissioned Services,Other Small Contracts,Bluebird Care (South Gloucestershire),46.62, 28-Mar-2023
1383,Revenue,CAHD,Central - Commissioned Services,Other Small Contracts,Bluebird Care (South Gloucestershire),186.48, 28-Mar-2023
1384,Revenue,CAHD,Central - Commissioned Services,Other Small Contracts,Bluebird Care (South Gloucestershire),1399.44, 28-Mar-2023
1385,Revenue,CAHD,Central - Commissioned Services,Other Small Contracts,Bluebird Care (South Gloucestershire),170.94, 28-Mar-2023
1386,Revenue,CAHD,Central - Commissioned Services,Other Small Contracts,Bluebird Care (South Gloucestershire),435.12, 28-Mar-2023
1387,Revenue,CAHD,Central - Commissioned Services,Other Small Contracts,Bluebird Care (South Gloucestershire),621.6, 28-Mar-2023
1388,Revenue,CAHD,Central - Commissioned Services,Other Small Contracts,Bluebird Care (South Gloucestershire),624.56, 28-Mar-2023
1389,Revenue,CAHD,Central - Commissioned Services,Other Small Contracts,Bluebird Care (South Gloucestershire),69.93, 28-Mar-2023
1390,Revenue,CAHD,Central - Commissioned Services,Other Small Contracts,Bluebird Care (South Gloucestershire),365.19, 28-Mar-2023
1391,Revenue,CAHD,South - Commissioned Services,Other Small Contracts,Bluebird Care (South Gloucestershire),466.2, 28-Mar-2023
1392,Revenue,CAHD,South - Commissioned Services,Other Small Contracts,Bluebird Care (South Gloucestershire),310.8, 28-Mar-2023
1393,Revenue,CAHD,South - Commissioned Services,Other Small Contracts,Bluebird Care (South Gloucestershire),528.36, 28-Mar-2023
1394,Revenue,CAHD,South - Commissioned Services,Other Small Contracts,Bluebird Care (South Gloucestershire),271.95, 28-Mar-2023
1395,Revenue,CAHD,South - Commissioned Services,Other Small Contracts,Bluebird Care (South Gloucestershire),279.72, 28-Mar-2023
1396,Revenue,CAHD,South - Commissioned Services,Other Small Contracts,Bluebird Care (South Gloucestershire),1399.44, 28-Mar-2023
1397,Revenue,CAHD,South - Commissioned Services,Other Small Contracts,Bluebird Care (South Gloucestershire),62.16, 28-Mar-2023
1398,Revenue,CAHD,South - Commissioned Services,Other Small Contracts,Bluebird Care (South Gloucestershire),93.24, 28-Mar-2023
1399,Revenue,CAHD,South - Commissioned Services,Other Small Contracts,Bluebird Care (South Gloucestershire),62.16, 28-Mar-2023
1400,Revenue,CAHD,South - Commissioned Services,Other Small Contracts,Bluebird Care (South Gloucestershire),380.73, 28-Mar-2023
1401,Revenue,CAHD,North - Community based support,Other Small Contracts,Bluebird Care (South Gloucestershire),341.88, 28-Mar-2023
1402,Revenue,CAHD,North - Community based support,Other Small Contracts,Bluebird Care (South Gloucestershire),23.31, 28-Mar-2023
1403,Revenue,CAHD,North - Community based support,Other Small Contracts,Bluebird Care (South Gloucestershire),163.17, 28-Mar-2023
1404,Revenue,CAHD,North - Community based support,Other Small Contracts,Bluebird Care (South Gloucestershire),1600.41, 28-Mar-2023
1405,Revenue,CAHD,North - Community based support,Other Small Contracts,Bluebird Care (South Gloucestershire),15.54, 28-Mar-2023
1406,Revenue,CAHD,North - Community based support,Other Small Contracts,Bluebird Care (South Gloucestershire),139.86, 28-Mar-2023
1407,Revenue,CAHD,North - Community based support,Other Small Contracts,Bluebird Care (South Gloucestershire),380.73, 28-Mar-2023
1408,Revenue,CAHD,North - Community based support,Other Small Contracts,Bluebird Care (South Gloucestershire),1750.84, 28-Mar-2023
1409,Revenue,CAHD,North - Community based support,Other Small Contracts,Bluebird Care (South Gloucestershire),870.24, 28-Mar-2023
1410,Revenue,CAHD,North - Community based support,Other Small Contracts,Bluebird Care (South Gloucestershire),93.24, 28-Mar-2023
1411,Revenue,CAHD,Central - Commissioned Services,Other Small Contracts,Bluebird Care (South Gloucestershire),147.63, 29-Mar-2023
1412,Revenue,CAHD,Central - Commissioned Services,Other Small Contracts,Bluebird Care (South Gloucestershire),124.32, 29-Mar-2023
1413,Revenue,CAHD,Central - Commissioned Services,Other Small Contracts,Bluebird Care (South Gloucestershire),761.46, 29-Mar-2023
1414,Revenue,CAHD,Central - Commissioned Services,Other Small Contracts,Bluebird Care (South Gloucestershire),31.08, 29-Mar-2023
1415,Revenue,CAHD,Central - Commissioned Services,Other Small Contracts,Bluebird Care (South Gloucestershire),1872.57, 29-Mar-2023
1416,Revenue,CAHD,Central - Commissioned Services,Other Small Contracts,Bluebird Care (South Gloucestershire),155.4, 29-Mar-2023
1417,Revenue,CAHD,Central - Commissioned Services,Other Small Contracts,Bluebird Care (South Gloucestershire),256.41, 29-Mar-2023
1418,Revenue,CAHD,Central - Commissioned Services,Other Small Contracts,Bluebird Care (South Gloucestershire),163.17, 29-Mar-2023
1419,Revenue,CAHD,Central - Commissioned Services,Other Small Contracts,Bluebird Care (South Gloucestershire),116.55, 29-Mar-2023
1420,Revenue,CAHD,Central - Commissioned Services,Other Small Contracts,Bluebird Care (South Gloucestershire),947.94, 29-Mar-2023
1421,Revenue,CAHD,Central - Commissioned Services,Other Small Contracts,Bluebird Care (South Gloucestershire),31.08, 29-Mar-2023
1422,Revenue,CAHD,Central - Commissioned Services,Other Small Contracts,Bluebird Care (South Gloucestershire),574.98, 29-Mar-2023
1423,Revenue,CAHD,Central - Commissioned Services,Other Small Contracts,Bluebird Care (South Gloucestershire),46.62, 29-Mar-2023
1424,Revenue,CAHD,Central - Commissioned Services,Other Small Contracts,Bluebird Care (South Gloucestershire),202.02, 29-Mar-2023
1425,Revenue,CAHD,Central - Commissioned Services,Other Small Contracts,Bluebird Care (South Gloucestershire),1399.44, 29-Mar-2023
1426,Revenue,CAHD,Central - Commissioned Services,Other Small Contracts,Bluebird Care (South Gloucestershire),163.17, 29-Mar-2023
1427,Revenue,CAHD,Central - Commissioned Services,Other Small Contracts,Bluebird Care (South Gloucestershire),435.12, 29-Mar-2023
1428,Revenue,CAHD,Central - Commissioned Services,Other Small Contracts,Bluebird Care (South Gloucestershire),652.68, 29-Mar-2023
1429,Revenue,CAHD,Central - Commissioned Services,Other Small Contracts,Bluebird Care (South Gloucestershire),655.64, 29-Mar-2023
1430,Revenue,CAHD,Central - Commissioned Services,Other Small Contracts,Bluebird Care (South Gloucestershire),77.7, 29-Mar-2023
1431,Revenue,CAHD,Central - Commissioned Services,Other Small Contracts,Bluebird Care (South Gloucestershire),404.04, 29-Mar-2023
1432,Revenue,CAHD,South - Commissioned Services,Other Small Contracts,Bluebird Care (South Gloucestershire),489.51, 29-Mar-2023
1433,Revenue,CAHD,South - Commissioned Services,Other Small Contracts,Bluebird Care (South Gloucestershire),310.8, 29-Mar-2023
1434,Revenue,CAHD,South - Commissioned Services,Other Small Contracts,Bluebird Care (South Gloucestershire),512.82, 29-Mar-2023
1435,Revenue,CAHD,South - Commissioned Services,Other Small Contracts,Bluebird Care (South Gloucestershire),271.95, 29-Mar-2023
1436,Revenue,CAHD,South - Commissioned Services,Other Small Contracts,Bluebird Care (South Gloucestershire),279.72, 29-Mar-2023
1437,Revenue,CAHD,South - Commissioned Services,Other Small Contracts,Bluebird Care (South Gloucestershire),1399.44, 29-Mar-2023
1438,Revenue,CAHD,South - Commissioned Services,Other Small Contracts,Bluebird Care (South Gloucestershire),62.16, 29-Mar-2023
1439,Revenue,CAHD,South - Commissioned Services,Other Small Contracts,Bluebird Care (South Gloucestershire),124.32, 29-Mar-2023
1440,Revenue,CAHD,South - Commissioned Services,Other Small Contracts,Bluebird Care (South Gloucestershire),62.16, 29-Mar-2023
1441,Revenue,CAHD,South - Commissioned Services,Other Small Contracts,Bluebird Care (South Gloucestershire),365.19, 29-Mar-2023
1442,Revenue,CAHD,North - Community based support,Other Small Contracts,Bluebird Care (South Gloucestershire),341.88, 29-Mar-2023
1443,Revenue,CAHD,North - Community based support,Other Small Contracts,Bluebird Care (South Gloucestershire),209.79, 29-Mar-2023
1444,Revenue,CAHD,North - Community based support,Other Small Contracts,Bluebird Care (South Gloucestershire),163.17, 29-Mar-2023
1445,Revenue,CAHD,North - Community based support,Other Small Contracts,Bluebird Care (South Gloucestershire),1716.96, 29-Mar-2023
1446,Revenue,CAHD,North - Community based support,Other Small Contracts,Bluebird Care (South Gloucestershire),31.08, 29-Mar-2023
1447,Revenue,CAHD,North - Community based support,Other Small Contracts,Bluebird Care (South Gloucestershire),139.86, 29-Mar-2023
1448,Revenue,CAHD,North - Community based support,Other Small Contracts,Bluebird Care (South Gloucestershire),349.65, 29-Mar-2023
1449,Revenue,CAHD,North - Community based support,Other Small Contracts,Bluebird Care (South Gloucestershire),1750.84, 29-Mar-2023
1450,Revenue,CAHD,North - Community based support,Other Small Contracts,Bluebird Care (South Gloucestershire),940.17, 29-Mar-2023
1451,Revenue,CAHD,North - Community based support,Other Small Contracts,Bluebird Care (South Gloucestershire),93.24, 29-Mar-2023
1452,Revenue,CAHD,CSC - Asylum Seekers - Unaccompanied,Independent Living,Blueline Healthcare Solutions Ltd T/A Blueline Car,3800, 01-Mar-2023
1453,Revenue,CAHD,CSC - Asylum Seekers - Unaccompanied,Independent Living,Blueline Healthcare Solutions Ltd T/A Blueline Car,3800, 01-Mar-2023
1454,Revenue,CAHD,CSC - Asylum Seekers - Unaccompanied,Independent Living,Blueline Healthcare Solutions Ltd T/A Blueline Car,3800, 01-Mar-2023
1455,Revenue,CAHD,CSC - Asylum Seekers - Unaccompanied,Independent Living,Blueline Healthcare Solutions Ltd T/A Blueline Car,3800, 01-Mar-2023
1456,Revenue,CAHD,CSC - Asylum Seekers - Unaccompanied,Independent Living,Blueline Healthcare Solutions Ltd T/A Blueline Car,3800, 01-Mar-2023
1457,Revenue,CAHD,CSC - Asylum Seekers - Unaccompanied,Independent Living,Blueline Healthcare Solutions Ltd T/A Blueline Car,3800, 01-Mar-2023
1458,Revenue,CAHD,CSC - Asylum Seekers - Unaccompanied,Independent Living,Blueline Healthcare Solutions Ltd T/A Blueline Car,3800, 01-Mar-2023
1459,Revenue,CAHD,CSC - Asylum Seekers - Unaccompanied,Independent Living,Blueline Healthcare Solutions Ltd T/A Blueline Car,3800, 01-Mar-2023
1460,Revenue,CAHD,North - Community based support,Permanent Residential,Bradbury House,6768.6, 07-Mar-2023
1461,Revenue,CAHD,S28A cases,Fees & Charges Income - General,Bradbury House,-438.8, 07-Mar-2023
1462,Revenue,CAHD,Central - Commissioned Services,Permanent Residential,Bradbury House,11342.8, 07-Mar-2023
1463,Revenue,CAHD,North - S117,Permanent Residential,Bradbury House,-75031.64, 07-Mar-2023
1464,Revenue,CAHD,Jointly Funded H&SC Packages,Permanent Residential,Bradbury House,89671.96, 07-Mar-2023
1465,Revenue,CAHD,Alexandra Way,"Provisions (Food, etc)",Brake Bros,675.74, 03-Mar-2023
1466,Revenue,CAHD,Social Lettings Agency,Rent,Individual,822.73, 24-Mar-2023
1467,Revenue,CAHD,Social Lettings Agency,Fees & Charges Income - General,Individual,-102.8, 24-Mar-2023
1468,Revenue,CAHD,Social Lettings Agency,Rent,Individual,947.4, 08-Mar-2023
1469,Revenue,CAHD,Social Lettings Agency,Fees & Charges Income - General,Individual,-75.8, 08-Mar-2023
1470,Revenue,CAHD,Placements OLA Special Schools and RB,Other L.A.s - General,Briarwood School,13048.68, 29-Mar-2023
1471,Revenue,CAHD,Placements OLA Special Schools and RB,Other L.A.s - General,Briarwood School,2774.73, 22-Mar-2023
1472,Revenue,CAHD,Placements OLA Special Schools and RB,Other L.A.s - General,Briarwood School,1981.44, 22-Mar-2023
1473,Revenue,CAHD,Placements OLA Special Schools and RB,Other L.A.s - General,Briarwood School,792.41, 22-Mar-2023
1474,Revenue,CAHD,Central - Commissioned Services,Respite Care,Bridge House Care Home,0, 07-Mar-2023
1475,Revenue,CAHD,North - Community based support,Permanent Residential,Bridge House Care Home,3286, 07-Mar-2023
1476,Revenue,CAHD,North - Community based support,Permanent Residential,Bridge House Care Home,3440, 07-Mar-2023
1477,Revenue,CAHD,North - Community based support,Permanent Residential,Bridge House Care Home,3088.32, 07-Mar-2023
1478,Revenue,CAHD,North - Community based support,Permanent Nursing,Bridge House Care Home,3360, 07-Mar-2023
1479,Revenue,CAHD,North - Community based support,Fees & Charges Income - General,Bridge House Care Home,-627.8, 07-Mar-2023
1480,Revenue,CAHD,North - Community based support,Fees & Charges Income - General,Bridge House Care Home,-650.88, 07-Mar-2023
1481,Revenue,CAHD,North - Community based support,Fees & Charges Income - General,Bridge House Care Home,-651.64, 07-Mar-2023
1482,Revenue,CAHD,North - Community based support,Fees & Charges Income - General,Bridge House Care Home,-1679.52, 07-Mar-2023
1483,Revenue,CAHD,North - Community based support,Day Care / Social Activities,Bridge House Care Home,720, 07-Mar-2023
1484,Revenue,CAHD,North - Community based support,Permanent Residential,Bridgwater Court Care Home,10773.64, 07-Mar-2023
1485,Revenue,CAHD,SRRP,Rent,Brighter Places,590.56, 02-Mar-2023
1486,Revenue,CAHD,Statemented Support Payments to OLAs,Other L.A.s - General,Bristol Cathedral Choir School,942.58, 22-Mar-2023
1487,Revenue,CAHD,Statemented Support Payments to OLAs,Other L.A.s - General,Bristol Cathedral Choir School,880.08, 22-Mar-2023
1488,Revenue,CAHD,Schools Specific Grant Income,Other Public Bodies,Bristol Cathedral Choir School,550, 15-Mar-2023
1489,Revenue,CAHD,Statemented Support Payments to OLAs,Other L.A.s - General,Bristol Cathedral Choir School,978.57, 22-Mar-2023
1490,Revenue,CAHD,Drugs Alcohol and Sexual Health,Other Small Contracts,Bristol City Council,23912, 16-Mar-2023
1491,Revenue,CAHD,Drugs Alcohol and Sexual Health,Other Small Contracts,Bristol City Council,15911, 20-Mar-2023
1492,Revenue,CAHD,South Hub Offices,"Holidays, Outings & Visits",Bristol Clifton & West of England Zoological,672, 16-Mar-2023
1493,Revenue,CAHD,Other Alternative Provision Services,Other Private Contractors,Bristol Neurophysio Ltd,630, 08-Mar-2023
1494,Revenue,CAHD,Other Alternative Provision Services,Other Private Contractors,Bristol Tuition Limited,450, 15-Mar-2023
1495,Revenue,CAHD,Intermediate Care Accommodation,Water Charges,Bristol Wessex Billing Services Limited,593.8, 31-Mar-2023
1496,Revenue,CAHD,Drug and Alcohol Programme,Water Charges,Bristol Wessex Billing Services Limited,739.06, 24-Mar-2023
1497,Revenue,CAHD,Drug and Alcohol Programme,Water Charges,Bristol Wessex Billing Services Limited,885.32, 31-Mar-2023
1498,Revenue,CAHD,Statemented Support Payments to OLAs,Other L.A.s - General,Broadlands Academy,835.17, 22-Mar-2023
1499,Revenue,CAHD,North - Community based support,Permanent Residential,Brockhills Farm,3200, 07-Mar-2023
1500,Revenue,CAHD,North - Community based support,Fees & Charges Income - General,Brockhills Farm,-658.96, 07-Mar-2023
1501,Revenue,CAHD,Supporting People Programme,Grants to Voluntary Bodies,Bromford  :  Merlin Housing Society,2824.17, 01-Mar-2023
1502,Revenue,CAHD,Supporting People Programme,Grants to Voluntary Bodies,Bromford  :  Merlin Housing Society,23628.83, 01-Mar-2023
1503,Revenue,CAHD,Supporting People Programme,Grants to Voluntary Bodies,Bromford  :  Merlin Housing Society,1146.92, 01-Mar-2023
1504,Revenue,CAHD,Schools Specific Grant Income,Other Public Bodies,Brookvale Groby Learning Trust,24000, 30-Mar-2023
1505,Revenue,CAHD,Central - Commissioned Services,Other Small Contracts,Brunelcare,96.8, 06-Mar-2023
1506,Revenue,CAHD,South - Commissioned Services,Other Small Contracts,Brunelcare,205.7, 06-Mar-2023
1507,Revenue,CAHD,South - Commissioned Services,Other Small Contracts,Brunelcare,60.5, 06-Mar-2023
1508,Revenue,CAHD,South - Commissioned Services,Other Small Contracts,Brunelcare,133.1, 06-Mar-2023
1509,Revenue,CAHD,South - Commissioned Services,Other Small Contracts,Brunelcare,169.4, 06-Mar-2023
1510,Revenue,CAHD,South - Commissioned Services,Other Small Contracts,Brunelcare,423.5, 06-Mar-2023
1511,Revenue,CAHD,South - Commissioned Services,Other Small Contracts,Brunelcare,217.8, 06-Mar-2023
1512,Revenue,CAHD,South - Commissioned Services,Other Small Contracts,Brunelcare,127.05, 06-Mar-2023
1513,Revenue,CAHD,South - Commissioned Services,Other Small Contracts,Brunelcare,822.8, 06-Mar-2023
1514,Revenue,CAHD,South - Commissioned Services,Other Small Contracts,Brunelcare,187.55, 06-Mar-2023
1515,Revenue,CAHD,South - Commissioned Services,Other Small Contracts,Brunelcare,490.05, 06-Mar-2023
1516,Revenue,CAHD,South - Commissioned Services,Other Small Contracts,Brunelcare,102.85, 06-Mar-2023
1517,Revenue,CAHD,South - Commissioned Services,Other Small Contracts,Brunelcare,84.7, 06-Mar-2023
1518,Revenue,CAHD,South - Commissioned Services,Other Small Contracts,Brunelcare,127.05, 06-Mar-2023
1519,Revenue,CAHD,South - Commissioned Services,Other Small Contracts,Brunelcare,235.95, 06-Mar-2023
1520,Revenue,CAHD,South - Commissioned Services,Other Small Contracts,Brunelcare,96.8, 06-Mar-2023
1521,Revenue,CAHD,South - Commissioned Services,Other Small Contracts,Brunelcare,907.5, 06-Mar-2023
1522,Revenue,CAHD,South - Commissioned Services,Other Small Contracts,Brunelcare,562.65, 06-Mar-2023
1523,Revenue,CAHD,South - Commissioned Services,Other Small Contracts,Brunelcare,24.2, 06-Mar-2023
1524,Revenue,CAHD,South - Commissioned Services,Other Small Contracts,Brunelcare,193.6, 06-Mar-2023
1525,Revenue,CAHD,South - Commissioned Services,Other Small Contracts,Brunelcare,235.95, 06-Mar-2023
1526,Revenue,CAHD,South - Commissioned Services,Other Small Contracts,Brunelcare,254.1, 06-Mar-2023
1527,Revenue,CAHD,South - Commissioned Services,Other Small Contracts,Brunelcare,64.06, 06-Mar-2023
1528,Revenue,CAHD,South - Commissioned Services,Other Small Contracts,Brunelcare,72.6, 06-Mar-2023
1529,Revenue,CAHD,South - Commissioned Services,Other Small Contracts,Brunelcare,393.25, 06-Mar-2023
1530,Revenue,CAHD,South - Commissioned Services,Other Small Contracts,Brunelcare,48.4, 06-Mar-2023
1531,Revenue,CAHD,South - Commissioned Services,Other Small Contracts,Brunelcare,36.3, 06-Mar-2023
1532,Revenue,CAHD,South - Commissioned Services,Other Small Contracts,Brunelcare,423.5, 06-Mar-2023
1533,Revenue,CAHD,South - Commissioned Services,Other Small Contracts,Brunelcare,133.1, 06-Mar-2023
1534,Revenue,CAHD,South - Commissioned Services,Other Small Contracts,Brunelcare,169.4, 06-Mar-2023
1535,Revenue,CAHD,South - Commissioned Services,Other Small Contracts,Brunelcare,133.1, 06-Mar-2023
1536,Revenue,CAHD,South - Commissioned Services,Other Small Contracts,Brunelcare,12.1, 06-Mar-2023
1537,Revenue,CAHD,South - Commissioned Services,Other Small Contracts,Brunelcare,60.5, 06-Mar-2023
1538,Revenue,CAHD,South - Commissioned Services,Other Small Contracts,Brunelcare,163.35, 06-Mar-2023
1539,Revenue,CAHD,South - Commissioned Services,Other Small Contracts,Brunelcare,78.65, 06-Mar-2023
1540,Revenue,CAHD,South - Commissioned Services,Other Small Contracts,Brunelcare,127.05, 06-Mar-2023
1541,Revenue,CAHD,South - Commissioned Services,Other Small Contracts,Brunelcare,175.45, 06-Mar-2023
1542,Revenue,CAHD,South - Commissioned Services,Other Small Contracts,Brunelcare,121, 06-Mar-2023
1543,Revenue,CAHD,South - Commissioned Services,Other Small Contracts,Brunelcare,48.4, 06-Mar-2023
1544,Revenue,CAHD,South - Commissioned Services,Other Small Contracts,Brunelcare,278.3, 06-Mar-2023
1545,Revenue,CAHD,South - Commissioned Services,Other Small Contracts,Brunelcare,175.45, 06-Mar-2023
1546,Revenue,CAHD,South - Commissioned Services,Other Small Contracts,Brunelcare,96.8, 06-Mar-2023
1547,Revenue,CAHD,South - Commissioned Services,Other Small Contracts,Brunelcare,278.3, 06-Mar-2023
1548,Revenue,CAHD,South - Commissioned Services,Other Small Contracts,Brunelcare,211.75, 06-Mar-2023
1549,Revenue,CAHD,South - Commissioned Services,Other Small Contracts,Brunelcare,266.2, 06-Mar-2023
1550,Revenue,CAHD,South - Commissioned Services,Other Small Contracts,Brunelcare,254.1, 06-Mar-2023
1551,Revenue,CAHD,South - Commissioned Services,Other Small Contracts,Brunelcare,235.95, 06-Mar-2023
1552,Revenue,CAHD,South - Commissioned Services,Other Small Contracts,Brunelcare,387.2, 06-Mar-2023
1553,Revenue,CAHD,South - Commissioned Services,Other Small Contracts,Brunelcare,350.9, 06-Mar-2023
1554,Revenue,CAHD,South - Commissioned Services,Other Small Contracts,Brunelcare,157.3, 06-Mar-2023
1555,Revenue,CAHD,South - Commissioned Services,Other Small Contracts,Brunelcare,102.85, 06-Mar-2023
1556,Revenue,CAHD,South - Commissioned Services,Other Small Contracts,Brunelcare,181.5, 06-Mar-2023
1557,Revenue,CAHD,South - Commissioned Services,Other Small Contracts,Brunelcare,48.4, 06-Mar-2023
1558,Revenue,CAHD,South - Commissioned Services,Mentoring,Brunelcare,48.4, 06-Mar-2023
1559,Revenue,CAHD,South - Commissioned Services,Mentoring,Brunelcare,24.2, 06-Mar-2023
1560,Revenue,CAHD,South - Commissioned Services,Mentoring,Brunelcare,72.6, 06-Mar-2023
1561,Revenue,CAHD,South - Commissioned Services,Mentoring,Brunelcare,48.4, 06-Mar-2023
1562,Revenue,CAHD,South - Commissioned Services,Mentoring,Brunelcare,48.4, 06-Mar-2023
1563,Revenue,CAHD,South - Commissioned Services,Mentoring,Brunelcare,72.6, 06-Mar-2023
1564,Revenue,CAHD,North - Community based support,Other Small Contracts,Brunelcare,423.5, 06-Mar-2023
1565,Revenue,CAHD,Central - Commissioned Services,Other Small Contracts,Brunelcare,290.4, 28-Mar-2023
1566,Revenue,CAHD,South - Commissioned Services,Other Small Contracts,Brunelcare,580.8, 28-Mar-2023
1567,Revenue,CAHD,South - Commissioned Services,Other Small Contracts,Brunelcare,121, 28-Mar-2023
1568,Revenue,CAHD,South - Commissioned Services,Other Small Contracts,Brunelcare,508.2, 28-Mar-2023
1569,Revenue,CAHD,South - Commissioned Services,Other Small Contracts,Brunelcare,1210, 28-Mar-2023
1570,Revenue,CAHD,South - Commissioned Services,Other Small Contracts,Brunelcare,653.4, 28-Mar-2023
1571,Revenue,CAHD,South - Commissioned Services,Other Small Contracts,Brunelcare,387.2, 28-Mar-2023
1572,Revenue,CAHD,South - Commissioned Services,Other Small Contracts,Brunelcare,2480.5, 28-Mar-2023
1573,Revenue,CAHD,South - Commissioned Services,Other Small Contracts,Brunelcare,459.8, 28-Mar-2023
1574,Revenue,CAHD,South - Commissioned Services,Other Small Contracts,Brunelcare,1379.4, 28-Mar-2023
1575,Revenue,CAHD,South - Commissioned Services,Other Small Contracts,Brunelcare,308.55, 28-Mar-2023
1576,Revenue,CAHD,South - Commissioned Services,Other Small Contracts,Brunelcare,254.1, 28-Mar-2023
1577,Revenue,CAHD,South - Commissioned Services,Other Small Contracts,Brunelcare,381.15, 28-Mar-2023
1578,Revenue,CAHD,South - Commissioned Services,Other Small Contracts,Brunelcare,750.2, 28-Mar-2023
1579,Revenue,CAHD,South - Commissioned Services,Other Small Contracts,Brunelcare,278.3, 28-Mar-2023
1580,Revenue,CAHD,South - Commissioned Services,Other Small Contracts,Brunelcare,2577.3, 28-Mar-2023
1581,Revenue,CAHD,South - Commissioned Services,Other Small Contracts,Brunelcare,1724.25, 28-Mar-2023
1582,Revenue,CAHD,South - Commissioned Services,Other Small Contracts,Brunelcare,48.4, 28-Mar-2023
1583,Revenue,CAHD,South - Commissioned Services,Other Small Contracts,Brunelcare,617.1, 28-Mar-2023
1584,Revenue,CAHD,South - Commissioned Services,Other Small Contracts,Brunelcare,701.8, 28-Mar-2023
1585,Revenue,CAHD,South - Commissioned Services,Other Small Contracts,Brunelcare,713.9, 28-Mar-2023
1586,Revenue,CAHD,South - Commissioned Services,Other Small Contracts,Brunelcare,1482.25, 28-Mar-2023
1587,Revenue,CAHD,South - Commissioned Services,Other Small Contracts,Brunelcare,185.77, 28-Mar-2023
1588,Revenue,CAHD,South - Commissioned Services,Other Small Contracts,Brunelcare,193.6, 28-Mar-2023
1589,Revenue,CAHD,South - Commissioned Services,Other Small Contracts,Brunelcare,574.75, 28-Mar-2023
1590,Revenue,CAHD,South - Commissioned Services,Other Small Contracts,Brunelcare,145.2, 28-Mar-2023
1591,Revenue,CAHD,South - Commissioned Services,Other Small Contracts,Brunelcare,1161.6, 28-Mar-2023
1592,Revenue,CAHD,South - Commissioned Services,Other Small Contracts,Brunelcare,381.15, 28-Mar-2023
1593,Revenue,CAHD,South - Commissioned Services,Other Small Contracts,Brunelcare,520.3, 28-Mar-2023
1594,Revenue,CAHD,South - Commissioned Services,Other Small Contracts,Brunelcare,429.55, 28-Mar-2023
1595,Revenue,CAHD,South - Commissioned Services,Other Small Contracts,Brunelcare,145.2, 28-Mar-2023
1596,Revenue,CAHD,South - Commissioned Services,Other Small Contracts,Brunelcare,187.55, 28-Mar-2023
1597,Revenue,CAHD,South - Commissioned Services,Other Small Contracts,Brunelcare,459.8, 28-Mar-2023
1598,Revenue,CAHD,South - Commissioned Services,Other Small Contracts,Brunelcare,163.35, 28-Mar-2023
1599,Revenue,CAHD,South - Commissioned Services,Other Small Contracts,Brunelcare,211.75, 28-Mar-2023
1600,Revenue,CAHD,South - Commissioned Services,Other Small Contracts,Brunelcare,48.4, 28-Mar-2023
1601,Revenue,CAHD,South - Commissioned Services,Other Small Contracts,Brunelcare,369.05, 28-Mar-2023
1602,Revenue,CAHD,South - Commissioned Services,Other Small Contracts,Brunelcare,514.25, 28-Mar-2023
1603,Revenue,CAHD,South - Commissioned Services,Other Small Contracts,Brunelcare,363, 28-Mar-2023
1604,Revenue,CAHD,South - Commissioned Services,Other Small Contracts,Brunelcare,90.75, 28-Mar-2023
1605,Revenue,CAHD,South - Commissioned Services,Other Small Contracts,Brunelcare,847, 28-Mar-2023
1606,Revenue,CAHD,South - Commissioned Services,Other Small Contracts,Brunelcare,502.15, 28-Mar-2023
1607,Revenue,CAHD,South - Commissioned Services,Other Small Contracts,Brunelcare,290.4, 28-Mar-2023
1608,Revenue,CAHD,South - Commissioned Services,Other Small Contracts,Brunelcare,768.35, 28-Mar-2023
1609,Revenue,CAHD,South - Commissioned Services,Other Small Contracts,Brunelcare,477.95, 28-Mar-2023
1610,Revenue,CAHD,South - Commissioned Services,Other Small Contracts,Brunelcare,768.35, 28-Mar-2023
1611,Revenue,CAHD,South - Commissioned Services,Other Small Contracts,Brunelcare,635.25, 28-Mar-2023
1612,Revenue,CAHD,South - Commissioned Services,Other Small Contracts,Brunelcare,816.75, 28-Mar-2023
1613,Revenue,CAHD,South - Commissioned Services,Other Small Contracts,Brunelcare,1179.75, 28-Mar-2023
1614,Revenue,CAHD,South - Commissioned Services,Other Small Contracts,Brunelcare,834.9, 28-Mar-2023
1615,Revenue,CAHD,South - Commissioned Services,Other Small Contracts,Brunelcare,490.05, 28-Mar-2023
1616,Revenue,CAHD,South - Commissioned Services,Other Small Contracts,Brunelcare,272.25, 28-Mar-2023
1617,Revenue,CAHD,South - Commissioned Services,Other Small Contracts,Brunelcare,520.3, 28-Mar-2023
1618,Revenue,CAHD,South - Commissioned Services,Other Small Contracts,Brunelcare,151.25, 28-Mar-2023
1619,Revenue,CAHD,South - Commissioned Services,Mentoring,Brunelcare,145.2, 28-Mar-2023
1620,Revenue,CAHD,South - Commissioned Services,Mentoring,Brunelcare,217.8, 28-Mar-2023
1621,Revenue,CAHD,South - Commissioned Services,Mentoring,Brunelcare,133.1, 28-Mar-2023
1622,Revenue,CAHD,South - Commissioned Services,Mentoring,Brunelcare,48.4, 28-Mar-2023
1623,Revenue,CAHD,South - Commissioned Services,Mentoring,Brunelcare,217.8, 28-Mar-2023
1624,Revenue,CAHD,North - Community based support,Other Small Contracts,Brunelcare,1264.45, 28-Mar-2023
1625,Revenue,CAHD,Schools Specific Grant Income,Other Public Bodies,Bryn Melyn Care LTD,550, 15-Mar-2023
1626,Revenue,CAHD,Post 16 High Needs Placements,Other Private Contractors,Burley Inclusive Ltd,2348.55, 20-Mar-2023
1627,Revenue,CAHD,Post 16 High Needs Placements,Other Private Contractors,Burley Inclusive Ltd,2348.55, 20-Mar-2023
1628,Revenue,CAHD,Post 16 High Needs Placements,Other Private Contractors,Burley Inclusive Ltd,2348.55, 20-Mar-2023
1629,Revenue,CAHD,CSC - Vinney Green Secure Unit,Service Contracts (Premises),BWS Standfast Fire & Security Systems,732.84, 02-Mar-2023
1630,Revenue,CAHD,Social Lettings Agency,Rent,Individual,947.4, 13-Mar-2023
1631,Revenue,CAHD,Social Lettings Agency,Fees & Charges Income - General,Individual,-94.74, 13-Mar-2023
1632,Revenue,CAHD,Other Alternative Provision Services,Other Private Contractors,Cabot Learning Federation,2229.6, 03-Mar-2023
1633,Revenue,CAHD,Other Alternative Provision Services,Other Private Contractors,Cabot Learning Federation,14359, 03-Mar-2023
1634,Revenue,CAHD,Schools Specific Grant Income,Other Public Bodies,Cabot Learning Federation,550, 15-Mar-2023
1635,Revenue,CAHD,Schools Specific Grant Income,Other Public Bodies,Cabot Learning Federation,550, 15-Mar-2023
1636,Revenue,CAHD,Schools Specific Grant Income,Other Public Bodies,Cabot Learning Federation,550, 15-Mar-2023
1637,Revenue,CAHD,Statemented Support Academies,Other Public Bodies,Cabot Learning Federation,703.5, 23-Mar-2023
1638,Revenue,CAHD,Statemented Support Academies,Other Public Bodies,Cabot Learning Federation,822.5, 23-Mar-2023
1639,Revenue,CAHD,Statemented Support Academies,Other Public Bodies,Cabot Learning Federation,880.54, 23-Mar-2023
1640,Revenue,CAHD,Statemented Support Academies,Other Public Bodies,Cabot Learning Federation,896.5, 23-Mar-2023
1641,Revenue,CAHD,Statemented Support Academies,Other Public Bodies,Cabot Learning Federation,896.5, 23-Mar-2023
1642,Revenue,CAHD,Statemented Support Academies,Other Public Bodies,Cabot Learning Federation,1012.67, 23-Mar-2023
1643,Revenue,CAHD,Statemented Support Academies,Other Public Bodies,Cabot Learning Federation,533.33, 23-Mar-2023
1644,Revenue,CAHD,Statemented Support Academies,Other Public Bodies,Cabot Learning Federation,2227.06, 23-Mar-2023
1645,Revenue,CAHD,Statemented Support Academies,Other Public Bodies,Cabot Learning Federation,896.5, 23-Mar-2023
1646,Revenue,CAHD,Statemented Support Academies,Other Public Bodies,Cabot Learning Federation,896.5, 23-Mar-2023
1647,Revenue,CAHD,Statemented Support Academies,Other Public Bodies,Cabot Learning Federation,2280.42, 23-Mar-2023
1648,Revenue,CAHD,Statemented Support Academies,Other Public Bodies,Cabot Learning Federation,1425, 23-Mar-2023
1649,Revenue,CAHD,Statemented Support Academies,Other Public Bodies,Cabot Learning Federation,633.37, 23-Mar-2023
1650,Revenue,CAHD,Statemented Support Payments to OLAs,Other L.A.s - General,Cabot Learning Federation,2500.02, 22-Mar-2023
1651,Revenue,CAHD,Statemented Support Academies,Other Public Bodies,Cabot Learning Federation,740, 23-Mar-2023
1652,Revenue,CAHD,Statemented Support Academies,Other Public Bodies,Cabot Learning Federation,740, 23-Mar-2023
1653,Revenue,CAHD,Statemented Support Academies,Other Public Bodies,Cabot Learning Federation,740, 23-Mar-2023
1654,Revenue,CAHD,Statemented Support Academies,Other Public Bodies,Cabot Learning Federation,740, 23-Mar-2023
1655,Revenue,CAHD,Statemented Support Academies,Other Public Bodies,Cabot Learning Federation,1783.32, 23-Mar-2023
1656,Revenue,CAHD,Statemented Support Academies,Other Public Bodies,Cabot Learning Federation,740, 23-Mar-2023
1657,Revenue,CAHD,Statemented Support Academies,Other Public Bodies,Cabot Learning Federation,740, 23-Mar-2023
1658,Revenue,CAHD,Statemented Support Academies,Other Public Bodies,Cabot Learning Federation,896.5, 23-Mar-2023
1659,Revenue,CAHD,Statemented Support Academies,Other Public Bodies,Cabot Learning Federation,740, 23-Mar-2023
1660,Revenue,CAHD,Statemented Support Academies,Other Public Bodies,Cabot Learning Federation,740, 23-Mar-2023
1661,Revenue,CAHD,Academy Resource Base Funding,Other Public Bodies,Cabot Learning Federation,4246.6, 22-Mar-2023
1662,Revenue,CAHD,Statemented Support Academies,Other Public Bodies,Cabot Learning Federation,818.96, 23-Mar-2023
1663,Revenue,CAHD,Academy Resource Base Funding,Other Public Bodies,Cabot Learning Federation,1186.24, 22-Mar-2023
1664,Revenue,CAHD,Academy Resource Base Funding,Other Public Bodies,Cabot Learning Federation,949.04, 22-Mar-2023
1665,Revenue,CAHD,Academy Resource Base Funding,Other Public Bodies,Cabot Learning Federation,949.04, 22-Mar-2023
1666,Revenue,CAHD,Academy Resource Base Funding,Other Public Bodies,Cabot Learning Federation,2694.06, 22-Mar-2023
1667,Revenue,CAHD,Academy Resource Base Funding,Other Public Bodies,Cabot Learning Federation,949.04, 22-Mar-2023
1668,Revenue,CAHD,Academy Resource Base Funding,Other Public Bodies,Cabot Learning Federation,949.04, 22-Mar-2023
1669,Revenue,CAHD,Academy Resource Base Funding,Other Public Bodies,Cabot Learning Federation,1186.24, 22-Mar-2023
1670,Revenue,CAHD,Academy Resource Base Funding,Other Public Bodies,Cabot Learning Federation,535.32, 22-Mar-2023
1671,Revenue,CAHD,Academy Resource Base Funding,Other Public Bodies,Cabot Learning Federation,1186.24, 22-Mar-2023
1672,Revenue,CAHD,Academy Resource Base Funding,Other Public Bodies,Cabot Learning Federation,949.04, 22-Mar-2023
1673,Revenue,CAHD,Academy Resource Base Funding,Other Public Bodies,Cabot Learning Federation,6490.23, 22-Mar-2023
1674,Revenue,CAHD,Academy Resource Base Funding,Other Public Bodies,Cabot Learning Federation,949.04, 22-Mar-2023
1675,Revenue,CAHD,Academy Resource Base Funding,Other Public Bodies,Cabot Learning Federation,535.32, 22-Mar-2023
1676,Revenue,CAHD,Academy Resource Base Funding,Other Public Bodies,Cabot Learning Federation,1186.24, 22-Mar-2023
1677,Revenue,CAHD,Academy Resource Base Funding,Other Public Bodies,Cabot Learning Federation,949.04, 22-Mar-2023
1678,Revenue,CAHD,Academy Resource Base Funding,Other Public Bodies,Cabot Learning Federation,949.04, 22-Mar-2023
1679,Revenue,CAHD,Academy Resource Base Funding,Other Public Bodies,Cabot Learning Federation,535.32, 22-Mar-2023
1680,Revenue,CAHD,Academy Resource Base Funding,Other Public Bodies,Cabot Learning Federation,1186.24, 22-Mar-2023
1681,Revenue,CAHD,Academy Resource Base Funding,Other Public Bodies,Cabot Learning Federation,949.04, 22-Mar-2023
1682,Revenue,CAHD,Academy Resource Base Funding,Other Public Bodies,Cabot Learning Federation,1186.24, 22-Mar-2023
1683,Revenue,CAHD,Academy Resource Base Funding,Other Public Bodies,Cabot Learning Federation,949.04, 22-Mar-2023
1684,Revenue,CAHD,Academy Resource Base Funding,Other Public Bodies,Cabot Learning Federation,1423.6, 22-Mar-2023
1685,Revenue,CAHD,Academy Resource Base Funding,Other Public Bodies,Cabot Learning Federation,949.04, 22-Mar-2023
1686,Revenue,CAHD,Academy Resource Base Funding,Other Public Bodies,Cabot Learning Federation,949.04, 22-Mar-2023
1687,Revenue,CAHD,Academy Resource Base Funding,Other Public Bodies,Cabot Learning Federation,10473.77, 22-Mar-2023
1688,Revenue,CAHD,Statemented Support Academies,Other Public Bodies,Cabot Learning Federation,601.73, 23-Mar-2023
1689,Revenue,CAHD,Statemented Support Academies,Other Public Bodies,Cabot Learning Federation,650.35, 23-Mar-2023
1690,Revenue,CAHD,Homes For Ukraine School Support,Other Public Bodies,Cabot Learning Federation,1387.5, 17-Mar-2023
1691,Revenue,CAHD,Statemented Support Payments to OLAs,Other L.A.s - General,Cabot Learning Federation,561.13, 22-Mar-2023
1692,Revenue,CAHD,Statemented Support Payments to OLAs,Other L.A.s - General,Cabot Learning Federation,1944.17, 22-Mar-2023
1693,Revenue,CAHD,Statemented Support Academies,Other Public Bodies,Cabot Learning Federation,896.5, 23-Mar-2023
1694,Revenue,CAHD,Statemented Support Academies,Other Public Bodies,Cabot Learning Federation,740, 23-Mar-2023
1695,Revenue,CAHD,Statemented Support Academies,Other Public Bodies,Cabot Learning Federation,3120.81, 23-Mar-2023
1696,Revenue,CAHD,Statemented Support Academies,Other Public Bodies,Cabot Learning Federation,896.5, 23-Mar-2023
1697,Revenue,CAHD,Statemented Support Academies,Other Public Bodies,Cabot Learning Federation,740, 23-Mar-2023
1698,Revenue,CAHD,Statemented Support Academies,Other Public Bodies,Cabot Learning Federation,609.64, 23-Mar-2023
1699,Revenue,CAHD,Statemented Support Academies,Other Public Bodies,Cabot Learning Federation,1015.19, 23-Mar-2023
1700,Revenue,CAHD,Schools Specific Grant Income,Other Public Bodies,Cabot Learning Federation,550, 15-Mar-2023
1701,Revenue,CAHD,Schools Specific Grant Income,Other Public Bodies,Cabot Learning Federation,550, 15-Mar-2023
1702,Revenue,CAHD,Schools Specific Grant Income,Other Public Bodies,Cabot Learning Federation,550, 15-Mar-2023
1703,Revenue,CAHD,Schools Specific Grant Income,Other Public Bodies,Cabot Learning Federation,550, 15-Mar-2023
1704,Revenue,CAHD,Schools Specific Grant Income,Other Public Bodies,Cabot Learning Federation,550, 15-Mar-2023
1705,Revenue,CAHD,Schools Specific Grant Income,Other Public Bodies,Cabot Learning Federation,1050, 15-Mar-2023
1706,Revenue,CAHD,Schools Specific Grant Income,Other Public Bodies,Cabot Learning Federation,550, 15-Mar-2023
1707,Revenue,CAHD,Schools Specific Grant Income,Other Public Bodies,Cabot Learning Federation,550, 15-Mar-2023
1708,Revenue,CAHD,Homes For Ukraine School Support,Other Public Bodies,Cabot Learning Federation,1500, 17-Mar-2023
1709,Revenue,CAHD,Schools Specific Grant Income,Other Public Bodies,Cabot Learning Federation,550, 15-Mar-2023
1710,Revenue,CAHD,Schools Specific Grant Income,Other Public Bodies,Cabot Learning Federation,550, 15-Mar-2023
1711,Revenue,CAHD,Statemented Support Academies,Other Public Bodies,Cabot Learning Federation,740, 23-Mar-2023
1712,Revenue,CAHD,Statemented Support Academies,Other Public Bodies,Cabot Learning Federation,896.5, 23-Mar-2023
1713,Revenue,CAHD,Statemented Support Academies,Other Public Bodies,Cabot Learning Federation,740, 23-Mar-2023
1714,Revenue,CAHD,Statemented Support Academies,Other Public Bodies,Cabot Learning Federation,896.5, 23-Mar-2023
1715,Revenue,CAHD,Statemented Support Academies,Other Public Bodies,Cabot Learning Federation,740, 23-Mar-2023
1716,Revenue,CAHD,Statemented Support Academies,Other Public Bodies,Cabot Learning Federation,740, 23-Mar-2023
1717,Revenue,CAHD,Statemented Support Academies,Other Public Bodies,Cabot Learning Federation,956.12, 23-Mar-2023
1718,Revenue,CAHD,Statemented Support Academies,Other Public Bodies,Cabot Learning Federation,573.88, 23-Mar-2023
1719,Revenue,CAHD,Statemented Support Academies,Other Public Bodies,Cabot Learning Federation,883.52, 23-Mar-2023
1720,Revenue,CAHD,Statemented Support Academies,Other Public Bodies,Cabot Learning Federation,633.37, 23-Mar-2023
1721,Revenue,CAHD,Statemented Support Academies,Other Public Bodies,Cabot Learning Federation,794.48, 23-Mar-2023
1722,Revenue,CAHD,Statemented Support Payments to OLAs,Other L.A.s - General,Cabot Learning Federation,1062.33, 22-Mar-2023
1723,Revenue,CAHD,Statemented Support Payments to OLAs,Other L.A.s - General,Cabot Learning Federation,740, 22-Mar-2023
1724,Revenue,CAHD,Statemented Support Payments to OLAs,Other L.A.s - General,Cabot Learning Federation,809.75, 22-Mar-2023
1725,Revenue,CAHD,South Glos Alternative Provision,Fees & Charges Income - General,Cabot Learning Federation,2489.67, 24-Mar-2023
1726,Revenue,CAHD,South Glos Alternative Provision,Fees & Charges Income - General,Cabot Learning Federation,784.65, 24-Mar-2023
1727,Revenue,CAHD,Statemented Support Payments to OLAs,Other L.A.s - General,Cabot Learning Federation,740, 22-Mar-2023
1728,Revenue,CAHD,Statemented Support Academies,Other Public Bodies,Cabot Learning Federation,740, 23-Mar-2023
1729,Revenue,CAHD,Statemented Support Academies,Other Public Bodies,Cabot Learning Federation,740, 23-Mar-2023
1730,Revenue,CAHD,Statemented Support Academies,Other Public Bodies,Cabot Learning Federation,740, 23-Mar-2023
1731,Revenue,CAHD,Schools Specific Grant Income,Other Public Bodies,Cabot Learning Federation,550, 15-Mar-2023
1732,Revenue,CAHD,Statemented Support Payments to OLAs,Other L.A.s - General,Cabot Learning Federation,665.33, 22-Mar-2023
1733,Revenue,CAHD,CSC - YOT Pooled Budget,Training Expenses,CACI Limited,4150, 27-Mar-2023
1734,Revenue,CAHD,CSC - YOT Pooled Budget,Software Support & Maintenance,CACI Limited,10886.1, 27-Mar-2023
1735,Revenue,CAHD,Drugs Alcohol and Sexual Health,Other Small Contracts,Cadbury Heath Healthcare,1690.5, 10-Mar-2023
1736,Revenue,CAHD,Drugs Alcohol and Sexual Health,Other Small Contracts,Cadbury Heath Healthcare,1404.02, 16-Mar-2023
1737,Revenue,CAHD,Drugs Alcohol and Sexual Health,Other Small Contracts,Cadbury Heath Healthcare,3248, 10-Mar-2023
1738,Revenue,CAHD,Early Years Pupil Premium Grant,Preventative Assistance,Caerleon Childcare,648, 14-Mar-2023
